CIG;Contratto/ODA;Tipo;Rif. contratto quadro;Fornitore;CF aggiudicatario;Oggetto dell�affidamento;Categoria merceologica;Data di inizio;Data ultimazione;Somme liquidate (+IVA);Struttura proponente;CF stazione appaltante;Procedura di scelta ex codice appalti;Importo aggiudicato (+ IVA) esclusa CPA (netto) in Euro;Importo complessivo scostamento;Elenco partecipanti
ZD634B61EA;2022-000003;Ordine;;TELECOM ITALIA SPA O TIM S.P.A.;00488410010;telefonia ;Servizi di telecomunicazione;04/01/2022;04/01/2022;4.356,52;Facility Management;97425580152;26-AFFIDAMENTO IN ADESIONE AD ACCORDO QUADRO/CONVENZIONE CONSIP;9.500,00;5.143,48;
Z2834BC420;2022-000004;Ordine;;AVL ITALIA S.R.L.;02676930015;Sostituzione FLOW SENSORFLOW AVL AMAi60;Servizi di riparazione e manutenzione di attrezzature da laboratorio;10/01/2022;10/01/2022;800,00;LABORATORIO EMISSIONI;97425580152;23-AFFIDAMENTO DIRETTO;800,00;0,00;
ZCA34BEBDE;2022-000006;Ordine;;LECO ITALY S.R.L.;10123960154;Manutenzione Ordinaria strumento Leco AF 700 come da consuntivo 9035 del 29/11/2021;Servizi di riparazione e manutenzione di attrezzature da laboratorio;05/01/2022;05/01/2022;629,60;LABORATORIO ANALISI;97425580152;23-AFFIDAMENTO DIRETTO;629,60;0,00;
ZE134BF502;2022-000007;Ordine;;MERCK LIFE SCIENCE S.R.L.;13209130155;acquisto reagenti e solventi;"Sostanze chimiche; Attrezzature da laboratorio, ottiche e di precisione.";10/01/2022;10/01/2022;6.891,60;Facility Management;97425580152;23-AFFIDAMENTO DIRETTO;6.891,60;0,00;
Z6734B53AF;2022-000008;Ordine;;SIAD S.P.A.;00209070168;"n.2 bombole di 
DIMETILETERE (DME) 3.0 - bombola 5l per sperimentazione liquigas/assogasliquidi";Prodotti derivati dal petrolio;05/01/2022;05/01/2022;353,34;LABORATORIO ANALISI;97425580152;23-AFFIDAMENTO DIRETTO;320,00;-33,34;
Z442ADF0AC;2022-000009;Ordine;;L.M.P. SRL;05697910585;Analisi in subappalto a L.M.P. n. 5 campioni PCB e PCT n. 5 campioni aventi nostro riferimento i numeri: S-SSC 2101708-4089-4090-4091-4020 - come da offerta n. 038/21/ML;Servizi di prove tecniche, analisi, di laboratorio e relativa consulenza;04/01/2022;04/01/2022;300,00;LABORATORIO ANALISI;97425580152;23-AFFIDAMENTO DIRETTO;300,00;0,00;
ZA734CBA23;2022-000019;Ordine;;RESTEK SRL;03226210155;olio pompa vuoto- vacuum pump fluid inland 45 1 l;Attrezzature da laboratorio, ottiche e di precisione.;03/01/2022;03/01/2022;23,00;LABORATORIO EMISSIONI;97425580152;23-AFFIDAMENTO DIRETTO;162,00;139,00;
Z9F34CBFD3;2022-000020;Ordine;;MERCK LIFE SCIENCE S.R.L.;13209130155;Reagenti disbonding;Attrezzature da laboratorio, ottiche e di precisione.;05/01/2022;05/01/2022;476,00;LAB. PRODOTTI VERNICIANTI;97425580152;23-AFFIDAMENTO DIRETTO;476,00;0,00;
Z6034CC179;2022-000021;Ordine;;THERMO FISHER SCIENTIFIC S.P.A.;07817950152;cristalli ATR;Servizi di riparazione e manutenzione di attrezzature da laboratorio;10/01/2022;10/01/2022;3.386,70;LAB. PRODOTTI VERNICIANTI;97425580152;23-AFFIDAMENTO DIRETTO;3.386,70;0,00;
ZAC34D265B;2022-000024;Ordine;;EUROPEAN TECHNOLOGY S.R.L.;00840600191;Termoresistenza PT 100 per distillatore Herzog cod. 636-077;Servizi di riparazione e manutenzione di attrezzature da laboratorio;01/01/2022;01/01/2022;929,90;LABORATORIO ANALISI;97425580152;23-AFFIDAMENTO DIRETTO;929,90;0,00;
Z8C34D6D26;2022-000026;Ordine;;CNR - CONSIGLIO NAZIONALE DELLE RICERCHE;80054330586;Rinnovo abbonamento NILDE-anno2022;Servizi di elaborazione, trattamento e banche dati;13/01/2022;13/01/2022;225,00;RESPONSABILE AREA SSOG;97425580152;23-AFFIDAMENTO DIRETTO;225,00;0,00;
 Z0E34D7654;2022-000029;Ordine;;FISHER SCIENTIFIC SAS;08948430965;acqua della honywell;"Sostanze chimiche; Attrezzature da laboratorio, ottiche e di precisione.";12/01/2022;12/01/2022;1.969,08;Facility Management;97425580152;23-AFFIDAMENTO DIRETTO;1.969,08;0,00;
Z2B34D7B34;2022-000030;Ordine;;H.P.C. SRL;11318050157;manutenzione triennale compressore_HPC;Servizi di riparazione e manutenzione di attrezzature da laboratorio;12/01/2022;31/12/2022;2.044,00;CROMATOGRAFIA;97425580152;23-AFFIDAMENTO DIRETTO;1.854,00;-190,00;
ZE534DA679;2022-000036;Ordine;;SPETEC GMBH;DE128962284;Tubi peristaltica;Servizi di riparazione e manutenzione di attrezzature da laboratorio;14/01/2022;14/01/2022;457,50;ANALISI DEGLI ELEMENTI;97425580152;23-AFFIDAMENTO DIRETTO;457,50;0,00;
Z0134DCE02;2022-000037;Ordine;;ALESSANDRA BUSTI;BSTLSN75C69C933Z;BUSTI ALESSANDRA MANUTENZIONE;Pacchetti software e sistemi di informazione;19/01/2022;19/01/2022;6.400,00;Facility Management;97425580152;23-AFFIDAMENTO DIRETTO;7.600,00;1.200,00;
Z6334DCB02;2022-000038;Ordine;;MERCK LIFE SCIENCE S.R.L.;13209130155;Prodotti chimici per microbiologia;Attrezzature da laboratorio, ottiche e di precisione.;17/01/2022;17/01/2022;532,00;LABORATORIO CARTA;97425580152;23-AFFIDAMENTO DIRETTO;532,00;0,00;
Z7C34DFED9;2022-000039;Ordine;;ALD MOTORSERVICE SRL;08608260967;DUCATO REVISIONE MINISTERIALE;Servizi di riparazione, manutenzione e affini di veicoli e attrezzature connesse;17/01/2022;17/01/2022;86,61;Facility Management;97425580152;23-AFFIDAMENTO DIRETTO;66,61;-20,00;
ZC034E075F;2022-000040;Ordine;;COLAVER S.R.L.;05099780156;materiale di laboratorio;Attrezzature da laboratorio, ottiche e di precisione.;17/01/2022;31/12/2022;455,43;LABORATORIO CARTA;97425580152;23-AFFIDAMENTO DIRETTO;455,40;-0,03;
Z5F34EDF67;2022-000045;Ordine;;ULTRAPROMEDIA SRL;10324241008;chiavette memoria USB - adattatore porta usb - tappetini mouse - webcam - cuffie;Macchine e apparecchi, attrezzature e articoli di consumo elettrici, illuminazione;20/01/2022;20/01/2022;713,63;Facility Management;97425580152;23-AFFIDAMENTO DIRETTO;713,63;0,00;
Z5134F157A;2022-000049;Ordine;;FISHER SCIENTIFIC SAS;08948430965;Acquisto consumabili Fisher Scientific;Attrezzature da laboratorio, ottiche e di precisione.;20/01/2022;20/01/2022;1.078,64;CROMATOGRAFIA;97425580152;23-AFFIDAMENTO DIRETTO;1.078,64;0,00;
Z1834F1DA5;2022-000050;Ordine;;MERCK LIFE SCIENCE S.R.L.;13209130155;Acquisto consumabili ;Attrezzature da laboratorio, ottiche e di precisione.;20/01/2022;20/01/2022;1.542,90;"LAB. SOSTANZE GRASSE, DERIVATI E TECNOLOGIE OLEARIE; CROMATOGRAFIA";97425580152;23-AFFIDAMENTO DIRETTO;1.542,90;0,00;
8665765F7D;2022-000051;Ordine;;ETTORE PASQUALI S.R.L.;04892610157;vetreria ;Attrezzature da laboratorio, ottiche e di precisione.;26/01/2022;26/01/2022;1.943,00;Facility Management;97425580152;33-PROCEDURA NEGOZIATA PER AFFIDAMENTI SOTTO SOGLIA;1.943,00;0,00;
Z903089843;2022-000054;Ordine;;CREA STYL SRL;08605040966;CREA STYL 2022;Servizi di riparazione e manutenzione di impianti di edifici;26/01/2022;26/01/2022;820,00;Facility Management;97425580152;23-AFFIDAMENTO DIRETTO;820,00;0,00;
ZA334F6377;2022-000055;Ordine;;TANKS INTERNATIONAL SRL;01831690167;"Fusti per circuito UNICHIM 2022

N* 2 FUSTI codice TFMQT0VF21750100909

N3 FUSTI codice VFTL000F12050100710

N 2 FUSTI codice
TFT0000F21750100709";Attrezzature da laboratorio, ottiche e di precisione.;21/01/2022;21/01/2022;0,00;LABORATORIO ANALISI;97425580152;23-AFFIDAMENTO DIRETTO;280,00;280,00;
ZDB34FA395;2022-000059;Ordine;;EUROPEAN TECHNOLOGY S.R.L.;00840600191;standard vari (visc,dens,PM,COC);Servizi di riparazione e manutenzione di attrezzature da laboratorio;21/01/2022;21/01/2022;1.588,57;LAB. LUBRIFICANTI;97425580152;23-AFFIDAMENTO DIRETTO;1.588,57;0,00;
0000000000;2022-000060;Ordine;;COMITATO TERMOTECNICO ITALIANOENERGIA E AMBIENTE;11494010157;Contributo associativo CTI Anno 2022;Quote associative e Fondo Perequativo;26/01/2022;26/01/2022;2.000,00;DIREZIONE GENERALE;97425580152;23-AFFIDAMENTO DIRETTO;2.000,00;0,00;
Z9434FA8F5;2022-000061;Ordine;;PACKAGING MEETING SRL CONSULENZA E FORMAZIONE;12464120158;Iscrizione Convegno LAB4MOCA;Servizi di istruzione e formazione;13/01/2022;13/01/2022;1.100,00;RISORSE UMANE E ORGANIZZAZIONE;97425580152;23-AFFIDAMENTO DIRETTO;1.100,00;0,00;
ZC234FAB8D;2022-000062;Ordine;;ETTORE PASQUALI S.R.L.;04892610157;vetreria ;Attrezzature da laboratorio, ottiche e di precisione.;27/01/2022;27/01/2022;338,90;Facility Management;97425580152;23-AFFIDAMENTO DIRETTO;338,90;0,00;
ZA334FADFB;2022-000063;Ordine;;MERCK LIFE SCIENCE S.R.L.;13209130155;solventi ;"Sostanze chimiche; Attrezzature da laboratorio, ottiche e di precisione.";27/01/2022;27/01/2022;7.685,60;Facility Management;97425580152;23-AFFIDAMENTO DIRETTO;7.685,60;0,00;
Z423491AD8;2022-000064;Contratto;;MICROCONTROL N.T. SRL;11714560155;"Microtomo per Lab. Seta
Taglierina e levigatrice per lab.Vernici.
Potrebbero arrivare separati";Attrezzature da laboratorio, ottiche e di precisione.;31/01/2022;31/12/2022;29.460,20;"LAB. PRODOTTI VERNICIANTI; LABORATORIO SETA";97425580152;23-AFFIDAMENTO DIRETTO;29.691,20;231,00;
Z0A3500339;2022-000066;Ordine;;ORDINE DEI GIORNALISTI DELLA LOMBARDIA;03489610158;Iscrizione Ordine Giornalisti anno 2022;Servizi di ricerca e sviluppo e relativi Servizi di consulenza;14/01/2022;14/01/2022;0,00;RESPONSABILE AREA SSOG;97425580152;23-AFFIDAMENTO DIRETTO;100,00;100,00;
Z833500A58;2022-000067;Ordine;;ANTON PAAR ITALIA SRL;10606840014;Consumabili_microonde_Priola-AntonPaar;Attrezzature da laboratorio, ottiche e di precisione.;21/01/2022;21/01/2022;2.641,00;ANALISI DEGLI ELEMENTI;97425580152;23-AFFIDAMENTO DIRETTO;2.641,00;0,00;
Z12350160C;2022-000068;Ordine;;AMETEK S.R.L. SPECTRO DIV.;00734950157;Manutenzione-preventiva-ICP;Servizi di riparazione e manutenzione di attrezzature da laboratorio;21/01/2022;21/01/2022;1.870,00;ANALISI DEGLI ELEMENTI;97425580152;23-AFFIDAMENTO DIRETTO;1.870,00;0,00;
 Z3D35014E4;2022-000069;Ordine;;MERCK LIFE SCIENCE S.R.L.;13209130155;4-aminobenzoic acid_;Attrezzature da laboratorio, ottiche e di precisione.;21/01/2022;21/01/2022;64,50;CROMATOGRAFIA;97425580152;23-AFFIDAMENTO DIRETTO;89,50;25,00;
0000000000;2022-000070;Ordine;;SISSG - SOCIETA' ITALIA STUDIO SOSTANZE GRASSE;80174530156;SISSG QUOTA SOCIALE 2022;Quote associative e Fondo Perequativo;28/01/2022;28/01/2022;270,00;DIREZIONE GENERALE;97425580152;23-AFFIDAMENTO DIRETTO;270,00;0,00;
0000000000;2022-000071;Ordine;;European Technology Platform for the Future of Textiles and Clothing a.i.s.b.l.;BE0524876007;European Technology Platform Quota 2022;Quote associative e Fondo Perequativo;28/01/2022;28/01/2022;300,00;DIREZIONE GENERALE;97425580152;23-AFFIDAMENTO DIRETTO;300,00;0,00;
0000000000;2022-000072;Ordine;;AIRI - ASSOCIAZIONE ITALIANA PER LARICERCA INDUSTRIALE;03401150580;AIRI QUOTA ASSOCIATIVA ANNO 2022;Quote associative e Fondo Perequativo;28/01/2022;28/01/2022;3.139,50;DIREZIONE GENERALE;97425580152;23-AFFIDAMENTO DIRETTO;3.139,50;0,00;
 ZAC350728A;2022-000077;Ordine;;Sepachrom-Mega Srl;10574530969;Colonne cromatografiche_SepachromMega;Attrezzature da laboratorio, ottiche e di precisione.;27/01/2022;27/01/2022;738,00;"LAB. PRODOTTI VERNICIANTI; CROMATOGRAFIA";97425580152;23-AFFIDAMENTO DIRETTO;738,00;0,00;
Z4035076C4;2022-000078;Ordine;;TIPOGRAFIA CAREGNATO S.N.C. DI CAREGNATO FABIO E D;02107590123;Stampa_RISG-4-2021;Servizi di stampa e affini - Servizi connessi alla stampa;27/01/2022;27/01/2022;1.640,00;RESPONSABILE AREA SSOG;97425580152;23-AFFIDAMENTO DIRETTO;1.640,00;0,00;
Z383508A2E;2022-000081;Ordine;;MANUTAN ITALIA SPA;09816660154;scatola porta DPI;Indumenti e calzature ad uso professionale, speciale e accessori;10/01/2022;10/01/2022;74,00;Facility Management;97425580152;23-AFFIDAMENTO DIRETTO;74,00;0,00;
Z5035090A6;2022-000084;Ordine;;GREINER IMPIANTI SRL;04198700157;GREINER MANUTENZIONE LAVAVETRERIE;Servizi di riparazione e manutenzione di impianti di edifici;31/01/2022;31/01/2022;4.005,00;Facility Management;97425580152;23-AFFIDAMENTO DIRETTO;4.005,00;0,00;
ZBB350D7A6;2022-000087;Ordine;;AUSILIARI TESSILI S.R.L.;06004870157;Ausiliari Tessili;Attrezzature da laboratorio, ottiche e di precisione.;21/01/2022;21/01/2022;58,00;LABORATORIO SETA;97425580152;23-AFFIDAMENTO DIRETTO;58,00;0,00;
ZBB350D7A6;2022-000088;Ordine;;AUSILIARI TESSILI S.R.L.;06004870157;Ausiliari Tessili;Attrezzature da laboratorio, ottiche e di precisione.;21/01/2022;21/01/2022;60,00;LABORATORIO SETA;97425580152;23-AFFIDAMENTO DIRETTO;44,00;-16,00;
Z9C350DFF6;2022-000091;Ordine;;Automation S.r.L.;08799660157;Riparazione riscaldatore cella IR;Servizi di riparazione e manutenzione di attrezzature da laboratorio;25/01/2022;25/01/2022;145,00;LAB. SICUREZZA INDUSTRIALE;97425580152;23-AFFIDAMENTO DIRETTO;145,00;0,00;
ZAB350F5A7;2022-000094;Ordine;;Thermal Hazard Technology;00000000000;Celle porta campione per ARC come da offerta 220123 del 14 gennaio 2022;Servizi di riparazione e manutenzione di attrezzature da laboratorio;17/01/2022;17/01/2022;2.300,00;LAB. SICUREZZA INDUSTRIALE;97425580152;23-AFFIDAMENTO DIRETTO;2.300,00;0,00;
Z3735097A3;2022-000095;Ordine;;Efund Group SASU;00000000000;Quota di costo consulenza per presentazione progetto UE;Servizi di ricerca e sviluppo e relativi Servizi di consulenza;02/02/2022;02/02/2022;4.950,00;PROGETTI E SERVIZI;97425580152;23-AFFIDAMENTO DIRETTO;4.950,00;0,00;
0000000000;2022-000096;Ordine;;APRE AGENZIA PER LA PROMOZ.DELLA RICERCA EUROPEA;03929151003;APRE QUOTA ASSOCIATIVA 2022;Quote associative e Fondo Perequativo;01/02/2022;01/02/2022;7.437,00;DIREZIONE GENERALE;97425580152;23-AFFIDAMENTO DIRETTO;7.437,00;0,00;
Z983489C03;2022-000097;Ordine;;FLYING MONKEYS DI ALBERTO COZZUTTO;CZZLRT79E14D969F;ampliamento importo realizzazione video attivit�;Servizi pubblicitari e di marketing;31/01/2022;31/01/2022;0,00;PROGETTI E SERVIZI;97425580152;23-AFFIDAMENTO DIRETTO;5.304,00;5.304,00;
0000000000;2022-000100;Ordine;;UNIONE CONFCOMMERCIO MILANO LODI MONZA E BRIANZA;80057430151;ASSEPRIM QUOTA ASSOCIATIVA 2022;Quote associative e Fondo Perequativo;02/02/2022;02/02/2022;400,00;DIREZIONE GENERALE;97425580152;23-AFFIDAMENTO DIRETTO;400,00;0,00;
0000000000;2022-000101;Ordine;;ISTITUTO ITALIANO IMBALLAGGIO;00266710284;Istituto Italiano Imballaggio Quota assoc. 2022;Quote associative e Fondo Perequativo;02/02/2022;02/02/2022;765,00;DIREZIONE GENERALE;97425580152;23-AFFIDAMENTO DIRETTO;765,00;0,00;
ZE23512CAD;2022-000102;Ordine;;LAB SERVICE ANALYTICA SRL;03442910372;Materiale di riferimento Nist 1616 b - Sulfur in Kerosene  (Low level) e spese di trasporto;Attrezzature da laboratorio, ottiche e di precisione.;24/01/2022;24/01/2022;721,40;LABORATORIO ANALISI;97425580152;23-AFFIDAMENTO DIRETTO;721,40;0,00;
0000000000;2022-000103;Ordine;;GREENOVATE EUROPE;00000000000;"GREENOVATE! EUROPE QUOTA 2022
Invoice n. 202209 del 02/02/2022";Quote associative e Fondo Perequativo;03/02/2022;03/02/2022;10.000,00;DIREZIONE GENERALE;97425580152;23-AFFIDAMENTO DIRETTO;10.000,00;0,00;
ZC335135F8;2022-000105;Ordine;;ENERGY SYSTEM SRL;12170860154;ENERGYSYSTEM STUFE;Apparecchiature e atrezzature e forniture informatiche;27/01/2022;27/01/2022;1.890,00;Facility Management;97425580152;23-AFFIDAMENTO DIRETTO;1.890,00;0,00;
Z4235160A8;2022-000107;Ordine;;EPPENDORF SRL;10767630154;Puntali_pipette_Eppendorf;Attrezzature da laboratorio, ottiche e di precisione.;31/01/2022;31/01/2022;1.675,22;CROMATOGRAFIA;97425580152;23-AFFIDAMENTO DIRETTO;1.675,22;0,00;
Z8435162C2;2022-000108;Ordine;;F.LLI GALLI G. & P: SNC DI GALLI RENATO & C.;01459040158;Manutenzione straordinaria camera climatica particolato LEA;Servizi di riparazione e manutenzione di attrezzature da laboratorio;31/01/2022;31/01/2022;795,70;LABORATORIO EMISSIONI;97425580152;23-AFFIDAMENTO DIRETTO;795,70;0,00;
ZF935170A5;2022-000109;Ordine;;NICESHOPS GMBH - PICCANTINO;U63964918;Semi per microbiologia;Attrezzature da laboratorio, ottiche e di precisione.;19/01/2022;19/01/2022;0,00;LABORATORIO CARTA;97425580152;23-AFFIDAMENTO DIRETTO;85,02;85,02;
Z1D3519183;2022-000111;Ordine;;Automation S.r.L.;08799660157;Trasduttore di pressione per 'C80';Servizi di riparazione e manutenzione di attrezzature da laboratorio;21/01/2022;21/01/2022;1.990,00;LAB. SICUREZZA INDUSTRIALE;97425580152;23-AFFIDAMENTO DIRETTO;1.990,00;0,00;
Z353519314;2022-000112;Ordine;;MERCK LIFE SCIENCE S.R.L.;13209130155;sacche campionamento gas- Supel�-Inert Multi-Layer Foil;Attrezzature da laboratorio, ottiche e di precisione.;25/01/2022;25/01/2022;720,00;LABORATORIO EMISSIONI;97425580152;23-AFFIDAMENTO DIRETTO;720,00;0,00;
0000000000;2022-000113;Ordine;;AIBO - FCE ASSOCIAZIONE ITALIANA BUSINESS OPERATORFOOD CONTACT EXPERT;97530980156;Iscrizione Convegno AIBO-FCE;Quote associative e Fondo Perequativo;31/01/2022;31/01/2022;150,00;DIREZIONE GENERALE;97425580152;23-AFFIDAMENTO DIRETTO;150,00;0,00;
Z0B351F1A6;2022-000115;Ordine;;FASTWEB SPA;12878470157;linea telefonica ascensore ;Servizi di telecomunicazione;02/02/2022;02/02/2022;19,48;Facility Management;97425580152;23-AFFIDAMENTO DIRETTO;19,48;0,00;
Z5635236E3;2022-000116;Ordine;;CARLO ERBA REAGENTS SRLDASITGROUP;01802940484;olio id vaselina x contapartricelle;Servizi di riparazione e manutenzione di attrezzature da laboratorio;21/01/2022;21/01/2022;140,20;LAB. LUBRIFICANTI;97425580152;23-AFFIDAMENTO DIRETTO;140,20;0,00;
 Z16351F693;2022-000117;Ordine;;PERKIN ELMER ITALIA S.P.A.;00742090152;Contratto Assistenza Manutenzione Preventiva AA;Servizi di riparazione e manutenzione di attrezzature da laboratorio;25/01/2022;25/01/2022;4.538,00;LABORATORIO CARTA;97425580152;23-AFFIDAMENTO DIRETTO;4.538,00;0,00;
ZC0351FF23;2022-000118;Ordine;;CUNA;00983380015;Partecipazione circuito CUNA emissioni 2022;Servizi di prove tecniche, analisi, di laboratorio e relativa consulenza;01/02/2022;01/02/2022;9.140,00;LABORATORIO EMISSIONI;97425580152;23-AFFIDAMENTO DIRETTO;10.140,00;1.000,00;
Z033523907;2022-000123;Ordine;;LGC STANDARDS SRL;03948960962;LGC circuito interlaboratorio mangimi;Servizi di prove tecniche, analisi, di laboratorio e relativa consulenza;03/02/2022;03/02/2022;321,00;LAB. SOSTANZE GRASSE, DERIVATI E TECNOLOGIE OLEARIE;97425580152;23-AFFIDAMENTO DIRETTO;321,00;0,00;
 Z553523B85;2022-000124;Ordine;;ETTORE PASQUALI S.R.L.;04892610157;provettoni e chiudi-vials;Attrezzature da laboratorio, ottiche e di precisione.;01/02/2022;01/02/2022;670,00;LAB. SOSTANZE GRASSE, DERIVATI E TECNOLOGIE OLEARIE;97425580152;23-AFFIDAMENTO DIRETTO;400,00;-270,00;
Z193523DFA;2022-000125;Ordine;;VWR INTERNATIONAL SRL;12864800151;ditali per soxhlet;Servizi di riparazione e manutenzione di attrezzature da laboratorio;03/02/2022;03/02/2022;192,40;LAB. LUBRIFICANTI;97425580152;23-AFFIDAMENTO DIRETTO;219,40;27,00;MERCK LIFE SCIENCE S.R.L. 13209130155
ZDA3525786;2022-000127;Ordine;;METTLER TOLEDO S.P.A.;00718330152;Crogioli per DSC;Servizi di riparazione e manutenzione di attrezzature da laboratorio;20/01/2022;20/01/2022;5.380,00;LAB. SICUREZZA INDUSTRIALE;97425580152;23-AFFIDAMENTO DIRETTO;5.350,00;-30,00;
ZEA3521E11;2022-000128;Contratto;;IMCD ITALIA SPA;03525700153;Xenotest;Attrezzature da laboratorio, ottiche e di precisione.;15/02/2022;15/02/2022;39.700,00;LAB. PRODOTTI VERNICIANTI;97425580152;23-AFFIDAMENTO DIRETTO;39.700,00;0,00;
ZE43525747;2022-000128;Ordine;;RS COMPONENTS S.P.A.;10578740150;Termocoppie di ricambio per apparecchiatura 'Autoinfiammabilit� in Nube';Servizi di riparazione e manutenzione di attrezzature da laboratorio;31/01/2022;31/01/2022;96,00;LAB. SICUREZZA INDUSTRIALE;97425580152;23-AFFIDAMENTO DIRETTO;86,00;-10,00;
0000000000;2022-000130;Ordine;;AIASASSOCIAZIONE PROF. ITALIANA AMBIENTE E SICUREZZA;97014830158;AIAS QUOTA ASSOCIATIVA 2022;Quote associative e Fondo Perequativo;08/02/2022;08/02/2022;400,00;DIREZIONE GENERALE;97425580152;23-AFFIDAMENTO DIRETTO;400,00;0,00;
ZA1352B112;2022-000134;Ordine;;VWR INTERNATIONAL SRL;12864800151;acquisti dpi a magazzino;"Macchine e apparecchi, attrezzature e articoli di consumo elettrici, illuminazione; Attrezzature da laboratorio, ottiche e di precisione.";10/02/2022;10/02/2022;313,70;Facility Management;97425580152;23-AFFIDAMENTO DIRETTO;340,70;27,00;
ZF0352CF30;2022-000135;Ordine;;REDALLUMINIO SNC;00205630130;"1125 Lattine (45 scatole da 25 lattine) di Redalluminio (codice 100).
Necessarie per la conduzione  dei circuiti UNICHIM/CUNA 2022, primo semestre.";Attrezzature da laboratorio, ottiche e di precisione.;20/01/2022;20/01/2022;5.355,00;LABORATORIO ANALISI;97425580152;23-AFFIDAMENTO DIRETTO;5.265,00;-90,00;
Z4B352D0CC;2022-000136;Ordine;;SERPAC SRL;05083510965;500 scatole omologate ONU 4G tipo PG982  per circuiti di correlazione UNICHIM e CUNA 2022;Attrezzature da laboratorio, ottiche e di precisione.;20/01/2022;20/01/2022;908,61;LABORATORIO ANALISI;97425580152;23-AFFIDAMENTO DIRETTO;908,29;-0,32;
ZF235304AC;2022-000139;Ordine;;EUROPEAN TECHNOLOGY S.R.L.;00840600191;standard RL 254 per NOACK;Servizi di riparazione e manutenzione di attrezzature da laboratorio;09/02/2022;09/02/2022;303,87;LAB. LUBRIFICANTI;97425580152;23-AFFIDAMENTO DIRETTO;303,87;0,00;
ZF93530594;2022-000140;Ordine;;MERCK LIFE SCIENCE S.R.L.;13209130155;ESANO per GC-progetto semi;Attrezzature da laboratorio, ottiche e di precisione.;03/02/2022;03/02/2022;965,00;LAB. SOSTANZE GRASSE, DERIVATI E TECNOLOGIE OLEARIE;97425580152;23-AFFIDAMENTO DIRETTO;1.279,00;314,00;
Z2E3531C52;2022-000141;Ordine;;TBT SRL;09113890967;Sostituzione amplificatore segnale banco a rulli;Servizi di riparazione e manutenzione di attrezzature da laboratorio;04/02/2022;04/02/2022;1.445,50;LABORATORIO EMISSIONI;97425580152;23-AFFIDAMENTO DIRETTO;1.445,50;0,00;
Z6D353247A;2022-000142;Ordine;;VWR INTERNATIONAL SRL;12864800151;Reagenti e Vetreria;Attrezzature da laboratorio, ottiche e di precisione.;02/02/2022;02/02/2022;912,03;LAB. COSMETICA E DETERGENZA;97425580152;23-AFFIDAMENTO DIRETTO;912,03;0,00;
ZBD353303C;2022-000143;Ordine;;European Commission Joint Research Centre;;Acquisto CRM JRC;Attrezzature da laboratorio, ottiche e di precisione.;07/02/2022;07/02/2022;0,00;LAB. SOSTANZE GRASSE, DERIVATI E TECNOLOGIE OLEARIE;97425580152;23-AFFIDAMENTO DIRETTO;102,00;102,00;
Z38352D57B;2022-000144;Ordine;;TBT SRL;09113890967;Manutenzione ordinaria banco a rulli- Lab.Motori Area Combustibili;Servizi di riparazione e manutenzione di attrezzature da laboratorio;14/02/2022;14/02/2022;5.500,00;LABORATORIO EMISSIONI;97425580152;23-AFFIDAMENTO DIRETTO;11.000,00;5.500,00;
ZE1353536E;2022-000145;Ordine;;L.M.P. SRL;05697910585;Analisi in subappalto a L.M.P. per n 6 campioni di cui gasoli e oli combustibili come da offerta n. 044/22/ML.;Servizi di prove tecniche, analisi, di laboratorio e relativa consulenza;03/02/2022;03/02/2022;360,00;LABORATORIO ANALISI;97425580152;23-AFFIDAMENTO DIRETTO;360,00;0,00;
ZE53535678;2022-000146;Ordine;;ENERGY SYSTEM SRL;12170860154;Energy System;"Attrezzature da laboratorio, ottiche e di precisione.; Servizi di riparazione e manutenzione di impianti di edifici";07/02/2022;07/02/2022;1.361,92;Facility Management;97425580152;23-AFFIDAMENTO DIRETTO;1.361,92;0,00;
Z6D3535B62;2022-000147;Ordine;;LAB SERVICE ANALYTICA SRL;03442910372;Vials_Tappi-LabServiceAnalyitica;Attrezzature da laboratorio, ottiche e di precisione.;11/02/2022;11/02/2022;1.705,00;CROMATOGRAFIA;97425580152;23-AFFIDAMENTO DIRETTO;1.705,00;0,00;"PHENOMENEX SRL 02691021204; LAB SERVICE ANALYTICA SRL 03442910372"
ZBD353623D;2022-000152;Ordine;;B2MATCH GMBH;00000000000;software per IFIB 2022;Pacchetti software e sistemi di informazione;14/02/2022;14/02/2022;1.550,00;PROGETTI E SERVIZI;97425580152;23-AFFIDAMENTO DIRETTO;1.550,00;0,00;
Z113536EB5;2022-000153;Ordine;;CAMAR ELETTRONICA S.R.L.;02059800363;Taratura Termoigrometro Elcometer G319T;Servizi di prove tecniche, analisi, di laboratorio e relativa consulenza;08/02/2022;08/02/2022;436,00;LAB. PRODOTTI VERNICIANTI;97425580152;23-AFFIDAMENTO DIRETTO;436,00;0,00;
Z113539EC0;2022-000155;Ordine;;GRASSI UFFICIO SAS;01279740136;cancelleria;Cancelleria, materiale e attrezzature di consumo per ufficio;04/02/2022;04/02/2022;1.910,00;Facility Management;97425580152;23-AFFIDAMENTO DIRETTO;1.910,00;0,00;
ZE1353F826;2022-000158;Ordine;;ERRECI SRL;05102590154;Consumabili ERRECI 11-02-22;Attrezzature da laboratorio, ottiche e di precisione.;11/02/2022;11/02/2022;2.381,00;LAB. SOSTANZE GRASSE, DERIVATI E TECNOLOGIE OLEARIE;97425580152;23-AFFIDAMENTO DIRETTO;2.381,00;0,00;
CIG ZA9353F8BE;2022-000159;Ordine;;DCC - DELTA COAL CONTROL GMBH;DE814722389;Iscrizione Circuito di Correlazione DCC 2022 - Samples: Hard Coal - Wood Chips - Solid Recovered Fuels, come da modulo di iscrizione allegato a BPM;Servizi di prove tecniche, analisi, di laboratorio e relativa consulenza;31/01/2022;31/01/2022;1.540,00;LABORATORIO ANALISI;97425580152;23-AFFIDAMENTO DIRETTO;1.540,00;0,00;
Z19353FC17;2022-000160;Ordine;;MERCK LIFE SCIENCE S.R.L.;13209130155;fiale aldeidi - LpDNPH H Series Cartridges;Attrezzature da laboratorio, ottiche e di precisione.;04/02/2022;04/02/2022;844,00;LABORATORIO EMISSIONI;97425580152;23-AFFIDAMENTO DIRETTO;844,00;0,00;
Z85352EE28;2022-000161;Ordine;;IMP3ROVE European Innovation Management Academy;DE296000326;Acquisto licenze accesso a IMProve;Servizi di elaborazione, trattamento e banche dati;11/02/2022;11/02/2022;3.000,00;PROGETTI E SERVIZI;97425580152;23-AFFIDAMENTO DIRETTO;3.000,00;0,00;
Z963540E18;2022-000162;Ordine;;TROST SRL;01348470301;consumabili panel test;Attrezzature da laboratorio, ottiche e di precisione.;09/02/2022;09/02/2022;403,80;LAB. SOSTANZE GRASSE, DERIVATI E TECNOLOGIE OLEARIE;97425580152;23-AFFIDAMENTO DIRETTO;403,80;0,00;
ZDF3540E29;2022-000163;Ordine;;MERCK LIFE SCIENCE S.R.L.;13209130155;Cartucce Formaledide;Attrezzature da laboratorio, ottiche e di precisione.;14/02/2022;14/02/2022;439,00;LAB. PRODOTTI VERNICIANTI;97425580152;23-AFFIDAMENTO DIRETTO;414,00;-25,00;
ZA33544495;2022-000166;Ordine;;VWR INTERNATIONAL SRL;12864800151;prodotti ;"Sostanze chimiche; Attrezzature da laboratorio, ottiche e di precisione.";10/02/2022;10/02/2022;636,84;Facility Management;97425580152;23-AFFIDAMENTO DIRETTO;663,84;27,00;
ZF62C6AC79;2022-000169;Ordine;;ARTI GRAFICHE CARDAMONE S.R.L.;00411600794;buste sacco intestate;Cancelleria, materiale e attrezzature di consumo per ufficio;07/02/2022;07/02/2022;529,60;Facility Management;97425580152;23-AFFIDAMENTO DIRETTO;529,60;0,00;
Z643546F69;2022-000170;Ordine;;CAMAR ELETTRONICA S.R.L.;02059800363;Termometro centesimale con sonda e taratura;"Attrezzature da laboratorio, ottiche e di precisione.; Servizi di prove tecniche, analisi, di laboratorio e relativa consulenza";08/02/2022;08/02/2022;1.393,00;LAB. PRODOTTI VERNICIANTI;97425580152;23-AFFIDAMENTO DIRETTO;1.393,00;0,00;
8665765F7D;2022-000171;Ordine;;ETTORE PASQUALI S.R.L.;04892610157;taniche;Attrezzature da laboratorio, ottiche e di precisione.;21/02/2022;21/02/2022;3.619,00;Facility Management;97425580152;33-PROCEDURA NEGOZIATA PER AFFIDAMENTI SOTTO SOGLIA;3.925,00;306,00;
ZE3354E014;2022-000172;Ordine;;RESTEK SRL;03226210155;Acquisto consumabili Restek;Attrezzature da laboratorio, ottiche e di precisione.;11/02/2022;11/02/2022;1.487,89;"LAB. SOSTANZE GRASSE, DERIVATI E TECNOLOGIE OLEARIE; CROMATOGRAFIA";97425580152;23-AFFIDAMENTO DIRETTO;1.487,89;0,00;"PHENOMENEX SRL 02691021204; RESTEK SRL 03226210155; AGILENT TECHNOLOGIES ITALIA SPA 12785290151"
ZE6354E4CF;2022-000173;Ordine;;THERMO FISHER SCIENTIFIC S.P.A.;07817950152;KitVial_IEC-ThermoFisherScientific;Attrezzature da laboratorio, ottiche e di precisione.;14/02/2022;14/02/2022;833,00;CROMATOGRAFIA;97425580152;23-AFFIDAMENTO DIRETTO;833,00;0,00;
0000000000;2022-000174;Ordine;;UNICHIM;08579360150;UNICHIM Quota associativa 2022;Quote associative e Fondo Perequativo;18/02/2022;18/02/2022;1.102,00;AFFARI GENERALI E CONTRIBUTI;97425580152;23-AFFIDAMENTO DIRETTO;1.102,00;0,00;
Z8A3551782;2022-000177;Ordine;;SEGRA '95 SRL (MAIL BOXES);11539210150;spedizioni ;Servizi di posta e corriere;16/02/2022;16/02/2022;508,70;Facility Management;97425580152;23-AFFIDAMENTO DIRETTO;508,70;0,00;
Z893554B34;2022-000179;Ordine;;SERGIO CIPOLLETTA;CPLSRG65H12F205S;Materiali di riferimento Pet coke Alpha AR 747, AR742B, AR 756 e Gasolio Alpha AR2962. Fornitore consigliato T-MAC Service di Sergio Cipolletta.;Attrezzature da laboratorio, ottiche e di precisione.;02/02/2022;02/02/2022;651,40;LABORATORIO ANALISI;97425580152;23-AFFIDAMENTO DIRETTO;651,40;0,00;
ZCB3554C53;2022-000180;Ordine;;PROOF-ACS GMBH;DE285413072;PT_PROOF-ACS_MOSH-MOAH_InfantFormula;Servizi di prove tecniche, analisi, di laboratorio e relativa consulenza;22/02/2022;22/02/2022;800,00;CROMATOGRAFIA;97425580152;23-AFFIDAMENTO DIRETTO;800,00;0,00;
ZCF3554E62;2022-000181;Ordine;;AVL ITALIA S.R.L.;02676930015;Acquisto consumabili per strumentazione PEMS;Servizi di riparazione e manutenzione di attrezzature da laboratorio;14/02/2022;14/02/2022;1.588,00;LABORATORIO EMISSIONI;97425580152;23-AFFIDAMENTO DIRETTO;1.588,00;0,00;
ZAD35551F7;2022-000182;Ordine;;VIRTUAL LOGIC SRL;03878640238;Notebook HP e docking station;Apparecchiature e atrezzature e forniture informatiche;21/02/2022;21/02/2022;16.416,00;Facility Management;97425580152;23-AFFIDAMENTO DIRETTO;16.416,00;0,00;"TECHNOINF SRLS 10239630964; INFORMATICA.NET 04654610874; VIRTUAL LOGIC SRL 03878640238"
Z2635555C7;2022-000183;Ordine;;CERTIQUALITY SRL;04591610961;FORMAZIONE;Servizi di istruzione e formazione;23/02/2022;23/02/2022;780,00;RISORSE UMANE E ORGANIZZAZIONE;97425580152;23-AFFIDAMENTO DIRETTO;780,00;0,00;
Z473555EAC;2022-000184;Ordine;;TRASPORTI ZINGALI SRL;02064240183;trasporto campioni.;"Attrezzature da laboratorio, ottiche e di precisione.; Servizi di posta e corriere";10/02/2022;10/02/2022;733,15;LABORATORIO ANALISI;97425580152;23-AFFIDAMENTO DIRETTO;733,15;0,00;
Z18355688E;2022-000185;Ordine;;SVI SRL;02284930985;VERIFICA BIENNALE MESSA A TERRA .;Servizi di riparazione e manutenzione di impianti di edifici;11/01/2022;11/01/2022;2.300,00;Facility Management;97425580152;26-AFFIDAMENTO IN ADESIONE AD ACCORDO QUADRO/CONVENZIONE CONSIP;2.300,00;0,00;
Z1D3557E7E;2022-000186;Ordine;;Ruggeri snc di Lorenzo e Andrea;08180230966;Corso Carrellisti;Servizi di istruzione e formazione;15/02/2022;15/02/2022;530,00;RISORSE UMANE E ORGANIZZAZIONE;97425580152;23-AFFIDAMENTO DIRETTO;530,00;0,00;
Z5E355CBD2;2022-000188;Ordine;;STUDIO TORTA SPA;06589950010;Rinnovo Brevetti Area Seta;Servizi di ricerca e sviluppo e relativi Servizi di consulenza;10/02/2022;10/02/2022;1.840,00;LABORATORIO SETA;97425580152;23-AFFIDAMENTO DIRETTO;1.840,00;0,00;
ZBD3562DFB;2022-000189;Ordine;;ECO FOX S.R.L. Soc.Unipersonale;02266110697;Biodiesel-UNICHIM-FUEL_55;Prodotti derivati dal petrolio;15/02/2022;15/02/2022;364,50;LABORATORIO ANALISI;97425580152;23-AFFIDAMENTO DIRETTO;360,00;-4,50;
ZBC3563493;2022-000190;Ordine;;VWR INTERNATIONAL SRL;12864800151;Riparazione autoclave;Servizi di riparazione e manutenzione di attrezzature da laboratorio;17/02/2022;17/02/2022;220,00;LABORATORIO CARTA;97425580152;23-AFFIDAMENTO DIRETTO;220,00;0,00;
ZC135637E2;2022-000191;Ordine;;LECO ITALY S.R.L.;10123960154;Materiale di consumo per laboratorio strumentazione Leco;Attrezzature da laboratorio, ottiche e di precisione.;09/02/2022;09/02/2022;1.030,50;LABORATORIO ANALISI;97425580152;23-AFFIDAMENTO DIRETTO;1.030,50;0,00;
ZA63563C5F;2022-000192;Ordine;;SWS SRL;08849920965;verifica DPI;Servizi di ricerca e sviluppo e relativi Servizi di consulenza;09/02/2022;09/02/2022;559,73;LABORATORIO EMISSIONI;97425580152;23-AFFIDAMENTO DIRETTO;559,89;0,16;
ZA4356469E;2022-000194;Ordine;;MERCK LIFE SCIENCE S.R.L.;13209130155;fiale di campionamento NH3- ORBO 77 H2SO4-Treated Carbon Bead (20/30), 500/250 mg;Attrezzature da laboratorio, ottiche e di precisione.;08/02/2022;08/02/2022;408,84;LABORATORIO EMISSIONI;97425580152;23-AFFIDAMENTO DIRETTO;408,84;0,00;
ZE13564955;2022-000195;Ordine;;RECOM INDUSTRIALE SRL;03618890101;fiale colorimetriche HCl - fiale colorimetriche Kitagawa concentrazione 0.4-40 ppm;Attrezzature da laboratorio, ottiche e di precisione.;11/02/2022;11/02/2022;65,50;LABORATORIO EMISSIONI;97425580152;23-AFFIDAMENTO DIRETTO;65,50;0,00;
ZC3356714A;2022-000196;Ordine;;STA SRL;01852410032;Materiale di consumo Strumento zolfo Horiba tra cui Disposable Sample Cells e Cell Window - fornitore consigliato Horiba Italia;Attrezzature da laboratorio, ottiche e di precisione.;04/02/2022;04/02/2022;1.544,00;LABORATORIO ANALISI;97425580152;23-AFFIDAMENTO DIRETTO;1.544,00;0,00;
Z1F3567230;2022-000197;Ordine;;RS COMPONENTS S.P.A.;10578740150;flussimetri bassa portata - Flussometro Instruments Direct, per Gas, flusso 0,04 lxmin-1  0,5 lxmin-1;Attrezzature da laboratorio, ottiche e di precisione.;07/02/2022;07/02/2022;441,28;LABORATORIO EMISSIONI;97425580152;23-AFFIDAMENTO DIRETTO;403,56;-37,72;
0000000000;2022-000201;Ordine;;SAE INTERNATIONAL;US251494402;SAE Quota associativa 2022;Quote associative e Fondo Perequativo;28/02/2022;28/02/2022;0,00;DIREZIONE GENERALE;97425580152;23-AFFIDAMENTO DIRETTO;90,00;90,00;
Z453567C6E;2022-000204;Ordine;;AGILENT TECHNOLOGIES ITALIA SPA;12785290151;aggiornamento openLab;"Apparecchiature e atrezzature e forniture informatiche; Pacchetti software e sistemi di informazione";07/02/2022;07/02/2022;8.300,00;LABORATORIO EMISSIONI;97425580152;23-AFFIDAMENTO DIRETTO;8.300,00;0,00;"AGILENT TECHNOLOGIES ITALIA SPA 12785290151; SRA INSTRUMENTS ITALIA S.P.A. 12844250154"
ZA13568780;2022-000205;Ordine;;F.LLI GALLI G. & P: SNC DI GALLI RENATO & C.;01459040158;manutenzione fll.galli;Servizi di riparazione e manutenzione di attrezzature da laboratorio;18/02/2022;18/02/2022;752,20;LAB. PRODOTTI VERNICIANTI;97425580152;23-AFFIDAMENTO DIRETTO;752,20;0,00;
Z05356C36C;2022-000207;Ordine;;GREINER IMPIANTI SRL;04198700157;GREINER IMPIANTI CONSUNTIVO NR479;Servizi di riparazione e manutenzione di impianti di edifici;18/02/2022;18/02/2022;0,00;Facility Management;97425580152;23-AFFIDAMENTO DIRETTO;458,75;458,75;
Z1C356C7A9;2022-000208;Ordine;;CREA STYL SRL;08605040966;CREASTYL INTERVENTO 4974;Servizi di riparazione e manutenzione di impianti di edifici;18/02/2022;18/02/2022;104,00;Facility Management;97425580152;23-AFFIDAMENTO DIRETTO;104,00;0,00;
0000000000;2022-000210;Ordine;;BIO-BASED INDUSTRIES CONSORTIUM;;Bio-based Industries Quota associativa 2022;Quote associative e Fondo Perequativo;01/03/2022;01/03/2022;1.000,00;DIREZIONE GENERALE;97425580152;23-AFFIDAMENTO DIRETTO;1.000,00;0,00;
ZEE3570334;2022-000211;Ordine;;MERCK LIFE SCIENCE S.R.L.;13209130155;"Standard  Thiophene.
Codice  = T31801-500G";Attrezzature da laboratorio, ottiche e di precisione.;15/02/2022;15/02/2022;113,50;LABORATORIO ANALISI;97425580152;23-AFFIDAMENTO DIRETTO;113,50;0,00;
Z733570559;2022-000212;Ordine;;SERPAC SRL;05083510965;Vermiculite per circuito UNICHIM;Attrezzature da laboratorio, ottiche e di precisione.;15/02/2022;15/02/2022;270,10;LABORATORIO ANALISI;97425580152;23-AFFIDAMENTO DIRETTO;270,10;0,00;
ZA43570BB1;2022-000213;Ordine;;THERMO FISHER SCIENTIFIC S.P.A.;07817950152;Materiale di consumo per strumento Thermo Fisher Scientific come da offerta n. 21693807;Servizi di riparazione e manutenzione di attrezzature da laboratorio;14/02/2022;14/02/2022;3.465,00;LABORATORIO ANALISI;97425580152;23-AFFIDAMENTO DIRETTO;3.465,00;0,00;
Z33357166A;2022-000215;Ordine;;UNI - ENTE NAZIONALE ITALIANO DI UNIFICAZIONE;80037830157;norme;Servizi di prove tecniche, analisi, di laboratorio e relativa consulenza;02/03/2022;02/03/2022;0,00;NORMAZIONE;97425580152;23-AFFIDAMENTO DIRETTO;395,20;395,20;
0000000000;2022-000216;Ordine;;UNI - ENTE NAZIONALE ITALIANO DI UNIFICAZIONE;80037830157;UNI QUOTE ASSOCIATIVE 2022;Quote associative e Fondo Perequativo;02/03/2022;02/03/2022;4.502,00;DIREZIONE GENERALE;97425580152;23-AFFIDAMENTO DIRETTO;4.502,00;0,00;
0000000000;2022-000217;Ordine;;ASSOCIAZIONE FABBRICA INTELLINGENTE LOMBARDIA;08192390964;AFIL QUOTA ASSOCIATIVA 2022;Quote associative e Fondo Perequativo;02/03/2022;02/03/2022;700,00;DIREZIONE GENERALE;97425580152;23-AFFIDAMENTO DIRETTO;700,00;0,00;
Z293037620;2022-000218;Ordine;;TECNOZOO SRL;01872980287;tecnozoo, rifac. ord. 46 per ultima consegna 2022;Attrezzature da laboratorio, ottiche e di precisione.;02/03/2022;02/03/2022;413,25;LABORATORIO CARTA;97425580152;23-AFFIDAMENTO DIRETTO;413,25;0,00;
Z523575999;2022-000219;Ordine;;EUROPEAN TECHNOLOGY S.R.L.;00840600191;"Consumabili per laboratorio Piatti per Lubricity ""PCS Instruments - HFRR Standard Specimen Pack 100"" - Fornitore consigliato European Technology - codice prodotto: HFRLSP";Attrezzature da laboratorio, ottiche e di precisione.;09/02/2022;09/02/2022;1.515,53;LABORATORIO ANALISI;97425580152;23-AFFIDAMENTO DIRETTO;1.515,53;0,00;
Z633575C38;2022-000220;Ordine;;AB SCIEX SRL;06734220962;Consumabili CE;Attrezzature da laboratorio, ottiche e di precisione.;15/02/2022;15/02/2022;1.313,36;LAB. COSMETICA E DETERGENZA;97425580152;23-AFFIDAMENTO DIRETTO;1.313,36;0,00;
ZC93578089;2022-000221;Ordine;;AERRE SERVICE S.R.L.;04956310967;Proposta di contratto AERRE - Manutenzione frigoriferi come da offerta nr. PRC14/2022;Servizi di riparazione e manutenzione di attrezzature da laboratorio;24/02/2022;24/02/2022;2.050,00;LABORATORIO ANALISI;97425580152;23-AFFIDAMENTO DIRETTO;2.050,00;0,00;
Z0F357825E;2022-000222;Ordine;;GREINER IMPIANTI SRL;04198700157;Greiner impianti;Servizi di riparazione e manutenzione di impianti di edifici;01/03/2022;01/03/2022;462,55;Facility Management;97425580152;23-AFFIDAMENTO DIRETTO;462,55;0,00;
Z74357831E;2022-000223;Ordine;;MERCK LIFE SCIENCE S.R.L.;13209130155;CRM Ftalato di potassio;Attrezzature da laboratorio, ottiche e di precisione.;16/02/2022;16/02/2022;251,00;LAB. SOSTANZE GRASSE, DERIVATI E TECNOLOGIE OLEARIE;97425580152;23-AFFIDAMENTO DIRETTO;251,00;0,00;
Z6D3578622;2022-000224;Ordine;;VACCANI LUGI SRL;11499670963;scarpe antiinfortunistiche per Biffi, Brusoni;Indumenti e calzature ad uso professionale, speciale e accessori;24/02/2022;24/02/2022;204,92;Facility Management;97425580152;23-AFFIDAMENTO DIRETTO;204,92;0,00;
Z0F3579BDC;2022-000225;Ordine;;3M FORNITURE SRLS;03972911204;consumabili barattoli per oli e grassi progetto SSOG00002;Attrezzature da laboratorio, ottiche e di precisione.;16/02/2022;16/02/2022;155,40;LAB. SOSTANZE GRASSE, DERIVATI E TECNOLOGIE OLEARIE;97425580152;23-AFFIDAMENTO DIRETTO;155,40;0,00;
ZAF357A0BF;2022-000226;Ordine;;FOOD CONTACT CENTER S.R.L.;01898850472;Analisi esterne;Servizi di prove tecniche, analisi, di laboratorio e relativa consulenza;17/02/2022;17/02/2022;189,00;LABORATORIO CARTA;97425580152;23-AFFIDAMENTO DIRETTO;189,00;0,00;
Z3D357A35B;2022-000227;Ordine;;METROHM ITALIANA S.R.L.;11073590157;Filtro antipolvere per Rancimat Metrohm - numero d' ordine: 6.2724.010 - Fornitore consigliato: Metrohm Italia;Servizi di riparazione e manutenzione di attrezzature da laboratorio;09/02/2022;09/02/2022;99,00;LABORATORIO ANALISI;97425580152;23-AFFIDAMENTO DIRETTO;99,00;0,00;
ZEA357A7D3;2022-000228;Ordine;;KIWA CERMET ITALIA S.P.A.;03502820370;Taratura riga millimetrata;Servizi di prove tecniche, analisi, di laboratorio e relativa consulenza;24/02/2022;24/02/2022;160,00;LABORATORIO CARTA;97425580152;23-AFFIDAMENTO DIRETTO;160,00;0,00;
Z40357AB07;2022-000229;Ordine;;ETTORE PASQUALI S.R.L.;04892610157;Intervento di manutenzione ordinaria;Servizi di riparazione e manutenzione di attrezzature da laboratorio;15/02/2022;15/02/2022;569,50;LABORATORIO CARTA;97425580152;23-AFFIDAMENTO DIRETTO;530,00;-39,50;
ZF9357CD34;2022-000230;Ordine;;PACK SERVICES SRL;04076240961;Bidoni per rifiuti da 200 litri apertura totale dall'alto co;Macchine e apparecchi, attrezzature e articoli di consumo elettrici, illuminazione;09/02/2022;09/02/2022;1.291,92;Facility Management;97425580152;23-AFFIDAMENTO DIRETTO;1.291,92;0,00;"Amazon EU SARL Succursale Italiana 08973230967; PACK SERVICES SRL 04076240961"
ZBA357FBF4;2022-000231;Ordine;;ETTORE PASQUALI S.R.L.;04892610157;Sistema di Filtrazione;Attrezzature da laboratorio, ottiche e di precisione.;22/02/2022;22/02/2022;3.693,70;LABORATORIO SETA;97425580152;23-AFFIDAMENTO DIRETTO;3.693,70;0,00;
Z41357D37F;2022-000232;Ordine;;THERMO FISHER SCIENTIFIC S.P.A.;07817950152;Calibrazione_Orbitrap_ThermoFisher;Attrezzature da laboratorio, ottiche e di precisione.;28/02/2022;28/02/2022;1.106,60;CROMATOGRAFIA;97425580152;23-AFFIDAMENTO DIRETTO;1.106,60;0,00;"THERMO FISHER SCIENTIFIC S.P.A. 07817950152; VWR INTERNATIONAL SRL 12864800151"
Z9C357DB5B;2022-000233;Ordine;;LAB INSTRUMENTS SRL;03176570723;Octil-isotiazolinone_LabInstruments;Attrezzature da laboratorio, ottiche e di precisione.;04/03/2022;04/03/2022;60,00;CROMATOGRAFIA;97425580152;23-AFFIDAMENTO DIRETTO;60,00;0,00;"MERCK LIFE SCIENCE S.R.L. 13209130155; LAB INSTRUMENTS SRL 03176570723"
Z5D357E8C5;2022-000235;Ordine;;SWS SRL;08849920965;"corso DPI anticaduta - Formazione per aggiornamento DPI III
Cat. Per la protezione delle cadute
dall'alto (4 ore)";Servizi di istruzione e formazione;16/02/2022;16/02/2022;432,00;RISORSE UMANE E ORGANIZZAZIONE;97425580152;23-AFFIDAMENTO DIRETTO;432,00;0,00;
Z84357B488;2022-000236;Ordine;;REDDY'S GROUP SRL;13273360159;SERVIZIO DI STIMA  PREV. n. 111/22;Servizi giuridici;07/03/2022;07/03/2022;1.200,00;DIREZIONE GENERALE;97425580152;23-AFFIDAMENTO DIRETTO;1.200,00;0,00;
ZB03580310;2022-000238;Ordine;;CONVERGE SPA;04472901000;Manutenzione hardware servers CONVERGE;Servizi di riparazione e manutenzione di atrezzature, apparecchiature e forniture informatiche;01/02/2022;01/02/2022;2.281,95;Facility Management;97425580152;23-AFFIDAMENTO DIRETTO;2.281,95;0,00;
ZB03580310;2022-000239;Ordine;;CONVERGE SPA;04472901000;Manutenzione hardware servers CONVERGE;Servizi di riparazione e manutenzione di atrezzature, apparecchiature e forniture informatiche;08/03/2022;08/03/2022;1.867,05;Facility Management;97425580152;23-AFFIDAMENTO DIRETTO;1.867,05;0,00;
Z333581E29;2022-000240;Ordine;;OPENOIKOS DI PIERI FABRIZIO;PRIFRZ60D26A040S;NANOCAD programma per Dr.Pellegrinelli;Pacchetti software e sistemi di informazione;08/03/2022;08/03/2022;199,00;Facility Management;97425580152;23-AFFIDAMENTO DIRETTO;199,00;0,00;
0000000000;2022-000242;Ordine;;SPRING - SUSTAINABLE PROCESSES AND RESOURCES FORINNOVATION AND NATIONAL GROWTH;97684680156;SPRING Quota associativa 2022;Quote associative e Fondo Perequativo;08/03/2022;08/03/2022;1.000,00;DIREZIONE GENERALE;97425580152;23-AFFIDAMENTO DIRETTO;1.000,00;0,00;
Z853582C6B;2022-000243;Ordine;;SRA INSTRUMENTS ITALIA S.P.A.;12844250154;valvola criogenica - Sistema di raffreddamento criogenico con CO2 per GC 7890A;Attrezzature da laboratorio, ottiche e di precisione.;25/02/2022;25/02/2022;1.730,00;LABORATORIO EMISSIONI;97425580152;23-AFFIDAMENTO DIRETTO;1.730,00;0,00;
ZD435842B1;2022-000245;Ordine;;SAPIO SRL;10803700151;Manutenzione ordinaria impianto pressioni gas LEA - Lab.Emis;Servizi di riparazione e manutenzione di attrezzature da laboratorio;01/01/2022;01/01/2022;3.415,00;LABORATORIO EMISSIONI;97425580152;23-AFFIDAMENTO DIRETTO;3.415,00;0,00;
Z1035845C0;2022-000246;Ordine;;STUDIO TORTA SPA;06589950010;"Rinnovo Brevetto Area Seta:
Brevetto n 20215819.2
MACCHINA DI SCHIUMATURA PER IL PRE-TRATTAMENTO DI SUBSTRATI TESSILI";Servizi di ricerca e sviluppo e relativi Servizi di consulenza;04/03/2022;04/03/2022;1.044,00;LABORATORIO SETA;97425580152;23-AFFIDAMENTO DIRETTO;1.044,00;0,00;
Z2B3584820;2022-000247;Ordine;;European Technology Platform for the Future of Textiles and Clothing a.i.s.b.l.;BE0524876007;Formazione Circular Biobased Textiles;Servizi di istruzione e formazione;02/03/2022;02/03/2022;1.500,00;RISORSE UMANE E ORGANIZZAZIONE;97425580152;23-AFFIDAMENTO DIRETTO;1.500,00;0,00;
Z273588BAE;2022-000250;Ordine;;MICHELL ITALIA S.r.l.;04800880967;Data Logger;"Attrezzature da laboratorio, ottiche e di precisione.; altri Servizi di comunita', sociali e personali";07/02/2022;07/02/2022;1.732,80;LABORATORIO CARTA;97425580152;23-AFFIDAMENTO DIRETTO;1.732,80;0,00;
Z8B358439B;2022-000253;Ordine;;NEWTON SPA;12863940156;sessione formativa;Servizi commerciali vari ed altri servizi;04/03/2022;04/03/2022;1.957,50;RISORSE UMANE E ORGANIZZAZIONE;97425580152;23-AFFIDAMENTO DIRETTO;1.957,50;0,00;
0000000000;2022-000254;Ordine;;ASTMINTERNATIONAL;US231352024;ASTM Quota associativa 2022;Quote associative e Fondo Perequativo;08/03/2022;08/03/2022;0,00;DIREZIONE GENERALE;97425580152;23-AFFIDAMENTO DIRETTO;66,00;66,00;
Z40358C17B;2022-000255;Ordine;;SIAD S.P.A.;00209070168;messa a disposizione bombole;Prodotti derivati dal petrolio;07/03/2022;07/03/2022;1.436,36;RESPONSABILE AREA SSC;97425580152;23-AFFIDAMENTO DIRETTO;1.436,36;0,00;
 Z44358D821;2022-000256;Ordine;;UNICHIM;08579360150;"Iscrizione corso UNICHIM del 12/04/2022 -Assicurazione della qualit� dei dati 
M. Fedrigucci e A. Gallonzelli";Servizi di istruzione e formazione;10/03/2022;10/03/2022;420,00;RISORSE UMANE E ORGANIZZAZIONE;97425580152;23-AFFIDAMENTO DIRETTO;420,00;0,00;
Z28358DD54;2022-000257;Ordine;;CENTRE TECNIQUE DU PAPIER;00000000000;Standard IR3 per CEPI CTS;Attrezzature da laboratorio, ottiche e di precisione.;03/03/2022;03/03/2022;3.935,00;LABORATORIO CARTA;97425580152;23-AFFIDAMENTO DIRETTO;3.935,00;0,00;
Z86358DD2C;2022-000258;Ordine;;DORA TECNOLOGIE DI ANDREA B. D'ORIANO;06506020962;manutenzione 4 sfere;Servizi di riparazione e manutenzione di attrezzature da laboratorio;01/03/2022;01/03/2022;500,00;LAB. LUBRIFICANTI;97425580152;23-AFFIDAMENTO DIRETTO;500,00;0,00;
Z2E3590048;2022-000259;Ordine;;HANNA INSTRUMENTS ITALIA SRL;04211270287;Manuentzione ph Hanna;Servizi di riparazione e manutenzione di attrezzature da laboratorio;01/03/2022;01/03/2022;264,00;LAB. PRODOTTI VERNICIANTI;97425580152;23-AFFIDAMENTO DIRETTO;264,00;0,00;
ZA035926DA;2022-000260;Ordine;;CARLO ERBA REAGENTS SRLDASITGROUP;01802940484;esano grado tecnico per PIPL;Attrezzature da laboratorio, ottiche e di precisione.;23/02/2022;23/02/2022;460,00;LAB. LUBRIFICANTI;97425580152;23-AFFIDAMENTO DIRETTO;460,00;0,00;INNOVHUB - STAZIONI SPERIMENTALI PER L'INDUSTRIA S.R.L.
Z563593D11;2022-000261;Ordine;;INDAM LABORATORI S.R.L.;03379190980;analisi IPA;Servizi di prove tecniche, analisi, di laboratorio e relativa consulenza;07/03/2022;07/03/2022;2.337,00;LABORATORIO EMISSIONI;97425580152;23-AFFIDAMENTO DIRETTO;3.375,00;1.038,00;
Z663592FBB;2022-000262;Ordine;;VWR INTERNATIONAL SRL;12864800151;Acquisto consumabili ;Attrezzature da laboratorio, ottiche e di precisione.;08/03/2022;08/03/2022;341,10;LAB. SOSTANZE GRASSE, DERIVATI E TECNOLOGIE OLEARIE;97425580152;23-AFFIDAMENTO DIRETTO;341,10;0,00;
Z8E3597943;2022-000263;Ordine;;GAMMA MISURE S.r.l.;01733860470;Taratura cronometro;Servizi di prove tecniche, analisi, di laboratorio e relativa consulenza;01/03/2022;01/03/2022;212,00;LABORATORIO CARTA;97425580152;23-AFFIDAMENTO DIRETTO;212,00;0,00;
Z243592CA6;2022-000266;Ordine;;GRUPPO ISPAC SOCIETA' COOPERATIVA;07915640960;Ispezione RFI;Servizi di ricerca e sviluppo e relativi Servizi di consulenza;07/03/2022;07/03/2022;360,00;LAB. PRODOTTI VERNICIANTI;97425580152;23-AFFIDAMENTO DIRETTO;360,00;0,00;
Z223598555;2022-000267;Ordine;;EUROPEAN TECHNOLOGY S.R.L.;00840600191;schiumeggiamento alta temp;Attrezzature da laboratorio, ottiche e di precisione.;04/03/2022;04/03/2022;15.363,89;LAB. LUBRIFICANTI;97425580152;23-AFFIDAMENTO DIRETTO;15.363,89;0,00;
Z5C3599206;2022-000268;Ordine;;GRUPPO C.S.A.  S.P.A.;03231410402;Analisi esterne;Servizi di prove tecniche, analisi, di laboratorio e relativa consulenza;10/03/2022;10/03/2022;1.725,00;LABORATORIO CARTA;97425580152;23-AFFIDAMENTO DIRETTO;1.500,00;-225,00;
Z68359A6E8;2022-000269;Ordine;;SEGRA '95 SRL (MAIL BOXES);11539210150;spedizioni ;Servizi di posta e corriere;10/03/2022;10/03/2022;1.418,23;Facility Management;97425580152;23-AFFIDAMENTO DIRETTO;1.418,23;0,00;
 Z74359A82E;2022-000270;Ordine;;MANUTAN ITALIA SPA;09816660154;MANUTAN ACQUISTI VARI OFF.Q0109547-1;"Apparecchiature e atrezzature e forniture informatiche; Mobili da ufficio, arredi, elettrodomestici";15/03/2022;15/03/2022;7.133,72;Facility Management;97425580152;23-AFFIDAMENTO DIRETTO;7.133,72;0,00;
ZC1359C6BD;2022-000271;Ordine;;Fedex Express Italy S.r.l;1273040129;Sdoganamento materiale Thermal Hazard fatt. 102968511;Servizi di posta e corriere;14/03/2022;14/03/2022;0,00;LAB. SICUREZZA INDUSTRIALE;97425580152;23-AFFIDAMENTO DIRETTO;521,50;521,50;
Z96359F8EB;2022-000272;Ordine;;TRASPORTI ZINGALI SRL;02064240183;trasporto campioni.;"Attrezzature da laboratorio, ottiche e di precisione.; Servizi di posta e corriere";10/03/2022;10/03/2022;600,39;LABORATORIO ANALISI;97425580152;23-AFFIDAMENTO DIRETTO;600,39;0,00;
Z1D35A017C;2022-000274;Ordine;;ETTORE PASQUALI S.R.L.;04892610157;Siringhe 1cc;Attrezzature da laboratorio, ottiche e di precisione.;09/03/2022;09/03/2022;330,00;Facility Management;97425580152;23-AFFIDAMENTO DIRETTO;330,00;0,00;
Z2835891D5;2022-000274;Contratto;;PTSV GMBH;DE320776414;Sistema di Analisi immagini PTSV - laboratorio Carta;Attrezzature da laboratorio, ottiche e di precisione.;25/03/2022;31/12/2022;24.808,20;LABORATORIO CARTA;97425580152;23-AFFIDAMENTO DIRETTO;24.755,00;-53,20;
Z1835A0219;2022-000275;Ordine;;MITAMBIENTE SRL;06317870969;spedizioni trasporti merci pericolose ;Attrezzature da laboratorio, ottiche e di precisione.;14/03/2022;14/03/2022;110,00;LABORATORIO ANALISI;97425580152;23-AFFIDAMENTO DIRETTO;110,00;0,00;
Z1735A1184;2022-000276;Ordine;;3M FORNITURE SRLS;03972911204;Alcool etilico denaturato  94�;"Sostanze chimiche; Attrezzature da laboratorio, ottiche e di precisione.";09/03/2022;09/03/2022;77,44;Facility Management;97425580152;23-AFFIDAMENTO DIRETTO;77,44;0,00;
Z8635A15F1;2022-000277;Ordine;;VIRTUAL LOGIC SRL;03878640238;Batterie 9V e stilo AA - bombole aria compressa;Cancelleria, materiale e attrezzature di consumo per ufficio;10/03/2022;10/03/2022;444,90;Facility Management;97425580152;23-AFFIDAMENTO DIRETTO;455,90;11,00;"ULTRAPROMEDIA SRL 10324241008; VIRTUAL LOGIC SRL 03878640238"
Z4535A1DEA;2022-000278;Ordine;;Edwards s.r.l.;00858460157;manutenzione pompa vuoto;Servizi di riparazione e manutenzione di attrezzature da laboratorio;03/03/2022;03/03/2022;590,00;LABORATORIO EMISSIONI;97425580152;23-AFFIDAMENTO DIRETTO;590,00;0,00;
Z2935A91E8;2022-000290;Ordine;;UNIVERSITA' CATTOLICA DEL SACRO CUORE;02133120150;cessione di odore;Servizi di prove tecniche, analisi, di laboratorio e relativa consulenza;03/03/2022;03/03/2022;450,00;LAB. PRODOTTI VERNICIANTI;97425580152;23-AFFIDAMENTO DIRETTO;450,00;0,00;
Z2F35A9386;2022-000291;Ordine;;EMME 3 SRL;05102470159;Setacci mulino progetto 2;Attrezzature da laboratorio, ottiche e di precisione.;10/03/2022;10/03/2022;659,00;LAB. SOSTANZE GRASSE, DERIVATI E TECNOLOGIE OLEARIE;97425580152;23-AFFIDAMENTO DIRETTO;659,00;0,00;
ZAE35A946B;2022-000292;Ordine;;COLAVER S.R.L.;05099780156;Materiale laboratorio;Attrezzature da laboratorio, ottiche e di precisione.;10/03/2022;10/03/2022;5.608,00;LABORATORIO CARTA;97425580152;23-AFFIDAMENTO DIRETTO;5.608,00;0,00;
Z1235A967E;2022-000293;Ordine;;VWR INTERNATIONAL SRL;12864800151;"std COC cod. 99114.230
std COC cod. 99150.001
costi supplementari";Attrezzature da laboratorio, ottiche e di precisione.;11/03/2022;11/03/2022;534,00;LAB. LUBRIFICANTI;97425580152;23-AFFIDAMENTO DIRETTO;534,00;0,00;
Z7435AADF7;2022-000294;Ordine;;ALFACHEM S.R.L.;11335430150;Materiale di consumo tra cui tamponi pH e reattivo T.B.N. - Fornitore consigliato Reagecon;Attrezzature da laboratorio, ottiche e di precisione.;14/03/2022;14/03/2022;201,00;LABORATORIO ANALISI;97425580152;23-AFFIDAMENTO DIRETTO;201,00;0,00;
Z7935AB04B;2022-000295;Ordine;;METROHM ITALIANA S.R.L.;11073590157;vials metrohm;Servizi di riparazione e manutenzione di attrezzature da laboratorio;11/03/2022;11/03/2022;312,00;LAB. LUBRIFICANTI;97425580152;23-AFFIDAMENTO DIRETTO;332,00;20,00;
 Z2235AB642;2022-000296;Ordine;;EUROPEAN TECHNOLOGY S.R.L.;00840600191;Pensky Martens, richiesta di unico cespite;Attrezzature da laboratorio, ottiche e di precisione.;14/03/2022;14/03/2022;17.000,00;LAB. LUBRIFICANTI;97425580152;23-AFFIDAMENTO DIRETTO;17.000,00;0,00;
Z8B35AC4D5;2022-000298;Ordine;;EXACTA + OPTECH LABCENTER S.P.A.;01022690364;reagenti;Sostanze chimiche;21/03/2022;21/03/2022;1.324,08;Facility Management;97425580152;23-AFFIDAMENTO DIRETTO;1.288,08;-36,00;
ZC635AC9F3;2022-000299;Ordine;;PIERINO FAVINI;FVNPRN53B11F205A;Lavaggio camici;Servizi di movimentazione, magazzinaggio e Servizi affini;31/01/2022;31/01/2022;1.062,34;Facility Management;97425580152;23-AFFIDAMENTO DIRETTO;3.000,00;1.937,66;
ZF535B1B40;2022-000302;Ordine;;MERCK LIFE SCIENCE S.R.L.;13209130155;KOH etanolica 0.5M;Attrezzature da laboratorio, ottiche e di precisione.;07/03/2022;07/03/2022;310,80;LAB. SOSTANZE GRASSE, DERIVATI E TECNOLOGIE OLEARIE;97425580152;23-AFFIDAMENTO DIRETTO;310,80;0,00;
Z9835B1E9E;2022-000303;Ordine;;EUROPEAN TECHNOLOGY S.R.L.;00840600191;std visc + lamine rame;Attrezzature da laboratorio, ottiche e di precisione.;14/03/2022;14/03/2022;819,41;LAB. LUBRIFICANTI;97425580152;23-AFFIDAMENTO DIRETTO;819,41;0,00;
Z3235B2185;2022-000304;Ordine;;ETTORE PASQUALI S.R.L.;04892610157; stufa+pompa da vuoto;Apparecchiature e atrezzature e forniture informatiche;16/03/2022;16/03/2022;4.205,00;LAB. SOSTANZE GRASSE, DERIVATI E TECNOLOGIE OLEARIE;97425580152;23-AFFIDAMENTO DIRETTO;4.205,00;0,00;Astori  00585400989
Z9835B3917;2022-000305;Ordine;;ATICELCA - ASS.NE TEC.ITAL.PER LA CELL.E CARTA;03669960159;Congresso annuale ATICELCA;Servizi di istruzione e formazione;16/03/2022;16/03/2022;500,00;RISORSE UMANE E ORGANIZZAZIONE;97425580152;23-AFFIDAMENTO DIRETTO;500,00;0,00;
Z1635B4036;2022-000308;Ordine;;AGILENT TECHNOLOGIES ITALIA SPA;12785290151;parte di ricambio flussimetro off.n. 3912245 del 21/03/2022;Servizi di riparazione e manutenzione di attrezzature da laboratorio;10/03/2022;10/03/2022;215,20;LABORATORIO EMISSIONI;97425580152;23-AFFIDAMENTO DIRETTO;215,20;0,00;
Z3635B539F;2022-000309;Ordine;;METROHM ITALIANA S.R.L.;11073590157;Materiale di consumo Metrohm tra cui burette, pistone, elettrodo;Attrezzature da laboratorio, ottiche e di precisione.;14/03/2022;14/03/2022;1.429,00;LABORATORIO ANALISI;97425580152;23-AFFIDAMENTO DIRETTO;1.429,00;0,00;
Z5735B55A7;2022-000310;Ordine;;VWR INTERNATIONAL SRL;12864800151;"Materiale di consumo  - tra cui provette e matracci per laboratorio Grezzi.
";Attrezzature da laboratorio, ottiche e di precisione.;16/03/2022;16/03/2022;389,88;LABORATORIO ANALISI;97425580152;23-AFFIDAMENTO DIRETTO;389,88;0,00;
Z1435B3BC0;2022-000311;Ordine;;PHENOMENEX SRL;02691021204;"colonna steroli Phenomenex
";Attrezzature da laboratorio, ottiche e di precisione.;14/03/2022;14/03/2022;1.372,00;LAB. SOSTANZE GRASSE, DERIVATI E TECNOLOGIE OLEARIE;97425580152;23-AFFIDAMENTO DIRETTO;1.372,00;0,00;
Z7935BE71A;2022-000315;Ordine;;COLAVER S.R.L.;05099780156;Materiale per laboratorio Grezzi - Lampade Sekurmeker Fornitore consigliato: Colaver;Attrezzature da laboratorio, ottiche e di precisione.;16/03/2022;16/03/2022;568,10;LABORATORIO ANALISI;97425580152;23-AFFIDAMENTO DIRETTO;568,10;0,00;
Z0E35BF858;2022-000316;Ordine;;TESTO S.P.A.;10498780153;cella O2;Servizi di riparazione e manutenzione di attrezzature da laboratorio;18/03/2022;18/03/2022;137,90;LABORATORIO EMISSIONI;97425580152;23-AFFIDAMENTO DIRETTO;137,90;0,00;
Z1A35BF8A3;2022-000317;Ordine;;REDOXME AB;SE559021180001;elettrodo;Servizi di riparazione e manutenzione di attrezzature da laboratorio;15/03/2022;15/03/2022;0,00;LAB. PRODOTTI VERNICIANTI;97425580152;23-AFFIDAMENTO DIRETTO;2.770,00;2.770,00;
Z4735C00D8;2022-000318;Ordine;;ETTORE PASQUALI S.R.L.;04892610157;guanti anticalore- colonna incamiciata;"Indumenti e calzature ad uso professionale, speciale e accessori; Attrezzature da laboratorio, ottiche e di precisione.";21/03/2022;21/03/2022;253,40;"Facility Management; LAB. SOSTANZE GRASSE, DERIVATI E TECNOLOGIE OLEARIE";97425580152;23-AFFIDAMENTO DIRETTO;253,40;0,00;
ZEE35C1362;2022-000319;Ordine;;C.R.C. CENTRO RICERCHE CHIMICHE SRL;01961120175;prove analitiche cianuri;Servizi di prove tecniche, analisi, di laboratorio e relativa consulenza;22/03/2022;22/03/2022;560,00;LAB. PRODOTTI VERNICIANTI;97425580152;23-AFFIDAMENTO DIRETTO;560,00;0,00;
ZE335C29E9;2022-000320;Ordine;;MERCK LIFE SCIENCE S.R.L.;13209130155;pancreatina;Attrezzature da laboratorio, ottiche e di precisione.;15/03/2022;15/03/2022;147,40;LAB. PRODOTTI VERNICIANTI;97425580152;23-AFFIDAMENTO DIRETTO;147,40;0,00;
Z8635C2B51;2022-000321;Ordine;;MERCK LIFE SCIENCE S.R.L.;13209130155;RBS(R) 25 CONCENTRATE;Attrezzature da laboratorio, ottiche e di precisione.;17/03/2022;17/03/2022;392,00;LAB. LUBRIFICANTI;97425580152;23-AFFIDAMENTO DIRETTO;392,00;0,00;
Z4935C4AEB;2022-000323;Ordine;;L.M.P. SRL;05697910585;Analisi in subappalto a L.M.P. per n6 campioni come da offerta n. 044/22/ML;Servizi di prove tecniche, analisi, di laboratorio e relativa consulenza;24/03/2022;24/03/2022;360,00;LABORATORIO ANALISI;97425580152;23-AFFIDAMENTO DIRETTO;360,00;0,00;
ZF2357CC4C;2022-000328;Ordine;;CEM SRL;02098060169;"Muffola a Microonde_
piano investimenti 2022";Attrezzature da laboratorio, ottiche e di precisione.;04/03/2022;04/03/2022;15.660,00;LAB. COSMETICA E DETERGENZA;97425580152;23-AFFIDAMENTO DIRETTO;15.660,00;0,00;
ZD235C6CE7;2022-000329;Ordine;;POWERCOM EUROPE SRL;02811260237;UPS_Powercom Europe;Attrezzature da laboratorio, ottiche e di precisione.;16/03/2022;16/03/2022;860,00;CROMATOGRAFIA;97425580152;23-AFFIDAMENTO DIRETTO;860,00;0,00;
Z9835C6DF0;2022-000330;Ordine;;EXACTA + OPTECH LABCENTER S.P.A.;01022690364;CRM Setaflash;Attrezzature da laboratorio, ottiche e di precisione.;28/03/2022;28/03/2022;353,40;LAB. SICUREZZA INDUSTRIALE;97425580152;23-AFFIDAMENTO DIRETTO;353,40;0,00;
Z6A35C9B63;2022-000331;Ordine;;MERCK LIFE SCIENCE S.R.L.;13209130155;Manutenzione correttiva strumentazione  come da preventivo R-5269448.1;Servizi di riparazione e manutenzione di attrezzature da laboratorio;17/03/2022;17/03/2022;1.841,28;LABORATORIO ANALISI;97425580152;23-AFFIDAMENTO DIRETTO;1.841,28;0,00;
Z4535CD802;2022-000332;Ordine;;Linetronic Technologies SA;CHE100921403;strumento di filtrabilit� oli;Attrezzature da laboratorio, ottiche e di precisione.;25/03/2022;25/03/2022;0,00;LAB. LUBRIFICANTI;97425580152;23-AFFIDAMENTO DIRETTO;11.600,00;11.600,00;
Z9834CE332;2022-000333;Ordine;;"VEOLIA WATER TECHNOLOGIES ITALIA SPA		";03129770156;VEOLIA DEMINERALIZZATORE MEDICA PRO;Attrezzature da laboratorio, ottiche e di precisione.;30/03/2022;30/03/2022;19.710,22;Facility Management;97425580152;23-AFFIDAMENTO DIRETTO;19.710,22;0,00;
Z0435CDB14;2022-000334;Ordine;;ETTORE PASQUALI S.R.L.;04892610157;CONTENITORE DEWAR;Attrezzature da laboratorio, ottiche e di precisione.;25/03/2022;25/03/2022;1.155,00;LAB. SOSTANZE GRASSE, DERIVATI E TECNOLOGIE OLEARIE;97425580152;23-AFFIDAMENTO DIRETTO;1.155,00;0,00;
Z8635CDEBE;2022-000337;Ordine;;CENTER FOR TESTMATERIALS B.V.;NL805146726B01;monitor SSOG 17-18 CFT;Attrezzature da laboratorio, ottiche e di precisione.;17/03/2022;17/03/2022;2.069,00;LAB. COSMETICA E DETERGENZA;97425580152;23-AFFIDAMENTO DIRETTO;2.069,00;0,00;
Z3E35CF28E;2022-000338;Ordine;;COMPALAB;FR90799855721;Iscrzione Circuiti di correlazione vernici;Servizi di prove tecniche, analisi, di laboratorio e relativa consulenza;25/03/2022;25/03/2022;0,00;LAB. PRODOTTI VERNICIANTI;97425580152;23-AFFIDAMENTO DIRETTO;1.310,00;1.310,00;
Z0135CFB9B;2022-000339;Ordine;;UNITED PARCEL SERVICE ITALIA SRL;08537690151;UPS Spese spedizione su fornitura Linetronic Technologies;Servizi di posta e corriere;23/03/2022;23/03/2022;0,00;LAB. LUBRIFICANTI;97425580152;23-AFFIDAMENTO DIRETTO;525,40;525,40;
 Z0A35CFFFE;2022-000340;Ordine;;GLOBOPHARMA SRL;04611830151;panreac miscela  codice prodotto 124856.1621;"Sostanze chimiche; Attrezzature da laboratorio, ottiche e di precisione.";30/03/2022;30/03/2022;2.212,20;Facility Management;97425580152;23-AFFIDAMENTO DIRETTO;2.212,20;0,00;
0000000000;2022-000341;Ordine;;FOSFA INTERNATIONAL;GB 379299285;FOSFA FT. 20491 Quota associativa 2022;Quote associative e Fondo Perequativo;24/03/2022;24/03/2022;691,68;DIREZIONE GENERALE;97425580152;23-AFFIDAMENTO DIRETTO;691,68;0,00;
ZBF35CF9DF;2022-000341;Contratto;;THERMO FISHER SCIENTIFIC S.P.A.;07817950152;HPLC Thermo Fisher - Laboratorio soatanze grasse - Oli e Grassi -;Attrezzature da laboratorio, ottiche e di precisione.;07/04/2022;31/12/2022;36.021,58;LAB. SOSTANZE GRASSE, DERIVATI E TECNOLOGIE OLEARIE;97425580152;23-AFFIDAMENTO DIRETTO;36.021,58;0,00;
9175922261;2022-000342;Contratto;;EUROPEAN TECHNOLOGY S.R.L.;00840600191;Viscosimetro automatico;Attrezzature da laboratorio, ottiche e di precisione.;07/04/2022;31/12/2022;45.659,00;LABORATORIO ANALISI;97425580152;23-AFFIDAMENTO DIRETTO;45.659,00;0,00;
Z6A35D15F2;2022-000343;Ordine;;FISHER SCIENTIFIC SAS;08948430965;TripleQuadrupoleCalibrationSol_ThermoFisher;Attrezzature da laboratorio, ottiche e di precisione.;23/03/2022;23/03/2022;0,00;CROMATOGRAFIA;97425580152;23-AFFIDAMENTO DIRETTO;276,00;276,00;"FISHER SCIENTIFIC SAS 08948430965; VWR INTERNATIONAL SRL 12864800151"
Z99356BF31;2022-000344;Ordine;;EN.CO. S.R.L.;00481870277;Incubatore da 750 litri per prove di biodegradabilit� - Laboratorio Carta;Attrezzature da laboratorio, ottiche e di precisione.;02/03/2022;02/03/2022;10.466,00;LABORATORIO CARTA;97425580152;23-AFFIDAMENTO DIRETTO;10.466,00;0,00;
Z7635D359D;2022-000345;Ordine;;MESDAN SPA;00556520179;Consumabili per Skin Model;Attrezzature da laboratorio, ottiche e di precisione.;17/03/2022;17/03/2022;272,45;LABORATORIO SETA;97425580152;23-AFFIDAMENTO DIRETTO;272,45;0,00;
Z582E40561;2022-000346;Ordine;;NIPPON GASES INDUSTRIAL SRL;08418350966;bombole elio;Prodotti derivati dal petrolio;28/03/2022;28/03/2022;6.982,31;"RESPONSABILE AREA SSC; RESPONSABILE AREA SSOG";97425580152;23-AFFIDAMENTO DIRETTO;6.982,31;0,00;
ZF435D305B;2022-000349;Ordine;;ARTI GRAFICHE CARDAMONE S.R.L.;00411600794;stampa leaflet per attivit� Innovhub;Servizi di stampa e affini - Servizi connessi alla stampa;28/03/2022;28/03/2022;1.880,00;PROGETTI E SERVIZI;97425580152;23-AFFIDAMENTO DIRETTO;1.880,00;0,00;
Z5F35D86AD;2022-000350;Ordine;;MICROCONTROL N.T. SRL;11714560155;preparativa e manutenzione microscopio;"Servizi di riparazione e manutenzione di attrezzature da laboratorio; Servizi di prove tecniche, analisi, di laboratorio e relativa consulenza";10/03/2022;10/03/2022;1.200,00;LAB. PRODOTTI VERNICIANTI;97425580152;23-AFFIDAMENTO DIRETTO;1.200,00;0,00;
Z1435D8808;2022-000351;Ordine;;DALLAGIOVANNA E C.;10146280960;manutenzione straordinaria ascensore cons.542/2022;Servizi di riparazione e manutenzione di impianti di edifici;28/03/2022;28/03/2022;339,00;Facility Management;97425580152;23-AFFIDAMENTO DIRETTO;339,00;0,00;
Z6035D8BD9;2022-000352;Ordine;;PACK SERVICES SRL;04076240961;barattoli di latta;Attrezzature da laboratorio, ottiche e di precisione.;15/03/2022;15/03/2022;1.181,62;LAB. PRODOTTI VERNICIANTI;97425580152;23-AFFIDAMENTO DIRETTO;1.181,62;0,00;PACK SERVICES SRL 04076240961
ZC935D9585;2022-000353;Ordine;;JULABO ITALIA SRL;13300900159;olio julabo;Attrezzature da laboratorio, ottiche e di precisione.;29/03/2022;29/03/2022;279,00;LAB. PRODOTTI VERNICIANTI;97425580152;23-AFFIDAMENTO DIRETTO;279,00;0,00;
ZD035D2E7F;2022-000354;Ordine;;ARTI GRAFICHE CARDAMONE S.R.L.;00411600794;progettaz. grafica leaflet;Servizi di stampa e affini - Servizi connessi alla stampa;31/03/2022;31/03/2022;945,00;PROGETTI E SERVIZI;97425580152;23-AFFIDAMENTO DIRETTO;945,00;0,00;
Z3E35D9841;2022-000355;Ordine;;MERCK LIFE SCIENCE S.R.L.;13209130155;reagenti fosfine da via;Attrezzature da laboratorio, ottiche e di precisione.;29/03/2022;29/03/2022;167,70;LAB. PRODOTTI VERNICIANTI;97425580152;23-AFFIDAMENTO DIRETTO;167,72;0,02;
ZC435D9FF0;2022-000356;Ordine;;TCI EUROPE N.V.;BE0467386679;Erucamide_TCI_Europe_NV;Attrezzature da laboratorio, ottiche e di precisione.;28/03/2022;28/03/2022;30,00;CROMATOGRAFIA;97425580152;23-AFFIDAMENTO DIRETTO;30,00;0,00;"TCI EUROPE N.V. BE0467386679; MERCK LIFE SCIENCE S.R.L. 13209130155"
Z8735DB0D5;2022-000359;Ordine;;ETTORE PASQUALI S.R.L.;04892610157;manutenzioni;Servizi di riparazione e manutenzione di attrezzature da laboratorio;28/03/2022;28/03/2022;205,00;CROMATOGRAFIA;97425580152;23-AFFIDAMENTO DIRETTO;205,00;0,00;
ZBE35B34A0;2022-000360;Ordine;;TECNO OFFICE GLOBAL S.R.L.;01641800550;LICENZE MICROSOFT OFFICE HOME AND BUSINESS 20;Pacchetti software e sistemi di informazione;31/03/2022;31/03/2022;4.212,50;Facility Management;97425580152;23-AFFIDAMENTO DIRETTO;4.212,50;0,00;"COMPUTER EXPERIENCE SNC 06015901215; FERRARI GIOVANNI COMPUTERS SRL 02138390360; ZEMA SRLs 04179650249; TECNO OFFICE GLOBAL S.R.L. 01641800550; STEMA SRL 04160880243"
ZA235DE536;2022-000361;Ordine;;TRASPORTI ZINGALI SRL;02064240183;trasporto campioni.;Servizi di posta e corriere;25/03/2022;25/03/2022;0,00;LABORATORIO EMISSIONI;97425580152;23-AFFIDAMENTO DIRETTO;110,00;110,00;
Z8735DE6C2;2022-000362;Ordine;;SIAD S.P.A.;00209070168;iscrizione circuito GAS-GASQ-2022;Servizi di prove tecniche, analisi, di laboratorio e relativa consulenza;28/03/2022;28/03/2022;2.350,00;LABORATORIO EMISSIONI;97425580152;23-AFFIDAMENTO DIRETTO;4.700,00;2.350,00;
ZC735DE466;2022-000363;Ordine;;SRA INSTRUMENTS ITALIA S.P.A.;12844250154;Acquisto PC strumentale SRA;Apparecchiature e atrezzature e forniture informatiche;25/03/2022;25/03/2022;1.240,00;CROMATOGRAFIA;97425580152;23-AFFIDAMENTO DIRETTO;1.240,00;0,00;
ZA135DFB7E;2022-000364;Ordine;;ASTMINTERNATIONAL;US231352024;ASTM FT. GEN.-FEB.;Servizi di prove tecniche, analisi, di laboratorio e relativa consulenza;01/04/2022;01/04/2022;0,00;NORMAZIONE;97425580152;23-AFFIDAMENTO DIRETTO;146,48;146,48;
Z7D35DFB98;2022-000365;Ordine;;ISO - INTERNATIONAL ORGANIZATIONFOR STANDARDIZATION;CH105816788;ISO Acquisto norme FT. GEN.-FEB.;Servizi di prove tecniche, analisi, di laboratorio e relativa consulenza;01/04/2022;01/04/2022;0,00;NORMAZIONE;97425580152;23-AFFIDAMENTO DIRETTO;73,58;73,58;
Z2935E2A91;2022-000366;Ordine;;SERVICE T.L. SRL;06687770153;Frits_ServiceTL;Attrezzature da laboratorio, ottiche e di precisione.;30/03/2022;30/03/2022;250,00;CROMATOGRAFIA;97425580152;23-AFFIDAMENTO DIRETTO;250,00;0,00;
ZC735E2CF4;2022-000367;Ordine;;DEUTSCHE GESELLSCHAFT FUR FETTWISSENSCHHAFT;;Iscrizione 28th DGF PT 2022;Servizi di prove tecniche, analisi, di laboratorio e relativa consulenza;17/03/2022;17/03/2022;480,00;CROMATOGRAFIA;97425580152;23-AFFIDAMENTO DIRETTO;480,00;0,00;
Z8B35E315F;2022-000368;Ordine;;LA STILOGRAFICA SRL;10971340152;Inchiostro Pelikan 4001;Attrezzature da laboratorio, ottiche e di precisione.;11/03/2022;11/03/2022;0,00;LABORATORIO CARTA;97425580152;23-AFFIDAMENTO DIRETTO;140,16;140,16;
Z8A35E301F;2022-000369;Ordine;;IMCD ITALIA SPA;03525700153;bresle kit;Attrezzature da laboratorio, ottiche e di precisione.;31/03/2022;31/03/2022;538,00;LAB. PRODOTTI VERNICIANTI;97425580152;23-AFFIDAMENTO DIRETTO;538,00;0,00;
9188487358;2022-000370;Contratto;;LECO ITALY S.R.L.;10123960154;Analizzatore CHN - Settore analisi chimico/fisiche Area Combustibili;Attrezzature da laboratorio, ottiche e di precisione.;14/04/2022;31/12/2022;65.000,00;LABORATORIO ANALISI;97425580152;23-AFFIDAMENTO DIRETTO;65.000,00;0,00;
ZCF35E3308;2022-000370;Ordine;;MERCK LIFE SCIENCE S.R.L.;13209130155;DMA;Attrezzature da laboratorio, ottiche e di precisione.;29/03/2022;29/03/2022;299,00;LABORATORIO SETA;97425580152;23-AFFIDAMENTO DIRETTO;299,00;0,00;
Z1935E39DD;2022-000371;Ordine;;RUPEA SRL;05710610964;Olio motore;Servizi di riparazione e manutenzione di attrezzature da laboratorio;18/01/2022;18/01/2022;0,00;LAB. PRODOTTI VERNICIANTI;97425580152;23-AFFIDAMENTO DIRETTO;502,00;502,00;
Z4835E4F5B;2022-000372;Ordine;;ETTORE PASQUALI S.R.L.;04892610157;Capsule in porcellana e Pinzette ( non a contratto );Attrezzature da laboratorio, ottiche e di precisione.;23/03/2022;23/03/2022;1.147,25;Facility Management;97425580152;23-AFFIDAMENTO DIRETTO;1.147,25;0,00;
Z2D35E54D3;2022-000375;Ordine;;AMAZON EU SARL SUCCURSALE GERMANIA;DE814584193;AMAZON EU S.a r.l. Deutschland;Attrezzature da laboratorio, ottiche e di precisione.;31/03/2022;31/03/2022;0,00;LAB. PRODOTTI VERNICIANTI;97425580152;23-AFFIDAMENTO DIRETTO;59,19;59,19;
Z5635E570D;2022-000376;Ordine;;AMAZON EU SARL SUCCURSALE POLONIA;5262907815;attrezzatura da laboratorio;Attrezzature da laboratorio, ottiche e di precisione.;31/03/2022;31/03/2022;0,00;LAB. PRODOTTI VERNICIANTI;97425580152;23-AFFIDAMENTO DIRETTO;392,20;392,20;
Z4C35E5E29;2022-000378;Ordine;;UNI - ENTE NAZIONALE ITALIANO DI UNIFICAZIONE;80037830157;norme;Servizi di prove tecniche, analisi, di laboratorio e relativa consulenza;05/04/2022;05/04/2022;0,00;NORMAZIONE;97425580152;23-AFFIDAMENTO DIRETTO;204,00;204,00;
8665765F7D;2022-000379;Ordine;;ETTORE PASQUALI S.R.L.;04892610157;vetreria ;Attrezzature da laboratorio, ottiche e di precisione.;06/04/2022;06/04/2022;2.524,50;Facility Management;97425580152;33-PROCEDURA NEGOZIATA PER AFFIDAMENTI SOTTO SOGLIA;2.563,50;39,00;
Z2B35EF70B;2022-000379;Contratto;;THERMO FISHER SCIENTIFIC S.P.A.;07817950152;Gascromatografo GC Trace - Lab Gascromatografia - Oli e grassi;Attrezzature da laboratorio, ottiche e di precisione.;15/04/2022;31/12/2022;27.550,52;CROMATOGRAFIA;97425580152;23-AFFIDAMENTO DIRETTO;27.550,52;0,00;
ZAA35E6EAC;2022-000380;Ordine;;ABACK SRL;11083140969;aback sistemazione cancello ssog;Servizi di riparazione e manutenzione di impianti di edifici;14/03/2022;14/03/2022;0,00;Facility Management;97425580152;23-AFFIDAMENTO DIRETTO;1.975,00;1.975,00;
ZB035DB40A;2022-000381;Ordine;;Ipack Ima Srl;09243350965;Partecipazione a Fiera IPACK IMA;Servizi di organizzazione di mostre, fiere e congressi -Servizi fotografici e Servizi ausiliari;09/02/2022;09/02/2022;5.067,92;LABORATORIO CARTA;97425580152;23-AFFIDAMENTO DIRETTO;5.590,00;522,08;
Z4235E8E73;2022-000382;Ordine;;VALSECCHI CANCELLERIA S.R.L.;09521810961;mascherine ffp2;Indumenti e calzature ad uso professionale, speciale e accessori;05/04/2022;05/04/2022;990,00;Facility Management;97425580152;23-AFFIDAMENTO DIRETTO;990,00;0,00;"CAST ITALIA S.R.L. 12439940151; VALSECCHI CANCELLERIA S.R.L. 09521810961; POLONORD ADESTE SRL 02052230394"
Z4B35E35B1;2022-000386;Ordine;;Amazon EU SARL Succursale Italiana;08973230967;AMAZON Succ. Italiana;Attrezzature da laboratorio, ottiche e di precisione.;06/04/2022;06/04/2022;0,00;LAB. PRODOTTI VERNICIANTI;97425580152;23-AFFIDAMENTO DIRETTO;190,53;190,53;
Z8B35ED80D;2022-000387;Ordine;;ETTORE PASQUALI S.R.L.;04892610157;piastra agitatore.;Attrezzature da laboratorio, ottiche e di precisione.;01/04/2022;01/04/2022;995,00;LAB. LUBRIFICANTI;97425580152;23-AFFIDAMENTO DIRETTO;995,00;0,00;
Z7535EDDE3;2022-000388;Ordine;;IMCD ITALIA SPA;03525700153;manutenzione imcd 09 03 2022;Servizi di riparazione e manutenzione di attrezzature da laboratorio;30/03/2022;30/03/2022;2.278,00;LAB. PRODOTTI VERNICIANTI;97425580152;23-AFFIDAMENTO DIRETTO;2.278,00;0,00;
Z7535F2B58;2022-000389;Ordine;;DADO LAB SRL;08356080963;box refrigerato diluitore;Attrezzature da laboratorio, ottiche e di precisione.;04/03/2022;04/03/2022;13.500,00;LABORATORIO EMISSIONI;97425580152;23-AFFIDAMENTO DIRETTO;13.500,00;0,00;
ZE735F4430;2022-000390;Ordine;;CHEBIOS SRL;00391470580;Custom_Ftalati_PT_Innovhub2022;Attrezzature da laboratorio, ottiche e di precisione.;04/04/2022;04/04/2022;399,49;CROMATOGRAFIA;97425580152;23-AFFIDAMENTO DIRETTO;399,49;0,00;"LGC STANDARDS SRL 03948960962; CHEBIOS SRL 00391470580; LAB INSTRUMENTS SRL 03176570723"
Z8235F63CB;2022-000391;Ordine;;L.M.P. SRL;05697910585;Analisi in subappalto a L.M.P. per n 5 campioni come da offerta n. 044/22/ML.;Servizi di prove tecniche, analisi, di laboratorio e relativa consulenza;06/04/2022;06/04/2022;300,00;LABORATORIO ANALISI;97425580152;23-AFFIDAMENTO DIRETTO;300,00;0,00;
0000000000;2022-000392;Ordine;;LOMBARDY GREEN CHEMISTRY ASSOCIATION;97676070150;LGCA Quota associativa 2022;Quote associative e Fondo Perequativo;08/04/2022;08/04/2022;0,00;DIREZIONE GENERALE;97425580152;23-AFFIDAMENTO DIRETTO;250,00;250,00;
ZAA35F8EEE;2022-000393;Ordine;;AS INSTRUMENTS SRL;11552950013;Box_Insonorizzante_Pompe_Edwards-ASinstruments;Attrezzature da laboratorio, ottiche e di precisione.;06/04/2022;06/04/2022;1.970,00;CROMATOGRAFIA;97425580152;23-AFFIDAMENTO DIRETTO;1.970,00;0,00;
ZC135802BE;2022-000394;Ordine;;AGILENT TECHNOLOGIES ITALIA SPA;12785290151;Acquisto up-grade GC Agilent;Attrezzature da laboratorio, ottiche e di precisione.;04/03/2022;04/03/2022;14.939,17;CROMATOGRAFIA;97425580152;23-AFFIDAMENTO DIRETTO;14.939,17;0,00;
ZAA35FAA62;2022-000396;Ordine;;NOCIKA SAS;FR65434547634;Batterie per strumentazione PEMS;Servizi di riparazione e manutenzione di attrezzature da laboratorio;07/04/2022;07/04/2022;0,00;LABORATORIO EMISSIONI;97425580152;23-AFFIDAMENTO DIRETTO;1.246,79;1.246,79;
ZCA35FAD20;2022-000397;Ordine;;EUROPEAN TECHNOLOGY S.R.L.;00840600191;vessel x rilascio - H2O mare;"Attrezzature da laboratorio, ottiche e di precisione.; Servizi di riparazione e manutenzione di attrezzature da laboratorio";01/04/2022;01/04/2022;2.713,87;LAB. LUBRIFICANTI;97425580152;23-AFFIDAMENTO DIRETTO;2.713,87;0,00;
Z6F35FB203;2022-000398;Ordine;;ETTORE PASQUALI S.R.L.;04892610157;articoli protezione criogenica;Indumenti e calzature ad uso professionale, speciale e accessori;06/04/2022;06/04/2022;1.133,50;Facility Management;97425580152;23-AFFIDAMENTO DIRETTO;1.133,50;0,00;
ZDE35FB670;2022-000399;Ordine;;IMCD ITALIA SPA;03525700153;consuntivo imcd 03 03 2022;Servizi di riparazione e manutenzione di attrezzature da laboratorio;28/03/2022;28/03/2022;2.859,40;LAB. PRODOTTI VERNICIANTI;97425580152;23-AFFIDAMENTO DIRETTO;2.859,40;0,00;
ZA535FC578;2022-000400;Ordine;;ULTRAPROMEDIA SRL;10324241008;protezione tablet panel test;Attrezzature da laboratorio, ottiche e di precisione.;24/03/2022;24/03/2022;283,00;LAB. SOSTANZE GRASSE, DERIVATI E TECNOLOGIE OLEARIE;97425580152;23-AFFIDAMENTO DIRETTO;283,00;0,00;
ZA535FC578;2022-000401;Ordine;;ULTRAPROMEDIA SRL;10324241008;Adattatori ingressi Usb C femmina/USB A maschio;Macchine e apparecchi, attrezzature e articoli di consumo elettrici, illuminazione;07/04/2022;07/04/2022;45,80;Facility Management;97425580152;23-AFFIDAMENTO DIRETTO;45,80;0,00;
Z8E3601D65;2022-000403;Ordine;;IMCD ITALIA SPA;03525700153;consuntivo imcd 15 02 2022;Servizi di riparazione e manutenzione di attrezzature da laboratorio;01/04/2022;01/04/2022;2.754,85;LAB. PRODOTTI VERNICIANTI;97425580152;23-AFFIDAMENTO DIRETTO;2.754,85;0,00;
Z2D3601FAF;2022-000404;Ordine;;F.LLI GALLI G. & P: SNC DI GALLI RENATO & C.;01459040158;riparazione fll.i galli;Servizi di riparazione e manutenzione di attrezzature da laboratorio;30/03/2022;30/03/2022;3.627,20;LAB. PRODOTTI VERNICIANTI;97425580152;23-AFFIDAMENTO DIRETTO;3.627,20;0,00;
ZE135FF6FA;2022-000405;Ordine;;CIEMME SRL;12218890155;Gadgets Innovhub per fiera;Servizi pubblicitari e di marketing;12/04/2022;12/04/2022;4.070,00;PROGETTI E SERVIZI;97425580152;23-AFFIDAMENTO DIRETTO;4.070,00;0,00;"PROMO 77 DIMALAGUTI ELEONORA E C. SAS 01938331202; CIEMME SRL 12218890155"
ZA535FC578;2022-000407;Ordine;;ULTRAPROMEDIA SRL;10324241008;Adattatore e Cuffie per PC;Macchine e apparecchi, attrezzature e articoli di consumo elettrici, illuminazione;05/04/2022;05/04/2022;51,16;Facility Management;97425580152;23-AFFIDAMENTO DIRETTO;51,16;0,00;
ZC735DE466;2022-000411;Ordine;;SRA INSTRUMENTS ITALIA S.P.A.;12844250154;Acquisto PC strumentale SRA;Attrezzature da laboratorio, ottiche e di precisione.;07/04/2022;07/04/2022;1.305,00;CROMATOGRAFIA;97425580152;23-AFFIDAMENTO DIRETTO;1.305,00;0,00;
ZD9360705C;2022-000413;Ordine;;FOOD CONTACT CENTER S.R.L.;01898850472;Analisi laboratorio esterne;Servizi di prove tecniche, analisi, di laboratorio e relativa consulenza;08/04/2022;08/04/2022;560,00;LABORATORIO CARTA;97425580152;23-AFFIDAMENTO DIRETTO;560,00;0,00;
0000000000;2022-000414;Ordine;;EDANA;BE0411532101;EDANA Quota associativa 2022 Invoice MS/2022/123;Quote associative e Fondo Perequativo;13/04/2022;13/04/2022;2.500,00;DIREZIONE GENERALE;97425580152;23-AFFIDAMENTO DIRETTO;2.500,00;0,00;
Z5B360759E;2022-000415;Ordine;;MERCK LIFE SCIENCE S.R.L.;13209130155;AcCarnosico_;Attrezzature da laboratorio, ottiche e di precisione.;12/04/2022;12/04/2022;0,00;CROMATOGRAFIA;97425580152;23-AFFIDAMENTO DIRETTO;260,00;260,00;
Z9D360866D;2022-000416;Ordine;;IMCD ITALIA SPA;03525700153;sale I.M.C.D;Sostanze chimiche;14/04/2022;14/04/2022;4.700,00;Facility Management;97425580152;23-AFFIDAMENTO DIRETTO;4.700,00;0,00;
Z833608F1B;2022-000421;Ordine;;AUSILIARI TESSILI S.R.L.;06004870157;standard chip 9;Attrezzature da laboratorio, ottiche e di precisione.;13/04/2022;13/04/2022;660,00;LAB. PRODOTTI VERNICIANTI;97425580152;23-AFFIDAMENTO DIRETTO;660,00;0,00;
Z6F359DEB8;2022-000422;Ordine;;ACQUATI GIUSEPPE S.R.L.;00658920152;Kit aggiornamento Software Dinamometro;Attrezzature da laboratorio, ottiche e di precisione.;09/03/2022;09/03/2022;8.500,00;LABORATORIO CARTA;97425580152;23-AFFIDAMENTO DIRETTO;8.500,00;0,00;
Z932C7181D;2022-000423;Ordine;;ABACK SRL;11083140969;aback proroga contratto;Servizi di riparazione e manutenzione di impianti di edifici;24/02/2022;24/02/2022;354,48;Facility Management;97425580152;23-AFFIDAMENTO DIRETTO;354,48;0,00;
Z153610E55;2022-000429;Ordine;;VWR INTERNATIONAL SRL;12864800151;Litio Bromuro extra puro - Cod. 1.05669.1000;Attrezzature da laboratorio, ottiche e di precisione.;08/04/2022;08/04/2022;863,00;LABORATORIO SETA;97425580152;23-AFFIDAMENTO DIRETTO;863,00;0,00;
ZD9361102D;2022-000430;Ordine;;COLAVER S.R.L.;05099780156;"Piastre Petri in PS  60 con alette
ventilaz. pz 1000
Codice: 12KL0368";Attrezzature da laboratorio, ottiche e di precisione.;08/04/2022;08/04/2022;255,00;LABORATORIO SETA;97425580152;23-AFFIDAMENTO DIRETTO;255,00;0,00;
ZF236121B3;2022-000431;Ordine;;METTLER TOLEDO S.P.A.;00718330152;Crogioli per test DSC;Servizi di riparazione e manutenzione di attrezzature da laboratorio;20/04/2022;20/04/2022;2.173,00;LAB. SICUREZZA INDUSTRIALE;97425580152;23-AFFIDAMENTO DIRETTO;2.173,00;0,00;
ZBB361362C;2022-000433;Ordine;;FISHER SCIENTIFIC SAS;08948430965;PRODOTTI FISHER CHEMICAL;Sostanze chimiche;20/04/2022;20/04/2022;0,00;Facility Management;97425580152;23-AFFIDAMENTO DIRETTO;1.409,40;1.409,40;
Z3436142CF;2022-000434;Ordine;;SIAD S.P.A.;00209070168;bombole CRM-standard;Prodotti derivati dal petrolio;11/04/2022;11/04/2022;15.959,50;LABORATORIO EMISSIONI;97425580152;23-AFFIDAMENTO DIRETTO;15.764,00;-195,50;
Z153561645;2022-000439;Ordine;;CUCCHI SERGIO SRL;02353410968;contratto manutenzione caldaie gas e liquidi - anno 2024;Servizi di riparazione e manutenzione di attrezzature da laboratorio;11/04/2022;11/04/2022;2.700,00;LABORATORIO EMISSIONI;97425580152;23-AFFIDAMENTO DIRETTO;2.700,00;0,00;
ZD83615876;2022-000441;Ordine;;SIAD S.P.A.;00209070168;Acquisto bombole calibrazione per LEA - AMAi60;Prodotti derivati dal petrolio;13/04/2022;13/04/2022;1.736,40;LABORATORIO EMISSIONI;97425580152;23-AFFIDAMENTO DIRETTO;1.688,40;-48,00;
ZD0361601C;2022-000443;Ordine;;TRANAI SRL;03855290155;manutenzione muletto;Servizi di riparazione, manutenzione e affini di veicoli e attrezzature connesse;12/04/2022;12/04/2022;1.246,64;Facility Management;97425580152;23-AFFIDAMENTO DIRETTO;902,94;-343,70;
ZFA36184EC;2022-000445;Ordine;;Fedex Express Italy S.r.l;1273040129;Oneri doganali;Servizi di posta e corriere;11/04/2022;11/04/2022;10,13;LABORATORIO CARTA;97425580152;23-AFFIDAMENTO DIRETTO;10,13;0,00;
ZC83618918;2022-000446;Ordine;;IAS SOCIETA' ITALIANA DI AEROSOL;91297750373;Iscrizione convegno PM2022;Servizi di istruzione e formazione;11/04/2022;11/04/2022;680,00;RISORSE UMANE E ORGANIZZAZIONE;97425580152;23-AFFIDAMENTO DIRETTO;860,00;180,00;
Z4836190C1;2022-000447;Ordine;;VWR INTERNATIONAL SRL;12864800151;Manutenzione apparecchio VAPOURLINE;Servizi di riparazione e manutenzione di attrezzature da laboratorio;21/03/2022;21/03/2022;0,00;LABORATORIO CARTA;97425580152;23-AFFIDAMENTO DIRETTO;3.030,00;3.030,00;
Z253619316;2022-000448;Ordine;;FISHER SCIENTIFIC SAS;08948430965;consumabili;Attrezzature da laboratorio, ottiche e di precisione.;13/04/2022;13/04/2022;0,00;CROMATOGRAFIA;97425580152;23-AFFIDAMENTO DIRETTO;439,20;439,20;"FISHER SCIENTIFIC SAS 08948430965; MERCK LIFE SCIENCE S.R.L. 13209130155"
 ZCA361A516;2022-000451;Ordine;;MERCK LIFE SCIENCE S.R.L.;13209130155;Acquisto consumabili ;Attrezzature da laboratorio, ottiche e di precisione.;19/04/2022;19/04/2022;897,10;CROMATOGRAFIA;97425580152;23-AFFIDAMENTO DIRETTO;897,10;0,00;
Z4B361BEAA;2022-000452;Ordine;;SIAD S.P.A.;00209070168;messa a disposizione bombole;Prodotti derivati dal petrolio;13/04/2022;13/04/2022;764,18;RESPONSABILE AREA SSC;97425580152;23-AFFIDAMENTO DIRETTO;764,18;0,00;
0000000000;2022-000453;Ordine;;CEPICONF. EUROPEAN PAPER INDUSTRIES;;4EverGreen Subscription Membership 2022 invoice  2022076;Quote associative e Fondo Perequativo;21/04/2022;21/04/2022;15.000,00;DIREZIONE GENERALE;97425580152;23-AFFIDAMENTO DIRETTO;15.000,00;0,00;
ZBC361BDBF;2022-000454;Ordine;;TRESCAL SRL;02498930987;Taratura masse: 1 massa da 50 grammi e 2 masse da 100 grammi;Servizi di prove tecniche, analisi, di laboratorio e relativa consulenza;12/04/2022;12/04/2022;100,00;LABORATORIO SETA;97425580152;23-AFFIDAMENTO DIRETTO;100,00;0,00;
ZF4361BF1D;2022-000455;Ordine;;"IMERYS FUSED MINERALS DOMODOSSOLA S.p.A.		";01300810031;Alumina per prove di riciclabilit�;Attrezzature da laboratorio, ottiche e di precisione.;02/03/2022;02/03/2022;0,00;LABORATORIO CARTA;97425580152;23-AFFIDAMENTO DIRETTO;147,50;147,50;
ZB5361BFC8;2022-000456;Ordine;;POSTE ITALIANE SPA;97103880585;spedizioni;Servizi di posta e corriere;13/04/2022;13/04/2022;536,70;Facility Management;97425580152;23-AFFIDAMENTO DIRETTO;536,70;0,00;
 ZC0361C1C4;2022-000457;Ordine;;NEOTRON S.P.A.;03807840362;Corso di formazione Panel sensoriale;Servizi di istruzione e formazione;15/03/2022;15/03/2022;8.000,00;RISORSE UMANE E ORGANIZZAZIONE;97425580152;23-AFFIDAMENTO DIRETTO;8.000,00;0,00;
 Z2F36228DA;2022-000459;Ordine;;THERMO FISHER SCIENTIFIC S.P.A.;07817950152;Kbr Thermo fisher;Attrezzature da laboratorio, ottiche e di precisione.;20/04/2022;20/04/2022;1.128,25;LAB. PRODOTTI VERNICIANTI;97425580152;23-AFFIDAMENTO DIRETTO;1.128,25;0,00;
ZA236251A7;2022-000461;Ordine;;SIAD S.P.A.;00209070168;bombola CO2 con pescante per spillare la CO2 liquida + connettore che dalla bombola si colleghi ad un tubo da 1/8� OD (richiederlo allo stesso fornitore della bombola);Prodotti derivati dal petrolio;25/02/2022;25/02/2022;62,57;LABORATORIO EMISSIONI;97425580152;23-AFFIDAMENTO DIRETTO;123,35;60,78;
Z9D362572B;2022-000462;Ordine;;CSI S.P.A..;11360160151;Analisi laboratorio esterne;Servizi di prove tecniche, analisi, di laboratorio e relativa consulenza;08/04/2022;08/04/2022;335,00;LABORATORIO CARTA;97425580152;23-AFFIDAMENTO DIRETTO;335,00;0,00;
Z2C3629BBD;2022-000463;Ordine;;STUDIO TORTA SPA;06589950010;Rinnovo brevetti Area Seta (n. brevetto 1405249);Servizi di ricerca e sviluppo e relativi Servizi di consulenza;20/04/2022;20/04/2022;580,00;LABORATORIO SETA;97425580152;23-AFFIDAMENTO DIRETTO;580,00;0,00;
Z9B3629E34;2022-000464;Ordine;;CREA STYL SRL;08605040966;Manutenzione portoni LEA e Officina;Servizi di riparazione e manutenzione di attrezzature da laboratorio;08/04/2022;08/04/2022;790,00;LABORATORIO EMISSIONI;97425580152;23-AFFIDAMENTO DIRETTO;790,00;0,00;SACIL -HLB SRL 05017200154
Z83362A576;2022-000465;Ordine;;2 EMME SRL;00395300122;Manutenzione condizionatore sala pesatura PM;Servizi di riparazione e manutenzione di attrezzature da laboratorio;12/04/2022;12/04/2022;670,00;LABORATORIO EMISSIONI;97425580152;23-AFFIDAMENTO DIRETTO;520,00;-150,00;
Z26362CF11;2022-000468;Ordine;;ENERGY INSTITUTE;GB815205656;"Iscrizione EI DCN 2022

Iscrizione EI Derived Cetane Number / IQT Scheme (DCN/IQT) per l'anno 2022";Servizi di prove tecniche, analisi, di laboratorio e relativa consulenza;30/03/2022;30/03/2022;1.574,53;LABORATORIO ANALISI;97425580152;23-AFFIDAMENTO DIRETTO;1.600,00;25,47;
Z64362D6F4;2022-000469;Ordine;;TBT SRL;09113890967;Acquisto Traduttori di pressione CVS;Servizi di riparazione e manutenzione di attrezzature da laboratorio;21/04/2022;21/04/2022;0,00;LABORATORIO EMISSIONI;97425580152;23-AFFIDAMENTO DIRETTO;2.575,00;2.575,00;
Z68362F37C;2022-000470;Ordine;;NOVIPROFIBRE SA;FR89070500434;Vasca acciaio per Disintegratore Cartiera;Attrezzature da laboratorio, ottiche e di precisione.;19/04/2022;19/04/2022;0,00;LABORATORIO CARTA;97425580152;23-AFFIDAMENTO DIRETTO;1.328,00;1.328,00;
Z6B36346A7;2022-000471;Ordine;;EUROPEAN TECHNOLOGY S.R.L.;00840600191;riparazione vessel per rilascio aria;Servizi di riparazione e manutenzione di attrezzature da laboratorio;22/04/2022;22/04/2022;197,82;LAB. LUBRIFICANTI;97425580152;23-AFFIDAMENTO DIRETTO;197,82;0,00;
Z362A583CA;2022-000472;Ordine;;SARTORIUS ITALY SRL;05748910485;CORRETTIVA Bilancia BCA2265S _contratto Sartorius;Servizi di riparazione e manutenzione di attrezzature da laboratorio;11/04/2022;11/04/2022;540,00;LAB. COSMETICA E DETERGENZA;97425580152;23-AFFIDAMENTO DIRETTO;540,00;0,00;
Z363634909;2022-000473;Ordine;;LAMAR S.N.C. DI GIAN LUCA MARCHESIN & C;05685740960;barattoli  latta da 125 ml;Attrezzature da laboratorio, ottiche e di precisione.;12/04/2022;12/04/2022;755,42;LAB. PRODOTTI VERNICIANTI;97425580152;23-AFFIDAMENTO DIRETTO;755,42;0,00;
Z933635074;2022-000474;Ordine;;PHENOMENEX SRL;02691021204;Phenomenex _prog CAMPUS;Attrezzature da laboratorio, ottiche e di precisione.;22/04/2022;22/04/2022;299,50;LAB. SOSTANZE GRASSE, DERIVATI E TECNOLOGIE OLEARIE;97425580152;23-AFFIDAMENTO DIRETTO;309,45;9,95;
ZF33635E90;2022-000475;Ordine;;PHENOMENEX SRL;02691021204;Phenomenex_lab OG3;Attrezzature da laboratorio, ottiche e di precisione.;22/04/2022;22/04/2022;1.704,62;LAB. SOSTANZE GRASSE, DERIVATI E TECNOLOGIE OLEARIE;97425580152;23-AFFIDAMENTO DIRETTO;1.704,62;0,00;
Z96363D1B4;2022-000476;Contratto;;METROHM ITALIANA S.R.L.;11073590157;Sistema Rancimat - Laboratorio Sostanze grasse e derivati;Attrezzature da laboratorio, ottiche e di precisione.;11/05/2022;31/12/2022;27.853,00;LAB. SOSTANZE GRASSE, DERIVATI E TECNOLOGIE OLEARIE;97425580152;23-AFFIDAMENTO DIRETTO;27.853,00;0,00;
Z1E3637688;2022-000477;Ordine;;IMCD ITALIA SPA;03525700153;pannelli standard nebbia;Attrezzature da laboratorio, ottiche e di precisione.;29/04/2022;29/04/2022;260,00;LAB. PRODOTTI VERNICIANTI;97425580152;23-AFFIDAMENTO DIRETTO;260,00;0,00;
ZC636368FC;2022-000478;Contratto;;BYK-GARDNER GMBH;00000000000;Spettrofotometro multiangolo - Lab. Prodotti vernicianti - Oli e grassi;Attrezzature da laboratorio, ottiche e di precisione.;11/05/2022;31/12/2022;30.000,00;LAB. PRODOTTI VERNICIANTI;97425580152;23-AFFIDAMENTO DIRETTO;30.000,00;0,00;
ZB3363B53E;2022-000479;Ordine;;ENI S.P.A.;00484960588;carte carburante;Prodotti derivati dal petrolio;15/04/2022;15/04/2022;1.133,57;"Facility Management; LABORATORIO EMISSIONI";97425580152;23-AFFIDAMENTO DIRETTO;1.560,00;426,43;
0000000000;2022-000481;Ordine;;FEDERCHIMICA;80036210153;FEDERCHIMICA QUOTA 2022;Quote associative e Fondo Perequativo;02/05/2022;02/05/2022;9.771,62;DIREZIONE GENERALE;97425580152;23-AFFIDAMENTO DIRETTO;9.771,62;0,00;
Z1B363C32E;2022-000483;Ordine;;TELEPASS S.P.A.;09771701001;telepass;Servizi di ricerca e sviluppo e relativi Servizi di consulenza;19/04/2022;19/04/2022;119,69;Facility Management;97425580152;23-AFFIDAMENTO DIRETTO;174,29;54,60;
 ZDC363C146;2022-000484;Ordine;;EXACTA + OPTECH LABCENTER S.P.A.;01022690364;reagenti;"Sostanze chimiche; Attrezzature da laboratorio, ottiche e di precisione.";03/05/2022;03/05/2022;700,00;Facility Management;97425580152;23-AFFIDAMENTO DIRETTO;700,00;0,00;
Z12363C79E;2022-000485;Ordine;;AUTOSTRADE PER L'ITALIA S.P.A.;07516911000;Stime costi fatture 2022 per Autostrade per l'Italia;Servizi di ricerca e sviluppo e relativi Servizi di consulenza;19/04/2022;19/04/2022;402,42;Facility Management;97425580152;23-AFFIDAMENTO DIRETTO;500,00;97,58;
Z6D36CA375;2022-000487;Ordine;;NEXI PAYMENTS SPA;04107060966;Canone internet banking 2022;Pacchetti software e sistemi di informazione;14/06/2022;14/06/2022;117,00;AMMINISTRAZIONE E FINANZA;97425580152;23-AFFIDAMENTO DIRETTO;156,00;39,00;
ZDE363EDEF;2022-000488;Ordine;;SEGRA '95 SRL (MAIL BOXES);11539210150;spedizioni ;Servizi di posta e corriere;21/04/2022;21/04/2022;889,92;Facility Management;97425580152;23-AFFIDAMENTO DIRETTO;889,92;0,00;
Z69363EEC1;2022-000489;Ordine;;COLAVER S.R.L.;05099780156;"3 GUANTI DPI CALORE TAGLIA 8
3 GUANTI DPI CALORE TAGLIA 10
CODICE GK11";Indumenti e calzature ad uso professionale, speciale e accessori;29/04/2022;29/04/2022;165,00;Facility Management;97425580152;23-AFFIDAMENTO DIRETTO;165,00;0,00;
Z65363F09E;2022-000490;Ordine;;CHEMIFARM S.r.l.;00952860344;Standard per calibrazione Conduttimetro;Attrezzature da laboratorio, ottiche e di precisione.;19/04/2022;19/04/2022;396,00;LABORATORIO CARTA;97425580152;23-AFFIDAMENTO DIRETTO;396,00;0,00;
Z58363F5F0;2022-000491;Ordine;;FOOD CONTACT CENTER S.R.L.;01898850472;Analisi laboratorio esterne;Servizi di prove tecniche, analisi, di laboratorio e relativa consulenza;20/04/2022;20/04/2022;0,00;LABORATORIO CARTA;97425580152;23-AFFIDAMENTO DIRETTO;189,00;189,00;
ZF53640E9B;2022-000493;Ordine;;MERCK LIFE SCIENCE S.R.L.;13209130155;Acquisto filtri Whatman in microfibra di vetro (Glass Microfiber Filters) GF/F - Diametro 47mm - 100 filtri a confezione - CAT No.1825-047;Attrezzature da laboratorio, ottiche e di precisione.;22/04/2022;22/04/2022;1.258,00;LABORATORIO ANALISI;97425580152;23-AFFIDAMENTO DIRETTO;1.258,00;0,00;
ZDF3641085;2022-000494;Ordine;;RATIOFORM IMBALLAGGI S.R.L.;12547400155;imballaggi per bottiglie per spedizione di liquidi;Attrezzature da laboratorio, ottiche e di precisione.;20/04/2022;20/04/2022;0,00;LABORATORIO EMISSIONI;97425580152;23-AFFIDAMENTO DIRETTO;46,07;46,07;
Z843644B55;2022-000496;Ordine;;AGENZIA DELLE DOGANE E DEI MONOPOLI;97210890584;Analisi idrocarburi policiclici aromatici per 5 campioni presso Dogane - Il preventivo verr� allegato su BPM;Servizi di prove tecniche, analisi, di laboratorio e relativa consulenza;02/05/2022;02/05/2022;0,00;LABORATORIO ANALISI;97425580152;23-AFFIDAMENTO DIRETTO;307,50;307,50;
Z6835EA95C;2022-000497;Ordine;;AB SCIEX SRL;06734220962;Riparazione_API2000_ABSciex;Servizi di riparazione e manutenzione di attrezzature da laboratorio;30/03/2022;30/03/2022;5.152,50;CROMATOGRAFIA;97425580152;23-AFFIDAMENTO DIRETTO;5.942,69;790,19;
 Z1636457D8;2022-000503;Ordine;;AB SCIEX SRL;06734220962;Riparazione EC_progetto Enzimi;Servizi di riparazione e manutenzione di attrezzature da laboratorio;08/04/2022;08/04/2022;2.800,00;LAB. COSMETICA E DETERGENZA;97425580152;23-AFFIDAMENTO DIRETTO;3.929,40;1.129,40;
Z07364608C;2022-000505;Ordine;;"SINERGICA SOLUZIONI SRL		";01711950681;BILANCIA ANALITICA_piano investimenti 2022;Attrezzature da laboratorio, ottiche e di precisione.;02/05/2022;02/05/2022;2.456,50;LAB. COSMETICA E DETERGENZA;97425580152;23-AFFIDAMENTO DIRETTO;2.456,50;0,00;
Z8836463F1;2022-000506;Ordine;;LECO ITALY S.R.L.;10123960154;Revisione Bomba Calorimetrica Leco - numero di serie 4087 per calorimetro AC 500;Servizi di riparazione e manutenzione di attrezzature da laboratorio;22/04/2022;22/04/2022;1.840,00;LABORATORIO ANALISI;97425580152;23-AFFIDAMENTO DIRETTO;1.840,00;0,00;
Z493646983;2022-000507;Ordine;;"SINERGICA SOLUZIONI SRL		";01711950681;BILANCIA TECNICA_piano investimenti 2022;Attrezzature da laboratorio, ottiche e di precisione.;02/05/2022;02/05/2022;1.572,50;LAB. COSMETICA E DETERGENZA;97425580152;23-AFFIDAMENTO DIRETTO;1.572,50;0,00;
Z5C3646EA2;2022-000508;Ordine;;TRASPORTI ZINGALI SRL;02064240183;trasporto campioni da san Donato Milanese a Salvatore Chiavarini, ENEA C.R. Casaccia, via Anguillarese 301, 00123 Roma;Servizi di posta e corriere;28/04/2022;28/04/2022;0,00;LABORATORIO EMISSIONI;97425580152;23-AFFIDAMENTO DIRETTO;120,00;120,00;
ZBD3647335;2022-000510;Ordine;;CESARE GALDABINI SPA;00187500129;Taratura termometri presso Galdabini come da offerta n 33734;Servizi di riparazione e manutenzione di attrezzature da laboratorio;03/05/2022;03/05/2022;810,00;LABORATORIO ANALISI;97425580152;23-AFFIDAMENTO DIRETTO;810,00;0,00;
ZA336482C0;2022-000511;Ordine;;VWR INTERNATIONAL SRL;12864800151;PIASTRE MAGNETICHE RISCALDANTI_piano investimenti 2022;"Attrezzature da laboratorio, ottiche e di precisione.; altri Servizi di comunita', sociali e personali";03/05/2022;03/05/2022;1.960,00;LAB. COSMETICA E DETERGENZA;97425580152;23-AFFIDAMENTO DIRETTO;1.975,00;15,00;
ZA13648818;2022-000512;Ordine;;AERRE SERVICE S.R.L.;04956310967;Manutenzione correttiva frigorifero modello EKO FRIGOLAB 1500/2 TN-ESC presso Area Combustibli effettuata da AERRE Service come da consuntivo n. 100/CGE del 02.05.2022;Servizi di riparazione e manutenzione di attrezzature da laboratorio;02/05/2022;02/05/2022;172,97;LABORATORIO ANALISI;97425580152;23-AFFIDAMENTO DIRETTO;172,97;0,00;
ZD13648C35;2022-000513;Ordine;;SERVICE T.L. SRL;06687770153;Acquisto consumabili Service tl;Attrezzature da laboratorio, ottiche e di precisione.;20/04/2022;20/04/2022;1.048,42;CROMATOGRAFIA;97425580152;23-AFFIDAMENTO DIRETTO;1.048,42;0,00;"PHENOMENEX SRL 02691021204; SERVICE T.L. SRL 06687770153; AGILENT TECHNOLOGIES ITALIA SPA 12785290151"
ZA53649104;2022-000514;Ordine;;FISHER SCIENTIFIC SAS;08948430965;Acquisto consumabili Fisher Scientific;Attrezzature da laboratorio, ottiche e di precisione.;22/04/2022;22/04/2022;0,00;LAB. SOSTANZE GRASSE, DERIVATI E TECNOLOGIE OLEARIE;97425580152;23-AFFIDAMENTO DIRETTO;532,72;532,72;
Z983652E4F;2022-000516;Ordine;;TECNO OFFICE GLOBAL S.R.L.;01641800550;Cartucce per stampanti Brother, stampanti associate a computer strumentazione di laboratorio;Cancelleria, materiale e attrezzature di consumo per ufficio;04/05/2022;04/05/2022;112,97;Facility Management;97425580152;23-AFFIDAMENTO DIRETTO;112,97;0,00;
0000000000;2022-000517;Ordine;;COMITATO ITALIANO GAS;80067510518;CIG Comitato Italiano Gas Quota associativa 2022;Quote associative e Fondo Perequativo;06/05/2022;06/05/2022;9.002,00;DIREZIONE GENERALE;97425580152;23-AFFIDAMENTO DIRETTO;9.002,00;0,00;
Z2036547D0;2022-000518;Ordine;;FORMEL SRL;01784630814;"corso ""Profili di criticit� degli affidamenti sottosoglia""";ALTRE SPESE PER IL PERSONALE;06/05/2022;06/05/2022;400,00;RISORSE UMANE E ORGANIZZAZIONE;97425580152;23-AFFIDAMENTO DIRETTO;400,00;0,00;
ZF03654BE9;2022-000520;Ordine;;Adalta snc di Fazzi e Marcantoni;01408650511;Origin pro 2022 - single - seat node- locked license;Pacchetti software e sistemi di informazione;04/05/2022;04/05/2022;3.262,00;LABORATORIO EMISSIONI;97425580152;23-AFFIDAMENTO DIRETTO;3.262,00;0,00;
Z4836580AD;2022-000523;Ordine;;VWR INTERNATIONAL SRL;12864800151;REAGENTI E VETRERIA;Attrezzature da laboratorio, ottiche e di precisione.;06/05/2022;06/05/2022;1.013,27;LAB. COSMETICA E DETERGENZA;97425580152;23-AFFIDAMENTO DIRETTO;1.053,65;40,38;
Z983652E4F;2022-000525;Ordine;;TECNO OFFICE GLOBAL S.R.L.;01641800550;toner Lexmark per Amministrazione;Cancelleria, materiale e attrezzature di consumo per ufficio;09/05/2022;09/05/2022;140,49;Facility Management;97425580152;23-AFFIDAMENTO DIRETTO;140,49;0,00;
ZFA3658583;2022-000526;Ordine;;KAIROSAFE SRL;01080490327;Materiale di laboratorio;Attrezzature da laboratorio, ottiche e di precisione.;05/05/2022;05/05/2022;415,00;LABORATORIO CARTA;97425580152;23-AFFIDAMENTO DIRETTO;415,00;0,00;
Z9A3659DA4;2022-000527;Ordine;;EL.MA.M SRL;11784060151;frese a tazza;Servizi di riparazione e manutenzione di attrezzature da laboratorio;02/05/2022;02/05/2022;203,15;LAB. PRODOTTI VERNICIANTI;97425580152;23-AFFIDAMENTO DIRETTO;203,15;0,00;"EL.MA.M SRL 11784060151; VACCANI LUGI SRL 11499670963"
ZEC365A218;2022-000528;Ordine;;ETTORE PASQUALI S.R.L.;04892610157;mantelli riscaldanti;Attrezzature da laboratorio, ottiche e di precisione.;04/05/2022;04/05/2022;2.440,00;LAB. LUBRIFICANTI;97425580152;23-AFFIDAMENTO DIRETTO;2.440,00;0,00;
Z08365E31F;2022-000529;Ordine;;DADO LAB SRL;08356080963;manutenzione sonda + trappola;"Attrezzature da laboratorio, ottiche e di precisione.; Servizi di riparazione e manutenzione di attrezzature da laboratorio";03/05/2022;03/05/2022;936,00;LABORATORIO EMISSIONI;97425580152;23-AFFIDAMENTO DIRETTO;850,02;-85,98;
0000000000;2022-000530;Ordine;;ATICELCA - ASS.NE TEC.ITAL.PER LA CELL.E CARTA;03669960159;Quota associativa anno 2022;Quote associative e Fondo Perequativo;11/05/2022;11/05/2022;302,00;DIREZIONE GENERALE;97425580152;23-AFFIDAMENTO DIRETTO;302,00;0,00;
Z563669ED3;2022-000531;Ordine;;FASTWEB SPA;12878470157;linea telefonica ascensore ;Servizi di telecomunicazione;09/05/2022;09/05/2022;97,42;Facility Management;97425580152;23-AFFIDAMENTO DIRETTO;116,94;19,52;
Z623661AC1;2022-000532;Ordine;;STUDIO LOCATELLI RIZZUTO;03003510165;SCIA aperture in prospetto;Attrezzature da laboratorio, ottiche e di precisione.;12/05/2022;12/05/2022;0,00;Facility Management;97425580152;99-ADDENDUM: AFFIDAMENTO DIRETTO PER VARIAZIONE ENTRO LE SOGLIE DELL'ART. 106 (NO ANAC);780,00;780,00;
Z3A366324A;2022-000533;Ordine;;VACCANI LUGI SRL;11499670963;silicone per alte temperature;Attrezzature da laboratorio, ottiche e di precisione.;06/05/2022;06/05/2022;19,60;LABORATORIO EMISSIONI;97425580152;23-AFFIDAMENTO DIRETTO;19,60;0,00;
ZDA3669F1B;2022-000534;Ordine;;GRASSI UFFICIO SAS;01279740136;Rifacim. ordine cancelleria - nr 458;Cancelleria, materiale e attrezzature di consumo per ufficio;10/05/2022;10/05/2022;510,19;Facility Management;97425580152;23-AFFIDAMENTO DIRETTO;514,27;4,08;
ZA1366649A;2022-000535;Ordine;;SmartMembranes GmbH;00000000000;Membrane in silicio per filtrazione microplastiche;Attrezzature da laboratorio, ottiche e di precisione.;25/03/2022;25/03/2022;1.104,00;LABORATORIO SETA;97425580152;23-AFFIDAMENTO DIRETTO;1.104,00;0,00;"SmartMembranes GmbH DE266873026; THERMO FISHER SCIENTIFIC S.P.A. 07817950152"
Z903666ACE;2022-000536;Ordine;;NEWTON SPA;12863940156;Insights Discovery e ruota di team;Servizi commerciali vari ed altri servizi;11/05/2022;11/05/2022;850,00;DIREZIONE GENERALE;97425580152;23-AFFIDAMENTO DIRETTO;850,00;0,00;
Z44366BA54;2022-000538;Ordine;;SIAD S.P.A.;00209070168;messa a disposizione bombole;Prodotti derivati dal petrolio;09/05/2022;09/05/2022;755,64;"RESPONSABILE AREA SSC; LAB. SOSTANZE GRASSE, DERIVATI E TECNOLOGIE OLEARIE";97425580152;23-AFFIDAMENTO DIRETTO;755,64;0,00;
ZC4366C356;2022-000539;Ordine;;MERCK LIFE SCIENCE S.R.L.;13209130155;reagenti ;Attrezzature da laboratorio, ottiche e di precisione.;09/05/2022;09/05/2022;594,30;LAB. PRODOTTI VERNICIANTI;97425580152;23-AFFIDAMENTO DIRETTO;594,30;0,00;
ZBE366BADB;2022-000540;Ordine;;SEGRA '95 SRL (MAIL BOXES);11539210150;spedizioni ;Servizi di posta e corriere;09/05/2022;09/05/2022;690,19;Facility Management;97425580152;23-AFFIDAMENTO DIRETTO;690,19;0,00;
Z013667B2B;2022-000541;Ordine;;FOOD CONTACT CENTER S.R.L.;01898850472;Analisi di laboratorio esterne;Servizi di prove tecniche, analisi, di laboratorio e relativa consulenza;11/05/2022;11/05/2022;560,00;LABORATORIO CARTA;97425580152;23-AFFIDAMENTO DIRETTO;560,00;0,00;
Z46366CF75;2022-000542;Ordine;;DEUTSCHE GESELLSCHAFT FUR FETTWISSENSCHHAFT;;Iscrizione a convegno-dr. Milani;Servizi di istruzione e formazione;11/05/2022;11/05/2022;800,00;RISORSE UMANE E ORGANIZZAZIONE;97425580152;23-AFFIDAMENTO DIRETTO;800,00;0,00;
Z663667DE1;2022-000543;Ordine;;VWR INTERNATIONAL SRL;12864800151;Acquisto consumabili di laboratorio;Attrezzature da laboratorio, ottiche e di precisione.;12/05/2022;12/05/2022;485,00;LABORATORIO CARTA;97425580152;23-AFFIDAMENTO DIRETTO;485,00;0,00;
ZED366D34A;2022-000544;Ordine;;RS COMPONENTS S.P.A.;10578740150;HARD DISK TOSHIBA;Apparecchiature e atrezzature e forniture informatiche;09/05/2022;09/05/2022;127,28;Facility Management;97425580152;23-AFFIDAMENTO DIRETTO;127,28;0,00;
Z00366D41F;2022-000545;Ordine;;RAJAPACK S.R.L.;04921880961;Pluriball in rotolo per pacchi (lab FOLEGATTI);Attrezzature da laboratorio, ottiche e di precisione.;10/05/2022;10/05/2022;99,95;LAB. SOSTANZE GRASSE, DERIVATI E TECNOLOGIE OLEARIE;97425580152;23-AFFIDAMENTO DIRETTO;99,95;0,00;
Z4F366EB60;2022-000546;Ordine;;POLITECNICO DI MILANO DIP.ING.CIV.E AMB.LE;80057930150;Analisi laboratorio esterne;Servizi di prove tecniche, analisi, di laboratorio e relativa consulenza;10/05/2022;10/05/2022;1.500,00;LABORATORIO CARTA;97425580152;23-AFFIDAMENTO DIRETTO;1.500,00;0,00;
Z0A366F04F;2022-000547;Ordine;;TRASPORTI ZINGALI SRL;02064240183;trasporto campioni.;Servizi di posta e corriere;15/04/2022;15/04/2022;1.985,32;LABORATORIO ANALISI;97425580152;23-AFFIDAMENTO DIRETTO;1.985,32;0,00;
Z14366F4F7;2022-000548;Ordine;;AUSILIARI TESSILI S.R.L.;06004870157;piastrelle RAL - URGENTE;Attrezzature da laboratorio, ottiche e di precisione.;13/05/2022;13/05/2022;116,00;LAB. PRODOTTI VERNICIANTI;97425580152;23-AFFIDAMENTO DIRETTO;100,00;-16,00;
ZD936706C4;2022-000549;Ordine;;MITAMBIENTE SRL;06317870969;spedizioni trasporti merci pericolose ;Servizi di posta e corriere;15/04/2022;15/04/2022;80,00;LABORATORIO ANALISI;97425580152;23-AFFIDAMENTO DIRETTO;80,00;0,00;
Z3236708D1;2022-000550;Ordine;;AGIC TECHNOLOGY SRL;10900521005;Webinar Platinum Budget e Analisi degli Scostamenti;ALTRE SPESE PER IL PERSONALE;13/05/2022;13/05/2022;250,00;RISORSE UMANE E ORGANIZZAZIONE;97425580152;23-AFFIDAMENTO DIRETTO;250,00;0,00;
Z67367714E;2022-000552;Ordine;;MERCK LIFE SCIENCE S.R.L.;13209130155;KCl e Ferro Solfato;Attrezzature da laboratorio, ottiche e di precisione.;13/05/2022;13/05/2022;74,00;LABORATORIO SETA;97425580152;23-AFFIDAMENTO DIRETTO;74,00;0,00;
ZE1366EE73;2022-000553;Ordine;;CIB SERVICE SRL;08549950965;CIB SERVICE SRL FT. 585;Servizi giuridici;16/05/2022;16/05/2022;428,92;AFFARI GENERALI E CONTRIBUTI;97425580152;23-AFFIDAMENTO DIRETTO;428,92;0,00;
ZBD3647335;2022-000555;Ordine;;CESARE GALDABINI SPA;00187500129;Spesa per trasporto e riconsegna termocoppie - Galdabini - integrazione a RDA 2022-001217 e all' ordine 2022-000510-1 - come da offerta aggiornata 33734 Rev.1;Servizi di riparazione e manutenzione di attrezzature da laboratorio;10/05/2022;10/05/2022;60,00;LABORATORIO ANALISI;97425580152;23-AFFIDAMENTO DIRETTO;60,00;0,00;
Z9C3677BAB;2022-000556;Ordine;;AUTOEMILIA S.R.L.;03588500961;Manutenzio Toura Autoemilia;Servizi di riparazione, manutenzione e affini di veicoli e attrezzature connesse;16/05/2022;16/05/2022;748,23;Facility Management;97425580152;23-AFFIDAMENTO DIRETTO;748,23;0,00;
Z133679388;2022-000559;Ordine;;2B SRL;04495640262;Licenza aggiuntiva SimaPro;Pacchetti software e sistemi di informazione;08/04/2022;08/04/2022;9.250,00;PROGETTO CAMPUS;97425580152;23-AFFIDAMENTO DIRETTO;9.250,00;0,00;
Z6F36794CC;2022-000560;Ordine;;ETTORE PASQUALI S.R.L.;04892610157;vetreria ;"Cancelleria, materiale e attrezzature di consumo per ufficio; Attrezzature da laboratorio, ottiche e di precisione.";18/05/2022;18/05/2022;1.060,61;Facility Management;97425580152;23-AFFIDAMENTO DIRETTO;1.110,60;49,99;
Z1F367B333;2022-000561;Ordine;;MESDAN SPA;00556520179;Taratura Skin Model;Servizi di prove tecniche, analisi, di laboratorio e relativa consulenza;13/05/2022;13/05/2022;3.900,00;LABORATORIO SETA;97425580152;23-AFFIDAMENTO DIRETTO;3.900,00;0,00;
Z54367FF41;2022-000564;Ordine;;IMCD ITALIA SPA;03525700153;wet bottom kit;Servizi di riparazione e manutenzione di attrezzature da laboratorio;18/05/2022;18/05/2022;40,00;LAB. PRODOTTI VERNICIANTI;97425580152;23-AFFIDAMENTO DIRETTO;40,00;0,00;
Z15368223D;2022-000565;Ordine;;ASSING SPA;06725640582;Spostamento microscopio SEM presso sede Colombo 79;"Attrezzature da laboratorio, ottiche e di precisione.; altri Servizi di comunita', sociali e personali";28/02/2022;28/02/2022;0,00;RESPONSABILE AREA SSOG;97425580152;23-AFFIDAMENTO DIRETTO;8.862,00;8.862,00;
 Z0A3684874;2022-000568;Ordine;;TECNOGAS SRL;04355200967;Bombola_Argon-Tecnogas;Attrezzature da laboratorio, ottiche e di precisione.;17/05/2022;17/05/2022;261,00;CROMATOGRAFIA;97425580152;23-AFFIDAMENTO DIRETTO;261,00;0,00;
Z7A3684B30;2022-000569;Ordine;;FISHER SCIENTIFIC SAS;08948430965;AcidoFormico_LCMS-FiscerScientific;Attrezzature da laboratorio, ottiche e di precisione.;17/05/2022;17/05/2022;0,00;CROMATOGRAFIA;97425580152;23-AFFIDAMENTO DIRETTO;99,88;99,88;"CARLO ERBA REAGENTS SRLDASITGROUP 01802940484; FISHER SCIENTIFIC SAS 08948430965; VWR INTERNATIONAL SRL 12864800151; MERCK LIFE SCIENCE S.R.L. 13209130155"
Z073684E82;2022-000570;Ordine;;SRA INSTRUMENTS ITALIA S.P.A.;12844250154;Acquisto consumabili SRA;Attrezzature da laboratorio, ottiche e di precisione.;17/05/2022;17/05/2022;1.382,40;CROMATOGRAFIA;97425580152;23-AFFIDAMENTO DIRETTO;1.382,40;0,00;
Z273685140;2022-000571;Ordine;;NU-CHEK-PREP,INC;US121824305;Acquisto consumabili Nu-Chek;Attrezzature da laboratorio, ottiche e di precisione.;17/05/2022;17/05/2022;1.011,79;CROMATOGRAFIA;97425580152;23-AFFIDAMENTO DIRETTO;1.030,00;18,21;
Z193685A39;2022-000572;Ordine;;AGILENT TECHNOLOGIES ITALIA SPA;12785290151;Acquisto consumabili Agilent;Attrezzature da laboratorio, ottiche e di precisione.;17/05/2022;17/05/2022;2.873,00;"LAB. SOSTANZE GRASSE, DERIVATI E TECNOLOGIE OLEARIE; CROMATOGRAFIA";97425580152;23-AFFIDAMENTO DIRETTO;2.873,00;0,00;
Z0136886BD;2022-000573;Ordine;;AUTOEMILIA S.R.L.;03588500961;cambio gomme furgoni;Servizi di riparazione, manutenzione e affini di veicoli e attrezzature connesse;11/05/2022;11/05/2022;100,00;LABORATORIO EMISSIONI;97425580152;23-AFFIDAMENTO DIRETTO;100,00;0,00;
Z053688EAE;2022-000575;Ordine;;PERMAX S.r.l.;12319600156;Batteria di ricambio per Bilancia;Servizi di riparazione e manutenzione di attrezzature da laboratorio;18/05/2022;18/05/2022;85,00;LABORATORIO CARTA;97425580152;23-AFFIDAMENTO DIRETTO;85,00;0,00;
Z80368E7B8;2022-000581;Ordine;;ETTORE PASQUALI S.R.L.;04892610157;cilindri per demulsivit� + vetreria;Servizi di riparazione e manutenzione di attrezzature da laboratorio;18/05/2022;18/05/2022;1.151,15;LAB. LUBRIFICANTI;97425580152;23-AFFIDAMENTO DIRETTO;1.151,15;0,00;
ZD132996DF;2022-000582;Ordine;;ETTORE PASQUALI S.R.L.;04892610157;PROVETTE  SU MISURA- Folegatti;Servizi di riparazione e manutenzione di attrezzature da laboratorio;18/05/2022;18/05/2022;75,00;LAB. SOSTANZE GRASSE, DERIVATI E TECNOLOGIE OLEARIE;97425580152;23-AFFIDAMENTO DIRETTO;75,00;0,00;
Z8E3690401;2022-000583;Ordine;;EUROPEAN TECHNOLOGY S.R.L.;00840600191;ricambi RPVOT + tappi stab. idrolitica;Servizi di riparazione e manutenzione di attrezzature da laboratorio;18/05/2022;18/05/2022;625,93;LAB. LUBRIFICANTI;97425580152;23-AFFIDAMENTO DIRETTO;625,93;0,00;
Z883690845;2022-000584;Ordine;;VWR INTERNATIONAL SRL;12864800151;reagenti ;Attrezzature da laboratorio, ottiche e di precisione.;19/05/2022;19/05/2022;592,95;LAB. COSMETICA E DETERGENZA;97425580152;23-AFFIDAMENTO DIRETTO;605,95;13,00;
ZB93690BAC;2022-000585;Ordine;;SIAD S.P.A.;00209070168;gas co2 campione;Prodotti derivati dal petrolio;10/05/2022;10/05/2022;872,02;LAB. PRODOTTI VERNICIANTI;97425580152;23-AFFIDAMENTO DIRETTO;807,00;-65,02;
ZB73690E13;2022-000586;Ordine;;UNIVERSITA' CATTOLICA DEL SACRO CUORE;02133120150;test potere alghicida;Servizi di prove tecniche, analisi, di laboratorio e relativa consulenza;23/05/2022;23/05/2022;160,00;LAB. PRODOTTI VERNICIANTI;97425580152;23-AFFIDAMENTO DIRETTO;160,00;0,00;
Z723693262;2022-000587;Ordine;;ECOCLIMA SRL;04004820967;riparazione unit� bluebox st.20 area ssog;Servizi di riparazione e manutenzione di attrezzature da laboratorio;26/05/2022;26/05/2022;1.200,00;LAB. PRODOTTI VERNICIANTI;97425580152;23-AFFIDAMENTO DIRETTO;1.200,00;0,00;
ZF53694CDE;2022-000589;Ordine;;UNITED PARCEL SERVICE ITALIA SRL;08537690151;SPESE DI TRASPORTO UPS ;Servizi di posta e corriere;27/05/2022;27/05/2022;9,20;LABORATORIO CARTA;97425580152;23-AFFIDAMENTO DIRETTO;9,20;0,00;
Z203695621;2022-000590;Ordine;;SISSG - SOCIETA' ITALIA STUDIO SOSTANZE GRASSE;80174530156;Congresso_SISSG_2022;Servizi di istruzione e formazione;26/05/2022;26/05/2022;0,00;RISORSE UMANE E ORGANIZZAZIONE;97425580152;23-AFFIDAMENTO DIRETTO;200,00;200,00;
Z3E369575A;2022-000591;Ordine;;LGC STANDARDS SRL;03948960962;Standard_PFAS_LGC;Attrezzature da laboratorio, ottiche e di precisione.;26/05/2022;26/05/2022;1.140,00;CROMATOGRAFIA;97425580152;23-AFFIDAMENTO DIRETTO;1.230,00;90,00;"LGC STANDARDS SRL 03948960962; CHEBIOS SRL 00391470580; LAB INSTRUMENTS SRL 03176570723"
Z463695887;2022-000592;Ordine;;LAB INSTRUMENTS SRL;03176570723;Standard_Fotoionizzatori_LabInstruments;Attrezzature da laboratorio, ottiche e di precisione.;26/05/2022;26/05/2022;352,50;CROMATOGRAFIA;97425580152;23-AFFIDAMENTO DIRETTO;352,50;0,00;"LGC STANDARDS SRL 03948960962; MERCK LIFE SCIENCE S.R.L. 13209130155; CHEBIOS SRL 00391470580; LAB INSTRUMENTS SRL 03176570723"
ZC93696B2B;2022-000593;Ordine;;METROHM ITALIANA S.R.L.;11073590157;Manutenzione strumento e sostituzione elettrodo;"Attrezzature da laboratorio, ottiche e di precisione.; Servizi di riparazione e manutenzione di attrezzature da laboratorio";27/05/2022;27/05/2022;747,00;LABORATORIO CARTA;97425580152;23-AFFIDAMENTO DIRETTO;747,00;0,00;
Z52369BADE;2022-000598;Ordine;;SISSG - SOCIETA' ITALIA STUDIO SOSTANZE GRASSE;80174530156;Congresso_SISSG_2022;Servizi di istruzione e formazione;30/05/2022;30/05/2022;600,00;RISORSE UMANE E ORGANIZZAZIONE;97425580152;23-AFFIDAMENTO DIRETTO;600,00;0,00;
Z52369B8E8;2022-000599;Ordine;;ANTON PAAR ITALIA SRL;10606840014;Manutenzione_Preventiva_Microonde_Priola-AntonPaar;Servizi di riparazione e manutenzione di attrezzature da laboratorio;31/05/2022;31/05/2022;1.447,00;ANALISI DEGLI ELEMENTI;97425580152;23-AFFIDAMENTO DIRETTO;1.447,00;0,00;
ZA9369C68D;2022-000600;Ordine;;ETTORE PASQUALI S.R.L.;04892610157;MulinoAnalitico;Attrezzature da laboratorio, ottiche e di precisione.;31/05/2022;31/05/2022;2.020,00;CROMATOGRAFIA;97425580152;23-AFFIDAMENTO DIRETTO;2.020,00;0,00;"ETTORE PASQUALI S.R.L. 04892610157; EMME 3 SRL 05102470159"
Z6D369E185;2022-000604;Ordine;;THERMO FISHER SCIENTIFIC S.P.A.;07817950152;Consumabili_ThremoFisher;Attrezzature da laboratorio, ottiche e di precisione.;31/05/2022;31/05/2022;381,88;CROMATOGRAFIA;97425580152;23-AFFIDAMENTO DIRETTO;381,88;0,00;
ZC6369E6E1;2022-000605;Ordine;;CARLO ERBA REAGENTS SRLDASITGROUP;01802940484;Sodium Hydroxide Honeywell;Attrezzature da laboratorio, ottiche e di precisione.;30/05/2022;30/05/2022;202,90;LAB. PRODOTTI VERNICIANTI;97425580152;23-AFFIDAMENTO DIRETTO;202,90;0,00;
Z83369EC5A;2022-000608;Ordine;;L.M.P. SRL;05697910585;Analisi in subappalto a L.M.P. per 9 campioni come da offerta n. 044/22/ML;Servizi di prove tecniche, analisi, di laboratorio e relativa consulenza;30/05/2022;30/05/2022;540,00;LABORATORIO ANALISI;97425580152;23-AFFIDAMENTO DIRETTO;540,00;0,00;
Z9C369FEDB;2022-000609;Ordine;;STUDIO AGAPE - PROFESSIONISTI ASSOC;04794980963;MONITORAGGIO RADON;Servizi di ricerca e sviluppo e relativi Servizi di consulenza;01/06/2022;01/06/2022;572,00;SERVIZIO SICUREZZA SALUTE E AMBIENTE;97425580152;23-AFFIDAMENTO DIRETTO;1.404,00;832,00;
ZA336A5EDE;2022-000610;Ordine;;LINKEDIN IRELAND;00000000000;Pacchetto abbonamento Linkedin;Servizi di assunzione, di fornitura di personale, compreso personale temporaneo, Servizi di gestione del personale;25/05/2022;25/05/2022;0,00;RISORSE UMANE E ORGANIZZAZIONE;97425580152;23-AFFIDAMENTO DIRETTO;498,00;498,00;
Z8236A8022;2022-000611;Ordine;;IMCD ITALIA SPA;03525700153;Portapannelli URGENTISSIMO;Servizi di riparazione e manutenzione di attrezzature da laboratorio;01/06/2022;01/06/2022;645,00;LAB. PRODOTTI VERNICIANTI;97425580152;23-AFFIDAMENTO DIRETTO;645,00;0,00;
ZA036A8838;2022-000613;Ordine;;CAP HOLDING SPA;13187590156;utenze ;Servizi pubblici, acqua gas e luce;01/06/2022;01/06/2022;2.033,26;Facility Management;97425580152;23-AFFIDAMENTO DIRETTO;2.033,26;0,00;
Z4B36A86E1;2022-000615;Ordine;;THERMO FISHER SCIENTIFIC S.P.A.;07817950152;cartucce SOLEX_ThermoFischer;Attrezzature da laboratorio, ottiche e di precisione.;01/06/2022;01/06/2022;508,00;LAB. COSMETICA E DETERGENZA;97425580152;23-AFFIDAMENTO DIRETTO;508,00;0,00;
Z7136A884C;2022-000617;Ordine;;ETTORE PASQUALI S.R.L.;04892610157;schermo protettivo ;Indumenti e calzature ad uso professionale, speciale e accessori;01/06/2022;01/06/2022;310,00;LAB. SOSTANZE GRASSE, DERIVATI E TECNOLOGIE OLEARIE;97425580152;23-AFFIDAMENTO DIRETTO;310,00;0,00;
8349380e54;2022-000619;Ordine;;EXACTA + OPTECH LABCENTER S.P.A.;01022690364;reagenti;Sostanze chimiche;01/06/2022;01/06/2022;2.032,91;Facility Management;97425580152;23-AFFIDAMENTO DIRETTO;2.032,91;0,00;
9280728B04;2022-000619;Contratto;;INFOCAMERE SOC.CONSORTILE DI INFORMATICA DELLE CAMERE DI COMMERCIO ITALIANE PER AZ.;02313821007;Servizi infungibili 2022;Pacchetti software e sistemi di informazione;16/06/2022;31/12/2022;57.259,35;Facility Management;97425580152;24-AFFIDAMENTO DIRETTO A SOCIETA' IN HOUSE;90.836,00;33.576,65;
ZB636AC027;2022-000620;Ordine;;ATS DELLA CITTA' METROPOLITANA DI MILANO;09320520969;PATENTINO GAS TOSSICI;Servizi di sicurezza e medicina del lavoro;03/06/2022;03/06/2022;0,00;RISORSE UMANE E ORGANIZZAZIONE;97425580152;23-AFFIDAMENTO DIRETTO;182,32;182,32;
Z4E36AD525;2022-000621;Ordine;;COLOUR CONSULT b.v.;00000000000;manutenzione MACH5;Servizi di riparazione e manutenzione di attrezzature da laboratorio;15/06/2022;15/06/2022;2.750,00;LAB. COSMETICA E DETERGENZA;97425580152;23-AFFIDAMENTO DIRETTO;2.750,00;0,00;
Z1A363A96B;2022-000622;Ordine;;FKV S.R.L.;01758800161;CAMERA CLIMATICA_piano investimenti 2022;Attrezzature da laboratorio, ottiche e di precisione.;15/06/2022;15/06/2022;8.508,50;LAB. COSMETICA E DETERGENZA;97425580152;23-AFFIDAMENTO DIRETTO;8.508,50;0,00;
Z2A36ADF0D;2022-000623;Ordine;;IMCD ITALIA SPA;03525700153;consuntivo imcd 11 05 2022;Servizi di riparazione e manutenzione di attrezzature da laboratorio;15/06/2022;15/06/2022;1.083,75;LAB. PRODOTTI VERNICIANTI;97425580152;23-AFFIDAMENTO DIRETTO;1.083,75;0,00;
Z9D36B1D6C;2022-000624;Ordine;;FORMAPER AZ. SPECIALE CCIAA MILANO;97425530157;FORMAZIONE DIRIGENTI ;ALTRE SPESE PER IL PERSONALE;08/06/2022;08/06/2022;1.594,80;RISORSE UMANE E ORGANIZZAZIONE;97425580152;23-AFFIDAMENTO DIRETTO;1.945,66;350,86;
ZBB2B19F9A;2022-000625;Ordine;;THERMO FISHER SCIENTIFIC S.P.A.;07817950152;manutenzione ordinaria FT-IR Nicolet 6700 s/n AGB 00900824;Servizi di riparazione e manutenzione di attrezzature da laboratorio;13/06/2022;13/06/2022;1.508,00;LABORATORIO EMISSIONI;97425580152;23-AFFIDAMENTO DIRETTO;1.508,00;0,00;
Z8636B359E;2022-000626;Ordine;;PHENOMENEX SRL;02691021204;Consumabili_Phenomenex;Attrezzature da laboratorio, ottiche e di precisione.;10/06/2022;10/06/2022;1.267,10;CROMATOGRAFIA;97425580152;23-AFFIDAMENTO DIRETTO;1.267,10;0,00;
Z8836B7001;2022-000627;Ordine;;VWR INTERNATIONAL SRL;12864800151;esano ;"Sostanze chimiche; Attrezzature da laboratorio, ottiche e di precisione.";09/06/2022;09/06/2022;2.040,00;Facility Management;97425580152;23-AFFIDAMENTO DIRETTO;2.040,00;0,00;
ZE336B8C74;2022-000629;Ordine;;UNI - ENTE NAZIONALE ITALIANO DI UNIFICAZIONE;80037830157;norme;Servizi di prove tecniche, analisi, di laboratorio e relativa consulenza;08/06/2022;08/06/2022;0,00;NORMAZIONE;97425580152;23-AFFIDAMENTO DIRETTO;187,00;187,00;
Z2436BBDF6;2022-000630;Ordine;;GRAND HOTEL BRISTOL S.R.L.;08459070960;EVENTO TEAM BUILDING 17 E 18.6.2022;ALTRE SPESE PER IL PERSONALE;09/06/2022;09/06/2022;2.422,39;RISORSE UMANE E ORGANIZZAZIONE;97425580152;23-AFFIDAMENTO DIRETTO;2.152,38;-270,01;
Z1736BD4EE;2022-000631;Ordine;;VWR INTERNATIONAL SRL;12864800151;D.P.I  Occhiali e Sovraocchiali;"Indumenti e calzature ad uso professionale, speciale e accessori; Attrezzature da laboratorio, ottiche e di precisione.";09/06/2022;09/06/2022;101,30;Facility Management;97425580152;23-AFFIDAMENTO DIRETTO;101,30;0,00;
ZAA36BF0C9;2022-000634;Ordine;;VACCANI LUGI SRL;11499670963;Calzature DPI;Indumenti e calzature ad uso professionale, speciale e accessori;09/06/2022;09/06/2022;877,82;Facility Management;97425580152;23-AFFIDAMENTO DIRETTO;877,82;0,00;
Z0B36B05C2;2022-000635;Ordine;;GRUPPO SPAGGIARI PARMA SPA;00150470342;Carta Formato A4 X Stampanti;Cancelleria, materiale e attrezzature di consumo per ufficio;13/06/2022;13/06/2022;937,50;Facility Management;97425580152;23-AFFIDAMENTO DIRETTO;937,50;0,00;
ZE936C6BA8;2022-000636;Ordine;;LGC STANDARDS SRL;03948960962;Acquisto consumabili LGC;Attrezzature da laboratorio, ottiche e di precisione.;14/06/2022;14/06/2022;727,00;CROMATOGRAFIA;97425580152;23-AFFIDAMENTO DIRETTO;765,00;38,00;
Z6A36C824B;2022-000639;Ordine;;SIAD S.P.A.;00209070168;messa a disposizione bombole;Prodotti derivati dal petrolio;13/06/2022;13/06/2022;182,60;RESPONSABILE AREA SSC;97425580152;23-AFFIDAMENTO DIRETTO;182,60;0,00;
ZA436C8724;2022-000640;Ordine;;UNIVERSITA' CATTOLICA DEL SACRO CUORE;02133120150;test ;Servizi di prove tecniche, analisi, di laboratorio e relativa consulenza;15/06/2022;15/06/2022;150,00;LAB. PRODOTTI VERNICIANTI;97425580152;23-AFFIDAMENTO DIRETTO;150,00;0,00;
ZDF36C8856;2022-000641;Ordine;;VWR INTERNATIONAL SRL;12864800151;Potassio permanganato;Attrezzature da laboratorio, ottiche e di precisione.;15/06/2022;15/06/2022;97,20;LAB. COSMETICA E DETERGENZA;97425580152;23-AFFIDAMENTO DIRETTO;65,20;-32,00;
Z4B36C9A4B;2022-000643;Ordine;;G.S.G. SRL;07367140154;Cappe mobili Folegatti;Attrezzature da laboratorio, ottiche e di precisione.;15/06/2022;15/06/2022;5.299,61;LAB. SOSTANZE GRASSE, DERIVATI E TECNOLOGIE OLEARIE;97425580152;23-AFFIDAMENTO DIRETTO;5.299,61;0,00;
Z9136B1062;2022-000645;Ordine;;ELENA PIANI;PNILNE79A57D612N;Webinar 1/7/2022 relatrice E. Piani;Servizi di ricerca e sviluppo e relativi Servizi di consulenza;14/06/2022;14/06/2022;262,00;PROGETTI E SERVIZI;97425580152;23-AFFIDAMENTO DIRETTO;260,00;-2,00;
Z4236C9FB6;2022-000646;Ordine;;CO.FO.ME.GRA. SRL;05021440150;consuntivo cofmegra;Servizi di riparazione e manutenzione di attrezzature da laboratorio;15/06/2022;15/06/2022;560,00;LAB. PRODOTTI VERNICIANTI;97425580152;23-AFFIDAMENTO DIRETTO;560,00;0,00;
Z8D36B1049;2022-000648;Ordine;;DE-LAB SRLSOCIETA' BENEFIT;10351340962;Webinar del 1/7/2022 relatrice De LAB srl;Servizi di ricerca e sviluppo e relativi Servizi di consulenza;14/06/2022;14/06/2022;250,00;PROGETTI E SERVIZI;97425580152;23-AFFIDAMENTO DIRETTO;250,00;0,00;
ZD936CB1DC;2022-000650;Ordine;;MITAMBIENTE SRL;06317870969;spedizioni trasporti merci pericolose ;"Attrezzature da laboratorio, ottiche e di precisione.; Servizi di posta e corriere";14/06/2022;14/06/2022;120,00;LABORATORIO ANALISI;97425580152;23-AFFIDAMENTO DIRETTO;120,00;0,00;
ZD83615876;2022-000651;Ordine;;SIAD S.P.A.;00209070168;INTEGRAZIONE ORDINE 441-2022;Prodotti derivati dal petrolio;14/06/2022;14/06/2022;617,87;LABORATORIO EMISSIONI;97425580152;23-AFFIDAMENTO DIRETTO;634,87;17,00;
Z5C36CCAFF;2022-000652;Ordine;;Automation S.r.L.;08799660157;Richiesta installazione software Automation;Servizi di riparazione e manutenzione di attrezzature da laboratorio;14/06/2022;14/06/2022;435,00;CROMATOGRAFIA;97425580152;23-AFFIDAMENTO DIRETTO;435,00;0,00;
Z3C36CED83;2022-000655;Ordine;;ISO - INTERNATIONAL ORGANIZATIONFOR STANDARDIZATION;CH105816788;ISO  FT. INV00508600;Servizi di prove tecniche, analisi, di laboratorio e relativa consulenza;15/06/2022;15/06/2022;0,00;NORMAZIONE;97425580152;23-AFFIDAMENTO DIRETTO;259,65;259,65;
ZD936CB1DC;2022-000656;Ordine;;FOOD CONTACT CENTER S.R.L.;01898850472;Analisi laboratorio esterne;Servizi di prove tecniche, analisi, di laboratorio e relativa consulenza;23/06/2022;23/06/2022;250,00;LABORATORIO CARTA;97425580152;23-AFFIDAMENTO DIRETTO;250,00;0,00;
9269776D23;2022-000656;Contratto;;TUV SUD SCHWEIZ AG;CHE115162623;strumento per la determinazione degli indici di esplosione di polveri, gas e miscele ibride           (Sfera) destinato all�Area Combustibili - lab. sicurezza industriale;Attrezzature da laboratorio, ottiche e di precisione.;11/07/2022;31/12/2022;0,00;LAB. SICUREZZA INDUSTRIALE;97425580152;23-AFFIDAMENTO DIRETTO;134.000,00;134.000,00;
Z5A36CEDC1;2022-000658;Ordine;;ASTMINTERNATIONAL;US231352024;ASTM Acquisto norme;Servizi di prove tecniche, analisi, di laboratorio e relativa consulenza;15/06/2022;15/06/2022;0,00;NORMAZIONE;97425580152;23-AFFIDAMENTO DIRETTO;108,11;108,11;
ZC93696B2B;2022-000659;Ordine;;METROHM ITALIANA S.R.L.;11073590157;consumabili ;Servizi di riparazione e manutenzione di attrezzature da laboratorio;23/06/2022;23/06/2022;510,00;LABORATORIO CARTA;97425580152;23-AFFIDAMENTO DIRETTO;510,00;0,00;
ZB336D2FE7;2022-000661;Ordine;;PARCAM SRL;05822580964;Attivit� di formazione - Servizio di �Team Building rivolto ai Dirigenti e ai Responsabili delle Societ� della holding camerale�;ALTRE SPESE PER IL PERSONALE;16/06/2022;16/06/2022;3.149,30;RISORSE UMANE E ORGANIZZAZIONE;97425580152;23-AFFIDAMENTO DIRETTO;2.581,39;-567,91;
Z0936D3511;2022-000662;Ordine;;TRASPORTI ZINGALI SRL;02064240183;trasporto campioni.;Servizi di posta e corriere;20/06/2022;20/06/2022;222,43;NORMAZIONE;97425580152;23-AFFIDAMENTO DIRETTO;222,43;0,00;
Z7F36D56D5;2022-000663;Ordine;;ANALITICA S.A.S. DIFRANCESCO DELLISANTI E C.;03035491202;analisi silice cristallina;Servizi di prove tecniche, analisi, di laboratorio e relativa consulenza;20/06/2022;20/06/2022;195,00;LABORATORIO EMISSIONI;97425580152;23-AFFIDAMENTO DIRETTO;195,00;0,00;
ZD536D5871;2022-000664;Ordine;;DSV SPA;00891230153;SDOGANAMENTO DSV;Servizi di posta e corriere;20/06/2022;20/06/2022;68,28;LABORATORIO ANALISI;97425580152;23-AFFIDAMENTO DIRETTO;68,28;0,00;
Z2736D5A91;2022-000665;Ordine;;INDAM LABORATORI S.R.L.;03379190980;analisi cianuri;Servizi di prove tecniche, analisi, di laboratorio e relativa consulenza;20/06/2022;20/06/2022;81,00;LABORATORIO EMISSIONI;97425580152;23-AFFIDAMENTO DIRETTO;81,00;0,00;
ZE936DE523;2022-000666;Ordine;;ETTORE PASQUALI S.R.L.;04892610157;Consumabili;Attrezzature da laboratorio, ottiche e di precisione.;20/06/2022;20/06/2022;426,90;CROMATOGRAFIA;97425580152;23-AFFIDAMENTO DIRETTO;426,90;0,00;
Z4536DECE6;2022-000667;Ordine;;BIASI INDUSTRIA DETERGENTI S.R.L. UNIPERSONALE;03917220232;detersivo lava vetreria;Macchine e apparecchi, attrezzature e articoli di consumo elettrici, illuminazione;20/06/2022;20/06/2022;402,00;Facility Management;97425580152;23-AFFIDAMENTO DIRETTO;402,00;0,00;
Z9936D1353;2022-000668;Ordine;;B2MATCH GMBH;00000000000;Licenza B2match per  Connecting Ambitions in Sport & Enterta;Pacchetti software e sistemi di informazione;20/06/2022;20/06/2022;1.100,00;PROGETTI E SERVIZI;97425580152;23-AFFIDAMENTO DIRETTO;1.550,00;450,00;
Z7D36E0BAE;2022-000670;Ordine;;RS COMPONENTS S.P.A.;10578740150;nastro adesivo alluminio 3m;Attrezzature da laboratorio, ottiche e di precisione.;21/06/2022;21/06/2022;139,30;LAB. PRODOTTI VERNICIANTI;97425580152;23-AFFIDAMENTO DIRETTO;139,30;0,00;
ZF336E17E0;2022-000672;Ordine;;VWR INTERNATIONAL SRL;12864800151;dpi ;"Indumenti e calzature ad uso professionale, speciale e accessori; Attrezzature da laboratorio, ottiche e di precisione.";22/06/2022;22/06/2022;230,60;Facility Management;97425580152;23-AFFIDAMENTO DIRETTO;230,60;0,00;
Z5036E2CA7;2022-000673;Ordine;;SEGRA '95 SRL (MAIL BOXES);11539210150;spedizioni ;Servizi di posta e corriere;22/06/2022;22/06/2022;495,38;Facility Management;97425580152;23-AFFIDAMENTO DIRETTO;495,38;0,00;
Z0136E64D1;2022-000674;Ordine;;FORMEL SRL;01784630814;corso Formel su revisione prezzi negli appalti;ALTRE SPESE PER IL PERSONALE;22/06/2022;22/06/2022;400,00;RISORSE UMANE E ORGANIZZAZIONE;97425580152;23-AFFIDAMENTO DIRETTO;400,00;0,00;
Z9136E6855;2022-000675;Ordine;;FORTEK SRL;06857670019;pompa/compressore;Attrezzature da laboratorio, ottiche e di precisione.;22/06/2022;22/06/2022;0,00;LABORATORIO EMISSIONI;97425580152;23-AFFIDAMENTO DIRETTO;376,60;376,60;
Z2B36C3F4F;2022-000676;Ordine;;ARUBA SPA;04552920482;Spid aziendale;Pacchetti software e sistemi di informazione;22/06/2022;22/06/2022;35,00;AFFARI GENERALI E CONTRIBUTI;97425580152;23-AFFIDAMENTO DIRETTO;35,00;0,00;
Z8036E7D3E;2022-000677;Ordine;;CAP HOLDING SPA;13187590156;utenze ;Servizi pubblici, acqua gas e luce;22/06/2022;22/06/2022;180,83;Facility Management;97425580152;23-AFFIDAMENTO DIRETTO;348,22;167,39;
Z6736E68C7;2022-000678;Ordine;;ARPA-LOMBARDIA;13015060158;analisi OC/EC;Servizi di prove tecniche, analisi, di laboratorio e relativa consulenza;22/06/2022;22/06/2022;0,00;LABORATORIO EMISSIONI;97425580152;23-AFFIDAMENTO DIRETTO;700,00;700,00;
Z3A36E9A6B;2022-000679;Ordine;;COLAVER S.R.L.;05099780156;Mobile metallo per Panel test;Mobili da ufficio, arredi, elettrodomestici;23/06/2022;23/06/2022;200,00;LABORATORIO CARTA;97425580152;23-AFFIDAMENTO DIRETTO;200,00;0,00;
ZD536E9DF5;2022-000680;Ordine;;MERCK LIFE SCIENCE S.R.L.;13209130155;reagenti ;"Sostanze chimiche; Attrezzature da laboratorio, ottiche e di precisione.";23/06/2022;23/06/2022;8.018,80;Facility Management;97425580152;23-AFFIDAMENTO DIRETTO;7.955,80;-63,00;
Z0B36ECE76;2022-000682;Ordine;;EUROPEAN TECHNOLOGY S.R.L.;00840600191;Acquisto standard (scadenza 12 mesi minimo dalla data consegna)  per laboratorio Analisi e termocoppie PT 100 per distillatore - Fornitore consigliato European Technology;"Attrezzature da laboratorio, ottiche e di precisione.; Servizi di riparazione e manutenzione di attrezzature da laboratorio";23/06/2022;23/06/2022;3.223,98;LABORATORIO ANALISI;97425580152;23-AFFIDAMENTO DIRETTO;3.223,98;0,00;
Z3636EAFE4;2022-000684;Ordine;;REDAELLI SRL;00557900156;Gasolio riscaldamento per PETR-FUEL - Lab.Analisi;Prodotti derivati dal petrolio;28/06/2022;28/06/2022;159,00;LABORATORIO ANALISI;97425580152;23-AFFIDAMENTO DIRETTO;194,00;35,00;
Z7F36EE000;2022-000685;Ordine;;IMCD ITALIA SPA;03525700153;Anellini di ricambio e pannelli;Servizi di riparazione e manutenzione di attrezzature da laboratorio;27/06/2022;27/06/2022;875,00;LAB. PRODOTTI VERNICIANTI;97425580152;23-AFFIDAMENTO DIRETTO;875,00;0,00;
ZAC36EE449;2022-000686;Ordine;;METTLER TOLEDO S.P.A.;00718330152;Manutenzione DSG+TGA;Servizi di riparazione e manutenzione di attrezzature da laboratorio;28/06/2022;28/06/2022;0,00;LAB. SICUREZZA INDUSTRIALE;97425580152;23-AFFIDAMENTO DIRETTO;918,41;918,41;
ZAC36EE449;2022-000687;Ordine;;METTLER TOLEDO S.P.A.;00718330152;Manutenzione DSG+TGA;Servizi di riparazione e manutenzione di attrezzature da laboratorio;28/06/2022;28/06/2022;0,00;LAB. SICUREZZA INDUSTRIALE;97425580152;23-AFFIDAMENTO DIRETTO;1.836,82;1.836,82;
Z5236F02EF;2022-000690;Ordine;;LAB SERVICE ANALYTICA SRL;03442910372;reagenti chimici per contatto alimenti;Attrezzature da laboratorio, ottiche e di precisione.;28/06/2022;28/06/2022;168,55;LABORATORIO CARTA;97425580152;23-AFFIDAMENTO DIRETTO;168,55;0,00;
Z0736F14F5;2022-000691;Ordine;;Linetronic Technologies SA;CHE100921403;"dispositivo separazione olio IP 121
cod. LT/GS-203200/M-SS";Servizi di riparazione e manutenzione di attrezzature da laboratorio;27/06/2022;27/06/2022;0,00;LAB. LUBRIFICANTI;97425580152;23-AFFIDAMENTO DIRETTO;825,00;825,00;
Z5033773B7;2022-000692;Ordine;;LBG SRL;02759190164;integrazione ordine taratura;Servizi di prove tecniche, analisi, di laboratorio e relativa consulenza;27/06/2022;27/06/2022;195,00;LAB. PRODOTTI VERNICIANTI;97425580152;23-AFFIDAMENTO DIRETTO;195,00;0,00;
Z5C36F193D;2022-000694;Ordine;;IMCD ITALIA SPA;03525700153;dolly da 10;Servizi di riparazione e manutenzione di attrezzature da laboratorio;27/06/2022;27/06/2022;1.505,00;LAB. PRODOTTI VERNICIANTI;97425580152;23-AFFIDAMENTO DIRETTO;1.505,00;0,00;
Z3E36F480F;2022-000696;Ordine;;SERPAC SRL;05083510965;Reintegro Kit antisversamento;Macchine e apparecchi, attrezzature e articoli di consumo elettrici, illuminazione;06/07/2022;06/07/2022;511,50;Facility Management;97425580152;23-AFFIDAMENTO DIRETTO;511,50;0,00;
8349380e54;2022-000702;Ordine;;EXACTA + OPTECH LABCENTER S.P.A.;01022690364;reagenti;Sostanze chimiche;06/07/2022;06/07/2022;503,10;Facility Management;97425580152;23-AFFIDAMENTO DIRETTO;503,10;0,00;
Z9236F82FA;2022-000704;Ordine;;FKV S.R.L.;01758800161;Capsule gelatina PCS;Attrezzature da laboratorio, ottiche e di precisione.;29/06/2022;29/06/2022;174,00;LAB. SICUREZZA INDUSTRIALE;97425580152;23-AFFIDAMENTO DIRETTO;174,00;0,00;
Z1336F8506;2022-000705;Ordine;;SIAD S.P.A.;00209070168;bombole PEMS;Prodotti derivati dal petrolio;29/06/2022;29/06/2022;428,80;LABORATORIO EMISSIONI;97425580152;23-AFFIDAMENTO DIRETTO;3.401,80;2.973,00;
ZD436FAC4C;2022-000706;Ordine;;2 EMME SRL;00395300122;Manutenzione straordinaria condizionatore sala pesatura Pm;Servizi di riparazione e manutenzione di attrezzature da laboratorio;29/06/2022;29/06/2022;750,00;LABORATORIO EMISSIONI;97425580152;23-AFFIDAMENTO DIRETTO;750,00;0,00;
Z4336FD1B1;2022-000707;Ordine;;RS COMPONENTS S.P.A.;10578740150;Materiale Utensile per Officina;Macchine e apparecchi, attrezzature e articoli di consumo elettrici, illuminazione;06/07/2022;06/07/2022;45,48;Facility Management;97425580152;23-AFFIDAMENTO DIRETTO;1.466,31;1.420,83;
ZC736FF254;2022-000709;Ordine;;"WEST VACUUM SRL		";09545160963;Manutenzione_PompeRotative_WestVacuum;Servizi di riparazione e manutenzione di attrezzature da laboratorio;30/06/2022;30/06/2022;1.190,50;CROMATOGRAFIA;97425580152;23-AFFIDAMENTO DIRETTO;2.381,00;1.190,50;
Z8036FF8AF;2022-000710;Ordine;;MICROCONTROL N.T. SRL;11714560155;Consumabili preparative;Servizi di riparazione e manutenzione di attrezzature da laboratorio;11/07/2022;11/07/2022;4.473,00;LAB. PRODOTTI VERNICIANTI;97425580152;23-AFFIDAMENTO DIRETTO;4.473,00;0,00;
ZD13700A98;2022-000714;Ordine;;GLOBOPHARMA SRL;04611830151;SOLVENTE GLOBOPHARMA;"Sostanze chimiche; Attrezzature da laboratorio, ottiche e di precisione.";06/07/2022;06/07/2022;3.795,00;Facility Management;97425580152;23-AFFIDAMENTO DIRETTO;3.795,00;0,00;
Z373700C3A;2022-000715;Ordine;;MERCK LIFE SCIENCE S.R.L.;13209130155;Acquisto consumabili ;Attrezzature da laboratorio, ottiche e di precisione.;30/06/2022;30/06/2022;453,00;"LAB. SOSTANZE GRASSE, DERIVATI E TECNOLOGIE OLEARIE; CROMATOGRAFIA";97425580152;23-AFFIDAMENTO DIRETTO;453,00;0,00;
Z653700DD7;2022-000716;Ordine;;RESTEK SRL;03226210155;Acquisto consumabili Restek;Attrezzature da laboratorio, ottiche e di precisione.;30/06/2022;30/06/2022;886,15;"LAB. SOSTANZE GRASSE, DERIVATI E TECNOLOGIE OLEARIE; CROMATOGRAFIA";97425580152;23-AFFIDAMENTO DIRETTO;886,15;0,00;"RESTEK SRL 03226210155; FISHER SCIENTIFIC SAS 08948430965"
Z18370109E;2022-000717;Ordine;;MERCK LIFE SCIENCE S.R.L.;13209130155;Standard_Biocidi;Attrezzature da laboratorio, ottiche e di precisione.;30/06/2022;30/06/2022;128,30;LAB. PRODOTTI VERNICIANTI;97425580152;23-AFFIDAMENTO DIRETTO;128,30;0,00;"LGC STANDARDS SRL 03948960962; VWR INTERNATIONAL SRL 12864800151; MERCK LIFE SCIENCE S.R.L. 13209130155; CHEBIOS SRL 00391470580; LAB INSTRUMENTS SRL 03176570723"
Z58370122E;2022-000718;Ordine;;Fondazione Ettore Majorana e centro di cultura scientifica;93022070812;Congresso_Erice;Servizi di istruzione e formazione;30/06/2022;30/06/2022;0,00;RISORSE UMANE E ORGANIZZAZIONE;97425580152;23-AFFIDAMENTO DIRETTO;650,00;650,00;
Z353702A15;2022-000720;Ordine;;VWR INTERNATIONAL SRL;12864800151;reagenti ;Attrezzature da laboratorio, ottiche e di precisione.;11/07/2022;11/07/2022;238,94;LAB. COSMETICA E DETERGENZA;97425580152;23-AFFIDAMENTO DIRETTO;223,94;-15,00;
Z9332648AF;2022-000722;Ordine;;CIBOTEC SRL;03723660266;rifacim. ordine 534-2021 per quota consegnata nel 2022;Attrezzature da laboratorio, ottiche e di precisione.;01/07/2022;01/07/2022;483,00;LABORATORIO EMISSIONI;97425580152;23-AFFIDAMENTO DIRETTO;483,00;0,00;
Z153703416;2022-000723;Ordine;;CENTER FOR TESTMATERIALS B.V.;NL805146726B01;monitor DWM _ CFT;Attrezzature da laboratorio, ottiche e di precisione.;11/07/2022;11/07/2022;1.679,00;LAB. COSMETICA E DETERGENZA;97425580152;23-AFFIDAMENTO DIRETTO;1.679,00;0,00;
ZDA370663E;2022-000724;Ordine;;ETTORE PASQUALI S.R.L.;04892610157;Vetreria ;Attrezzature da laboratorio, ottiche e di precisione.;06/07/2022;06/07/2022;298,80;Facility Management;97425580152;23-AFFIDAMENTO DIRETTO;298,80;0,00;
Z6C3706DDA;2022-000725;Ordine;;LECO ITALY S.R.L.;10123960154;Manutenzione ordinaria strumento Leco AF 700 e manutenzione straordinaria strumento Leco Truspec 2 come da consuntivo n.9753 (parti di ricambio escluse dal contratto);Servizi di riparazione e manutenzione di attrezzature da laboratorio;07/07/2022;07/07/2022;1.172,00;LABORATORIO ANALISI;97425580152;23-AFFIDAMENTO DIRETTO;1.172,00;0,00;
Z6E370705A;2022-000726;Ordine;;ALFATEST S.R.L.;05434951009;Riparazione Mastersizer;Servizi di riparazione e manutenzione di attrezzature da laboratorio;07/07/2022;07/07/2022;521,00;LAB. SICUREZZA INDUSTRIALE;97425580152;23-AFFIDAMENTO DIRETTO;691,00;170,00;
Z2C3709091;2022-000727;Ordine;;TECNO TRADE SRL;04433130723;fluidi avio specifici;Attrezzature da laboratorio, ottiche e di precisione.;11/07/2022;11/07/2022;221,90;LAB. PRODOTTI VERNICIANTI;97425580152;23-AFFIDAMENTO DIRETTO;221,90;0,00;
ZCF370D5FE;2022-000728;Ordine;;STUDIO DAVERIO & FLORIO;13464890154;spese legali;Servizi giuridici;05/07/2022;05/07/2022;1.338,48;RISORSE UMANE E ORGANIZZAZIONE;97425580152;23-AFFIDAMENTO DIRETTO;1.338,48;0,00;
8665765F7D;2022-000732;Ordine;;ETTORE PASQUALI S.R.L.;04892610157;Vetreria;Attrezzature da laboratorio, ottiche e di precisione.;06/07/2022;06/07/2022;3.591,40;Facility Management;97425580152;23-AFFIDAMENTO DIRETTO;3.591,40;0,00;
Z362A583CA;2022-000734;Ordine;;SARTORIUS ITALY SRL;05748910485;CORRETTIVA Bilancia LA230P_contratto Sartorius;Servizi di riparazione e manutenzione di attrezzature da laboratorio;11/07/2022;11/07/2022;1.412,00;LAB. SOSTANZE GRASSE, DERIVATI E TECNOLOGIE OLEARIE;97425580152;23-AFFIDAMENTO DIRETTO;1.412,00;0,00;
Z773712248;2022-000735;Ordine;;UNI - ENTE NAZIONALE ITALIANO DI UNIFICAZIONE;80037830157;norme;Servizi di prove tecniche, analisi, di laboratorio e relativa consulenza;06/07/2022;06/07/2022;0,00;NORMAZIONE;97425580152;23-AFFIDAMENTO DIRETTO;68,00;68,00;
Z0837125B3;2022-000736;Ordine;;TECNO OFFICE GLOBAL S.R.L.;01641800550;Cancelleria varia;Cancelleria, materiale e attrezzature di consumo per ufficio;06/07/2022;06/07/2022;239,90;Facility Management;97425580152;23-AFFIDAMENTO DIRETTO;239,90;0,00;
Z36371641A;2022-000737;Ordine;;SICO SOCIETA' ITALIANA CARBURO OSSIGENO S.P.A.;00807970157;Bombole Azoto da 20 L SICO;Prodotti derivati dal petrolio;11/07/2022;11/07/2022;0,00;RESPONSABILE AREA SSC;97425580152;23-AFFIDAMENTO DIRETTO;80,00;80,00;
Z5037174EA;2022-000740;Ordine;;POLONORD ADESTE SRL;02052230394;mascherine ffp2;Indumenti e calzature ad uso professionale, speciale e accessori;08/07/2022;08/07/2022;900,00;Facility Management;97425580152;23-AFFIDAMENTO DIRETTO;900,00;0,00;
ZAD371B04C;2022-000744;Ordine;;MITAMBIENTE SRL;06317870969;spedizioni trasporti merci pericolose ;Servizi di posta e corriere;11/07/2022;11/07/2022;80,00;LABORATORIO EMISSIONI;97425580152;23-AFFIDAMENTO DIRETTO;80,00;0,00;
ZB7371B3F9;2022-000746;Ordine;;TRASPORTI ZINGALI SRL;02064240183;trasporto campioni.;"Attrezzature da laboratorio, ottiche e di precisione.; Servizi di posta e corriere";11/07/2022;11/07/2022;855,59;"LABORATORIO ANALISI; LABORATORIO EMISSIONI";97425580152;23-AFFIDAMENTO DIRETTO;855,59;0,00;
Z89371E071;2022-000748;Ordine;;MITAMBIENTE SRL;06317870969;spedizioni trasporti merci pericolose ;Servizi di posta e corriere;11/07/2022;11/07/2022;80,00;NORMAZIONE;97425580152;23-AFFIDAMENTO DIRETTO;80,00;0,00;
ZCB371EE4F;2022-000749;Ordine;;TRASPORTI ZINGALI SRL;02064240183;trasporto campioni.;Servizi di posta e corriere;12/07/2022;12/07/2022;1.460,13;"LABORATORIO ANALISI; LABORATORIO EMISSIONI";97425580152;23-AFFIDAMENTO DIRETTO;1.460,14;0,01;
ZC8371EF76;2022-000750;Ordine;;C2 SRL;01121130197;Cartucce stampante ZEBRA uff. analisi;Macchine e apparecchi, attrezzature e articoli di consumo elettrici, illuminazione;18/07/2022;18/07/2022;238,00;Facility Management;97425580152;23-AFFIDAMENTO DIRETTO;238,00;0,00;
ZD0371F0A3;2022-000752;Ordine;;RIVISTA ITALIANA PETROLI S.R.L;02421710589;Rinnovo abbonamento Staffetta Quotidiana 2022-2024;Servizi di elaborazione, trattamento e banche dati;12/07/2022;12/07/2022;700,00;RESPONSABILE AREA SSC;97425580152;23-AFFIDAMENTO DIRETTO;700,00;0,00;
Z0C371F0C1;2022-000753;Ordine;;HEL LIMITED UK;GB293267182;Ricambi PhiTec II;Servizi di riparazione e manutenzione di attrezzature da laboratorio;12/07/2022;12/07/2022;9.401,00;LAB. SICUREZZA INDUSTRIALE;97425580152;23-AFFIDAMENTO DIRETTO;9.306,00;-95,00;
ZBA371F097;2022-000754;Ordine;;SIAD S.P.A.;00209070168;messa a disposizione bombole;Prodotti derivati dal petrolio;12/07/2022;12/07/2022;787,19;"RESPONSABILE AREA SSC; RESPONSABILE AREA SSOG";97425580152;23-AFFIDAMENTO DIRETTO;787,19;0,00;
Z663720030;2022-000758;Ordine;;VWR INTERNATIONAL SRL;12864800151;standard per TAN;Attrezzature da laboratorio, ottiche e di precisione.;18/07/2022;18/07/2022;729,00;LAB. LUBRIFICANTI;97425580152;23-AFFIDAMENTO DIRETTO;729,00;0,00;
Z26372086E;2022-000759;Ordine;;ETTORE PASQUALI S.R.L.;04892610157;Riparazione bagnomaria ;Servizi di riparazione e manutenzione di attrezzature da laboratorio;18/07/2022;18/07/2022;152,00;LAB. SOSTANZE GRASSE, DERIVATI E TECNOLOGIE OLEARIE;97425580152;23-AFFIDAMENTO DIRETTO;152,00;0,00;
Z0D3721A34;2022-000760;Ordine;;EUROPEAN TECHNOLOGY S.R.L.;00840600191;bottiglie per stabilit� idrolitica;Servizi di riparazione e manutenzione di attrezzature da laboratorio;18/07/2022;18/07/2022;761,35;LAB. LUBRIFICANTI;97425580152;23-AFFIDAMENTO DIRETTO;761,35;0,00;
ZF43721CA8;2022-000761;Ordine;;VWR INTERNATIONAL SRL;12864800151;Permetrina;Attrezzature da laboratorio, ottiche e di precisione.;18/07/2022;18/07/2022;169,60;LAB. COSMETICA E DETERGENZA;97425580152;23-AFFIDAMENTO DIRETTO;169,60;0,00;
Z743722065;2022-000762;Ordine;;ETTORE PASQUALI S.R.L.;04892610157;Riparazione_BagnoUltrasuoni;Servizi di riparazione e manutenzione di attrezzature da laboratorio;14/07/2022;14/07/2022;200,00;CROMATOGRAFIA;97425580152;23-AFFIDAMENTO DIRETTO;200,00;0,00;
Z8A372507C;2022-000764;Ordine;;SEGRA '95 SRL (MAIL BOXES);11539210150;spedizioni ;Servizi di posta e corriere;13/07/2022;13/07/2022;921,77;Facility Management;97425580152;23-AFFIDAMENTO DIRETTO;921,77;0,00;
Z133724BDD;2022-000767;Ordine;;LOD Srl;02499080303;LOD Srl - maggio 2022 - consulenza -;Servizi di ricerca e sviluppo e relativi Servizi di consulenza;14/07/2022;14/07/2022;2.000,00;LABORATORIO EMISSIONI;97425580152;23-AFFIDAMENTO DIRETTO;2.000,00;0,00;
ZCF372B66C;2022-000772;Ordine;;RS COMPONENTS S.P.A.;10578740150;Tubo Aspirazione;Servizi di riparazione e manutenzione di attrezzature da laboratorio;18/07/2022;18/07/2022;251,84;LAB. SICUREZZA INDUSTRIALE;97425580152;23-AFFIDAMENTO DIRETTO;251,84;0,00;
Z1236E7FF3;2022-000773;Ordine;;C2 SRL;01121130197;"5 desktop - 20 monitor 24"" - 10 memorie RAM - 30 zaini per notebook HP - 30 cavi lucchetto HP - 5 chiavette usb";"Apparecchiature e atrezzature e forniture informatiche; Macchine e apparecchi, attrezzature e articoli di consumo elettrici, illuminazione";15/07/2022;15/07/2022;10.574,50;Facility Management;97425580152;23-AFFIDAMENTO DIRETTO;10.574,50;0,00;"MEMOGRAPH 01866580812; INFORMATICA.NET 04654610874; C2 SRL 01121130197; ULTRAPROMEDIA SRL 10324241008; VIRTUAL LOGIC SRL 03878640238; ARCADIA TECNOLOGIE SRL 07161270967; TECNO OFFICE GLOBAL S.R.L. 01641800550; DPS INFORMATICA SNCDI PRESELLO GIANNI & C. 01486330309"
Z72372C398;2022-000774;Ordine;;MERCK LIFE SCIENCE S.R.L.;13209130155;reagenti ;"Sostanze chimiche; Attrezzature da laboratorio, ottiche e di precisione.";15/07/2022;15/07/2022;3.159,00;Facility Management;97425580152;23-AFFIDAMENTO DIRETTO;3.159,00;0,00;
Z03372CAEF;2022-000775;Ordine;;SIMEX CONTROL S.R.O.;00000000000;Inneschi pirotecnici;Attrezzature da laboratorio, ottiche e di precisione.;18/07/2022;18/07/2022;18.043,60;LAB. SICUREZZA INDUSTRIALE;97425580152;23-AFFIDAMENTO DIRETTO;18.043,60;0,00;
Z1E372FD5A;2022-000779;Ordine;;UNITED PARCEL SERVICE ITALIA SRL;08537690151;SPESE DI TRASPORTO UPS ;Servizi di posta e corriere;18/07/2022;18/07/2022;16,53;Facility Management;97425580152;23-AFFIDAMENTO DIRETTO;16,53;0,00;
ZF436BAF6E;2022-000786;Ordine;;CANON ITALIA SPA;00865220156;Ades. convenzione Consip Apparecchiature Multifunzione fascia Media e Alta 1 - noleggio Lotto 5 - MULTIFUNZIONE A3 A COLORI PER GRUPPI DI MEDIE DIMENSIONI;Apparecchiature e atrezzature e forniture informatiche;20/07/2022;20/07/2022;0,00;Facility Management;97425580152;26-AFFIDAMENTO IN ADESIONE AD ACCORDO QUADRO/CONVENZIONE CONSIP;833,81;833,81;
Z9E373160C;2022-000787;Ordine;;L.M.P. SRL;05697910585;Analisi in subappalto a L.M.P. per un totale di 6 campioni come da offerta n. 044/22/ML;Servizi di prove tecniche, analisi, di laboratorio e relativa consulenza;18/07/2022;18/07/2022;360,00;LABORATORIO ANALISI;97425580152;23-AFFIDAMENTO DIRETTO;360,00;0,00;
Z2C37316B2;2022-000788;Ordine;;SERGIO CIPOLLETTA;CPLSRG65H12F205S;Materiali di riferimento per laboratorio: Nist 2717a, Nist 1622e, Alpha AR 100 residual Oil Standard - Fornitori consigliati ALPHACHEM s.r.l., T Mac service;Attrezzature da laboratorio, ottiche e di precisione.;18/07/2022;18/07/2022;2.121,00;LABORATORIO ANALISI;97425580152;23-AFFIDAMENTO DIRETTO;2.040,00;-81,00;
Z24373177B;2022-000789;Ordine;;DSV SPA;00891230153;Sdoganamento merci per Area Combustibili;Servizi di posta e corriere;18/07/2022;18/07/2022;806,60;LABORATORIO ANALISI;97425580152;23-AFFIDAMENTO DIRETTO;806,60;0,00;
ZAA37331CB;2022-000792;Ordine;;TQ TECHNOLOGIES FOR QUALITY SRL;01736370998;Intervento manutenzione correttiva strumento Mitsubishi come da offerta n. AST3820722 - L' intervneto ha carattere di urgenza.;Servizi di riparazione e manutenzione di attrezzature da laboratorio;19/07/2022;19/07/2022;1.278,40;LABORATORIO ANALISI;97425580152;23-AFFIDAMENTO DIRETTO;1.278,40;0,00;
Z4E3734037;2022-000795;Ordine;;VWR INTERNATIONAL SRL;12864800151;Materiale da Magazzino;"Indumenti e calzature ad uso professionale, speciale e accessori; Attrezzature da laboratorio, ottiche e di precisione.";19/07/2022;19/07/2022;1.486,00;Facility Management;97425580152;23-AFFIDAMENTO DIRETTO;1.486,00;0,00;
Z8537356E2;2022-000796;Ordine;;ALD MOTORSERVICE SRL;08608260967;RIPARAZIONE FIA DUCATO;Servizi di riparazione, manutenzione e affini di veicoli e attrezzature connesse;19/07/2022;19/07/2022;502,00;Facility Management;97425580152;23-AFFIDAMENTO DIRETTO;502,00;0,00;
Z203736FA0;2022-000798;Ordine;;DALLAGIOVANNA E C.;10146280960;MANUTENZIONI ASCENSORE;Servizi di riparazione e manutenzione di impianti di edifici;20/07/2022;20/07/2022;3.667,00;Facility Management;97425580152;23-AFFIDAMENTO DIRETTO;3.667,00;0,00;
Z65373BE08;2022-000800;Ordine;;Efund Group SASU;00000000000;"Consultancy services on a European Project -
HORIZON-CL6-2021-CircBio-01-03
";Servizi di ricerca e sviluppo e relativi Servizi di consulenza;21/07/2022;21/07/2022;15.002,75;LABORATORIO CARTA;97425580152;23-AFFIDAMENTO DIRETTO;15.002,75;0,00;
Z10373AC06;2022-000801;Ordine;;Wohler Italia srl;94087670215;sistema pulizia canne fumarie;"Attrezzature da laboratorio, ottiche e di precisione.; Servizi di riparazione e manutenzione di attrezzature da laboratorio";21/07/2022;21/07/2022;4.318,00;LABORATORIO EMISSIONI;97425580152;23-AFFIDAMENTO DIRETTO;4.318,00;0,00;
ZF2373E8F0;2022-000802;Ordine;;ALESSANDRA BUSTI;BSTLSN75C69C933Z;Consulenza PT SSOG 2022 Folegatti;Pacchetti software e sistemi di informazione;27/07/2022;27/07/2022;0,00;LAB. SOSTANZE GRASSE, DERIVATI E TECNOLOGIE OLEARIE;97425580152;23-AFFIDAMENTO DIRETTO;700,00;700,00;
Z90373EAF5;2022-000803;Ordine;;PRUFBAU DR-ING H. DURNER GMBH;;Intervento manutenzione formafogli lab.cartiera;Servizi di riparazione e manutenzione di attrezzature da laboratorio;22/07/2022;22/07/2022;10.086,00;LABORATORIO CARTA;97425580152;23-AFFIDAMENTO DIRETTO;10.086,00;0,00;
Z71373EC68;2022-000804;Ordine;;ETTORE PASQUALI S.R.L.;04892610157;Dosatori-manuali;Attrezzature da laboratorio, ottiche e di precisione.;22/07/2022;22/07/2022;306,00;ANALISI DEGLI ELEMENTI;97425580152;23-AFFIDAMENTO DIRETTO;306,00;0,00;
ZE53740CA7;2022-000805;Ordine;;Societ� Chimica Italiana;02908800580;MsFoodDay_Firenze2022;Servizi di istruzione e formazione;22/07/2022;22/07/2022;0,00;RISORSE UMANE E ORGANIZZAZIONE;97425580152;23-AFFIDAMENTO DIRETTO;420,00;420,00;
ZA53769233;2022-000805;Contratto;;THERMO FISHER SCIENTIFIC S.P.A.;07817950152;Vanquish Core HPLC;Attrezzature da laboratorio, ottiche e di precisione.;05/08/2022;23/12/2022;0,00;CROMATOGRAFIA;97425580152;23-AFFIDAMENTO DIRETTO;38.773,36;38.773,36;
Z283740DAD;2022-000806;Ordine;;BMP-TAPPI;4247580154;Acquisto NORME TAPPI;Servizi di prove tecniche, analisi, di laboratorio e relativa consulenza;26/07/2022;26/07/2022;0,00;LABORATORIO CARTA;97425580152;23-AFFIDAMENTO DIRETTO;53,00;53,00;
ZC93741D9E;2022-000807;Ordine;;HIT SRL - SERVIZI PER LA COMUNICAZIONE;11344960155;Traduzione condizioni generali di acquisto - Traduzione condizioni generali di contratto;Servizi commerciali vari ed altri servizi;26/07/2022;26/07/2022;205,40;AFFARI GENERALI E CONTRIBUTI;97425580152;23-AFFIDAMENTO DIRETTO;205,40;0,00;
Z4737420D1;2022-000808;Ordine;;COLAVER S.R.L.;05099780156;FILTRI MICROFIBRA E VETRERIA LAB;Attrezzature da laboratorio, ottiche e di precisione.;26/07/2022;26/07/2022;281,75;LABORATORIO SETA;97425580152;23-AFFIDAMENTO DIRETTO;281,75;0,00;
Z1A3748862;2022-000811;Ordine;;MERCK LIFE SCIENCE S.R.L.;13209130155;Calcio carbonato + spese di spedizione;Attrezzature da laboratorio, ottiche e di precisione.;29/07/2022;29/07/2022;0,00;LABORATORIO SETA;97425580152;23-AFFIDAMENTO DIRETTO;132,40;132,40;
Z75374903E;2022-000812;Ordine;;REDALLUMINIO SNC;00205630130;"1125 Lattine (45 scatole da 25 lattine) di Redalluminio (codice 100).
Necessarie per la conduzione  dei circuiti UNICHIM/CUNA 2022, secondo semestre";Attrezzature da laboratorio, ottiche e di precisione.;27/07/2022;27/07/2022;5.715,56;LABORATORIO ANALISI;97425580152;23-AFFIDAMENTO DIRETTO;5.715,00;-0,56;
Z0B374AA94;2022-000813;Ordine;;DADO LAB SRL;08356080963;consumabili PG;Attrezzature da laboratorio, ottiche e di precisione.;27/07/2022;27/07/2022;442,00;LABORATORIO EMISSIONI;97425580152;23-AFFIDAMENTO DIRETTO;442,00;0,00;
ZF6374B4F9;2022-000814;Ordine;;EUROPEAN TECHNOLOGY S.R.L.;00840600191;Materiali di riferimento per Viscosimetro - Preventivo da richiedere;Attrezzature da laboratorio, ottiche e di precisione.;27/07/2022;27/07/2022;1.689,44;LABORATORIO ANALISI;97425580152;23-AFFIDAMENTO DIRETTO;1.689,44;0,00;
ZBA374C623;2022-000815;Ordine;;AGILENT TECHNOLOGIES ITALIA SPA;12785290151;parti di ricambio Agilent;Attrezzature da laboratorio, ottiche e di precisione.;27/07/2022;27/07/2022;247,00;LABORATORIO EMISSIONI;97425580152;23-AFFIDAMENTO DIRETTO;237,00;-10,00;
Z30374C829;2022-000816;Ordine;;TQ TECHNOLOGIES FOR QUALITY SRL;01736370998;"Intervento tecnico correttivo strumento Mitsubishi AQF 100 come da consuntivo RIT 328/22-10 
Riferimento TQ: AST39910722 rev.1";Servizi di riparazione e manutenzione di attrezzature da laboratorio;27/07/2022;27/07/2022;2.298,40;LABORATORIO ANALISI;97425580152;23-AFFIDAMENTO DIRETTO;2.298,40;0,00;
ZBC374C99E;2022-000817;Ordine;;ETTORE PASQUALI S.R.L.;04892610157;Riparazione bagnomaria ;Servizi di riparazione e manutenzione di attrezzature da laboratorio;29/07/2022;29/07/2022;282,00;LAB. SOSTANZE GRASSE, DERIVATI E TECNOLOGIE OLEARIE;97425580152;23-AFFIDAMENTO DIRETTO;282,00;0,00;
ZAE374D0A1;2022-000820;Ordine;;KNF ITALIA SRL;01134660156;"Essiccatore per gas 200 tubi 24""";Servizi di riparazione e manutenzione di attrezzature da laboratorio;28/07/2022;28/07/2022;0,00;LABORATORIO EMISSIONI;97425580152;23-AFFIDAMENTO DIRETTO;5.989,03;5.989,03;
Z133754C8D;2022-000827;Ordine;;VWR INTERNATIONAL SRL;12864800151;mista _attrezzature-consumabili;Attrezzature da laboratorio, ottiche e di precisione.;29/07/2022;29/07/2022;426,44;LAB. COSMETICA E DETERGENZA;97425580152;23-AFFIDAMENTO DIRETTO;414,44;-12,00;
Z85375636F;2022-000828;Ordine;;MESDAN SPA;00556520179;Manutenzione straordinaria Skin Model eseguita il 17/05/2022;Servizi di riparazione e manutenzione di attrezzature da laboratorio;02/08/2022;02/08/2022;711,00;LABORATORIO SETA;97425580152;23-AFFIDAMENTO DIRETTO;711,00;0,00;
Z903758BA8;2022-000829;Ordine;;MERCK LIFE SCIENCE S.R.L.;13209130155;"Cartucce formaldeide E. Fusari
(riferimento RDA 420)";Attrezzature da laboratorio, ottiche e di precisione.;30/08/2022;30/08/2022;552,00;LAB. PRODOTTI VERNICIANTI;97425580152;23-AFFIDAMENTO DIRETTO;602,00;50,00;
Z52375A420;2022-000830;Ordine;;L.M.P. SRL;05697910585;"Analisi in subappalto a L.M.P. - PCB e PCT - come da offerta 
n. 044/22/ML";Servizi di prove tecniche, analisi, di laboratorio e relativa consulenza;01/08/2022;01/08/2022;420,00;LABORATORIO ANALISI;97425580152;23-AFFIDAMENTO DIRETTO;420,00;0,00;
Z8C3762192;2022-000837;Ordine;;ETTORE PASQUALI S.R.L.;04892610157;bottiglie;Attrezzature da laboratorio, ottiche e di precisione.;03/08/2022;03/08/2022;1.082,40;LAB. PRODOTTI VERNICIANTI;97425580152;23-AFFIDAMENTO DIRETTO;1.082,40;0,00;
ZE137630A3;2022-000838;Ordine;;SAT SERVICE AIR TEAM;03650950169;essicatore aria mod-rd75;Apparecchiature e atrezzature e forniture informatiche;03/08/2022;03/08/2022;1.613,00;Facility Management;97425580152;23-AFFIDAMENTO DIRETTO;1.613,00;0,00;
Z1C376947E;2022-000841;Ordine;;SIAD S.P.A.;00209070168;Bombole H2/He;Prodotti derivati dal petrolio;05/08/2022;05/08/2022;594,00;LABORATORIO EMISSIONI;97425580152;23-AFFIDAMENTO DIRETTO;580,10;-13,90;
8349380e54;2022-000842;Ordine;;EXACTA + OPTECH LABCENTER S.P.A.;01022690364;reagenti;Sostanze chimiche;05/08/2022;05/08/2022;1.163,18;Facility Management;97425580152;23-AFFIDAMENTO DIRETTO;1.163,18;0,00;
Z0D3772866;2022-000844;Ordine;;TRASPORTI ZINGALI SRL;02064240183;trasporto campioni.;Attrezzature da laboratorio, ottiche e di precisione.;10/08/2022;10/08/2022;622,33;LABORATORIO ANALISI;97425580152;23-AFFIDAMENTO DIRETTO;588,94;-33,39;
Z4A3772832;2022-000845;Ordine;;EUROPEAN TECHNOLOGY S.R.L.;00840600191;intervento straordinario E.T. BAT512;Servizi di riparazione e manutenzione di attrezzature da laboratorio;10/08/2022;10/08/2022;271,83;LAB. LUBRIFICANTI;97425580152;23-AFFIDAMENTO DIRETTO;271,83;0,00;
ZA9377284F;2022-000846;Ordine;;EUROPEAN TECHNOLOGY S.R.L.;00840600191;intervento straordinario E.T. BAT2913;Servizi di riparazione e manutenzione di attrezzature da laboratorio;10/08/2022;10/08/2022;539,25;LAB. LUBRIFICANTI;97425580152;23-AFFIDAMENTO DIRETTO;539,25;0,00;
ZC7377288D;2022-000847;Ordine;;EUROPEAN TECHNOLOGY S.R.L.;00840600191;OLIO SILICONICO + STD PARAGON;Attrezzature da laboratorio, ottiche e di precisione.;10/08/2022;10/08/2022;1.023,08;LAB. LUBRIFICANTI;97425580152;23-AFFIDAMENTO DIRETTO;1.023,08;0,00;
Z5337728A9;2022-000848;Ordine;;EUROPEAN TECHNOLOGY S.R.L.;00840600191;CIL. SCHIUM. + STD TANNAS + COPPA OPTIFLASH;Servizi di riparazione e manutenzione di attrezzature da laboratorio;10/08/2022;10/08/2022;1.152,07;LAB. LUBRIFICANTI;97425580152;23-AFFIDAMENTO DIRETTO;1.152,07;0,00;
Z793772919;2022-000850;Ordine;;MERCK LIFE SCIENCE S.R.L.;13209130155;Zuccheri  - Lab Seta;Attrezzature da laboratorio, ottiche e di precisione.;31/08/2022;31/08/2022;444,00;LABORATORIO SETA;97425580152;23-AFFIDAMENTO DIRETTO;444,00;0,00;
Z673772926;2022-000851;Ordine;;FISHER SCIENTIFIC SAS;08948430965;Acido solforico Fisher;Attrezzature da laboratorio, ottiche e di precisione.;31/08/2022;31/08/2022;0,00;LABORATORIO SETA;97425580152;23-AFFIDAMENTO DIRETTO;201,24;201,24;
Z38377293A;2022-000852;Ordine;;ETTORE PASQUALI S.R.L.;04892610157;vetreria ;Attrezzature da laboratorio, ottiche e di precisione.;10/08/2022;10/08/2022;535,00;Facility Management;97425580152;23-AFFIDAMENTO DIRETTO;425,40;-109,60;
ZE73772955;2022-000853;Ordine;;SIAD S.P.A.;00209070168;messa a disposizione bombole;Prodotti derivati dal petrolio;10/08/2022;10/08/2022;819,57;RESPONSABILE AREA SSC;97425580152;23-AFFIDAMENTO DIRETTO;819,57;0,00;
Z90377296A;2022-000854;Ordine;;TECNOGAS SRL;04355200967;TECNOGAS FT;Prodotti derivati dal petrolio;10/08/2022;10/08/2022;182,16;RESPONSABILE AREA SSC;97425580152;23-AFFIDAMENTO DIRETTO;182,16;0,00;
ZED3775EEA;2022-000855;Ordine;;ETTORE PASQUALI S.R.L.;04892610157; guanti e vials - FM San Donato;Attrezzature da laboratorio, ottiche e di precisione.;11/08/2022;11/08/2022;247,00;Facility Management;97425580152;23-AFFIDAMENTO DIRETTO;91,60;-155,40;
Z27379002C;2022-000858;Ordine;;TUV SUD SCHWEIZ AG;CHE115162623;Riparazione MIKE - Lab.Sicurezza Industriale;Servizi di riparazione e manutenzione di attrezzature da laboratorio;03/08/2022;03/08/2022;10.269,10;LAB. SICUREZZA INDUSTRIALE;97425580152;23-AFFIDAMENTO DIRETTO;9.922,00;-347,10;
Z9C37975FD;2022-000859;Ordine;;THERMO FISHER SCIENTIFIC S.P.A.;07817950152;Soppressore Dionex ICS2000 (bis);Servizi di riparazione e manutenzione di attrezzature da laboratorio;31/08/2022;31/08/2022;1.870,00;LABORATORIO ANALISI;97425580152;23-AFFIDAMENTO DIRETTO;1.870,00;0,00;
Z08379801A;2022-000860;Ordine;;CSI S.P.A..;11360160151;Analisi laboratorio esterne- Lab. carta- nalisi esterne CSI;Servizi di prove tecniche, analisi, di laboratorio e relativa consulenza;10/08/2022;10/08/2022;670,00;LABORATORIO CARTA;97425580152;23-AFFIDAMENTO DIRETTO;670,00;0,00;
Z4B3797F88;2022-000861;Ordine;;VACCANI LUGI SRL;11499670963;Scarpa antinfortunistica Diadora Glove Net Low Pro S3 HRO SRA ESD n 40 per Riccardo Formigoni;Indumenti e calzature ad uso professionale, speciale e accessori;01/09/2022;01/09/2022;102,46;Facility Management;97425580152;23-AFFIDAMENTO DIRETTO;102,46;0,00;
Z8A376F6C6;2022-000862;Ordine;;PINKLAB DI FRANCESCA SERENI;SRNFNC86T48D653M;materiale per cassette pronto soccorso - Pinklab;Indumenti e calzature ad uso professionale, speciale e accessori;05/09/2022;05/09/2022;430,00;Facility Management;97425580152;23-AFFIDAMENTO DIRETTO;457,78;27,78;
Z5E379D21C;2022-000863;Ordine;;DOMICA S.r.l.;03743720967;LAVATRICI_piano investimenti 2022;Attrezzature da laboratorio, ottiche e di precisione.;06/09/2022;06/09/2022;0,00;LAB. COSMETICA E DETERGENZA;97425580152;23-AFFIDAMENTO DIRETTO;1.008,20;1.008,20;
Z0137A4831;2022-000868;Ordine;;TNT GLOBAL EXPRESS SPA;01273040129;ONERE DI ESBORSO;Servizi di posta e corriere;06/09/2022;06/09/2022;5,22;LABORATORIO CARTA;97425580152;23-AFFIDAMENTO DIRETTO;5,22;0,00;
Z9C37A4BBB;2022-000869;Ordine;;PERKIN ELMER ITALIA S.P.A.;00742090152;essiccante per FT-IR;Servizi di riparazione e manutenzione di attrezzature da laboratorio;06/09/2022;06/09/2022;448,00;LAB. LUBRIFICANTI;97425580152;23-AFFIDAMENTO DIRETTO;448,00;0,00;
Z0537A4D31;2022-000871;Ordine;;METROHM ITALIANA S.R.L.;11073590157;consumabili Metrohm;Servizi di riparazione e manutenzione di attrezzature da laboratorio;06/09/2022;06/09/2022;628,00;LAB. LUBRIFICANTI;97425580152;23-AFFIDAMENTO DIRETTO;628,00;0,00;
Z442ADF0AC;2022-000872;Ordine;;IMCD ITALIA SPA;03525700153;consuntivo 13 7 2022;Servizi di riparazione e manutenzione di attrezzature da laboratorio;06/09/2022;06/09/2022;614,00;LAB. PRODOTTI VERNICIANTI;97425580152;23-AFFIDAMENTO DIRETTO;614,00;0,00;
Z442ADF0AC;2022-000873;Ordine;;IMCD ITALIA SPA;03525700153;consuntivo imcd 1 8 2022;Servizi di riparazione e manutenzione di attrezzature da laboratorio;06/09/2022;06/09/2022;204,00;LAB. PRODOTTI VERNICIANTI;97425580152;23-AFFIDAMENTO DIRETTO;204,00;0,00;
ZC037A6133;2022-000874;Ordine;;UNIVERSITA' CATTOLICA DEL SACRO CUORE;02133120150;Cessione di odore;Servizi di prove tecniche, analisi, di laboratorio e relativa consulenza;05/10/2022;05/10/2022;150,00;LAB. PRODOTTI VERNICIANTI;97425580152;23-AFFIDAMENTO DIRETTO;150,00;0,00;
Z4A37A64B1;2022-000875;Ordine;;MERCK LIFE SCIENCE S.R.L.;13209130155;Sodio periodato lab Folegatti;Attrezzature da laboratorio, ottiche e di precisione.;06/09/2022;06/09/2022;138,10;LAB. SOSTANZE GRASSE, DERIVATI E TECNOLOGIE OLEARIE;97425580152;23-AFFIDAMENTO DIRETTO;168,48;30,38;
Z1237A6E1C;2022-000876;Ordine;;DORA TECNOLOGIE DI ANDREA B. D'ORIANO;06506020962;riparazione 4 sfere;Servizi di riparazione e manutenzione di attrezzature da laboratorio;06/09/2022;06/09/2022;400,00;LAB. LUBRIFICANTI;97425580152;23-AFFIDAMENTO DIRETTO;400,00;0,00;
Z3437A735A;2022-000877;Ordine;;CENTER FOR TESTMATERIALS B.V.;NL805146726B01;CFT_monitor x WM;Attrezzature da laboratorio, ottiche e di precisione.;06/09/2022;06/09/2022;1.958,00;LAB. COSMETICA E DETERGENZA;97425580152;23-AFFIDAMENTO DIRETTO;1.958,00;0,00;
Z5837A8DB9;2022-000880;Ordine;;VWR INTERNATIONAL SRL;12864800151;Hyamine 1622_CRM qualit�;Attrezzature da laboratorio, ottiche e di precisione.;06/09/2022;06/09/2022;126,30;LAB. COSMETICA E DETERGENZA;97425580152;23-AFFIDAMENTO DIRETTO;94,30;-32,00;
ZEE37AC8C8;2022-000882;Ordine;;MECOIL DIAGNOSI MECCANICHE S.R.L.;01519020489;consumabili per RdE;Servizi di riparazione e manutenzione di attrezzature da laboratorio;15/09/2022;15/09/2022;1.324,00;LAB. LUBRIFICANTI;97425580152;23-AFFIDAMENTO DIRETTO;1.324,00;0,00;
Z5F37ACE5C;2022-000883;Ordine;;IMCD ITALIA SPA;03525700153;consuntovo del 05/08;Servizi di riparazione e manutenzione di attrezzature da laboratorio;15/09/2022;15/09/2022;51,00;LAB. PRODOTTI VERNICIANTI;97425580152;23-AFFIDAMENTO DIRETTO;51,00;0,00;
Z5F37AE9D0;2022-000885;Ordine;;ERRECI SRL;05102590154;ERRECI consumabili 31 08 2022;Attrezzature da laboratorio, ottiche e di precisione.;15/09/2022;15/09/2022;1.052,00;LAB. SOSTANZE GRASSE, DERIVATI E TECNOLOGIE OLEARIE;97425580152;23-AFFIDAMENTO DIRETTO;1.052,00;0,00;
Z2537AF3AC;2022-000887;Ordine;;DSV SPA;00891230153;"SDOGANAMENTO 
DIESEL FUEL SAMPLES";Servizi di posta e corriere;09/09/2022;09/09/2022;726,16;LABORATORIO ANALISI;97425580152;23-AFFIDAMENTO DIRETTO;726,16;0,00;
ZDF3142CEC;2022-000888;Ordine;;ROBERTO POZZI;PZZRRT74B21C523M;roberto pozzi consulenza sanitaria;Servizi sanitari e di assistenza sociale;08/09/2022;08/09/2022;3.000,00;SERVIZIO SICUREZZA SALUTE E AMBIENTE;97425580152;23-AFFIDAMENTO DIRETTO;3.000,00;0,00;
ZBD37B0DEF;2022-000889;Ordine;;TBT SRL;09113890967;Manutenzione straordinaria banco a rulli - TBT -Lab.Emissioni fonti mobili;Servizi di riparazione e manutenzione di attrezzature da laboratorio;09/09/2022;09/09/2022;1.878,18;LABORATORIO EMISSIONI;97425580152;23-AFFIDAMENTO DIRETTO;1.878,18;0,00;
Z5E37B0DD2;2022-000891;Ordine;;LECO ITALY S.R.L.;10123960154;Alimentazione elettrica strumento Leco TGA 701 - Power Supply sostituita nell' intervento tecnico del 01/08/2022 come da consuntivo N10075 del 30 Agosto 2022;Servizi di riparazione e manutenzione di attrezzature da laboratorio;09/09/2022;09/09/2022;342,00;LABORATORIO ANALISI;97425580152;23-AFFIDAMENTO DIRETTO;342,00;0,00;
ZDE37B2A70;2022-000895;Ordine;;THERMO FISHER SCIENTIFIC S.P.A.;07817950152;Colonna e precolonna per cromatografo ionico Dionex - Preventivo da richiedere al fornitore - Fornitore consigliato Thermo Scientific;Attrezzature da laboratorio, ottiche e di precisione.;09/09/2022;09/09/2022;2.568,00;LABORATORIO ANALISI;97425580152;23-AFFIDAMENTO DIRETTO;2.568,00;0,00;
ZC137B4BCD;2022-000896;Ordine;;AGILENT TECHNOLOGIES ITALIA SPA;12785290151;Colonna 60 metri per GC-VUV;Servizi di riparazione e manutenzione di attrezzature da laboratorio;09/09/2022;09/09/2022;1.038,70;LABORATORIO ANALISI;97425580152;23-AFFIDAMENTO DIRETTO;1.028,70;-10,00;
Z2537B6568;2022-000897;Ordine;;SIAD S.P.A.;00209070168;riduttori gas ;Servizi di riparazione e manutenzione di attrezzature da laboratorio;12/09/2022;12/09/2022;3.139,42;LABORATORIO EMISSIONI;97425580152;23-AFFIDAMENTO DIRETTO;2.955,00;-184,42;
Z9A37B2ABD;2022-000898;Ordine;;CATERLINE SPA;01262010125;consumabili per progetto pizze;Attrezzature da laboratorio, ottiche e di precisione.;12/09/2022;12/09/2022;328,35;LABORATORIO EMISSIONI;97425580152;23-AFFIDAMENTO DIRETTO;328,35;0,00;
Z0737B72E4;2022-000899;Ordine;;UNI - ENTE NAZIONALE ITALIANO DI UNIFICAZIONE;80037830157;norme;Servizi di prove tecniche, analisi, di laboratorio e relativa consulenza;12/09/2022;12/09/2022;0,00;NORMAZIONE;97425580152;23-AFFIDAMENTO DIRETTO;245,25;245,25;
Z5E37B670B;2022-000900;Ordine;;SIAD S.P.A.;00209070168;messa a disposizione bombole;Prodotti derivati dal petrolio;12/09/2022;12/09/2022;830,96;"RESPONSABILE AREA SSC; RESPONSABILE AREA SSOG";97425580152;23-AFFIDAMENTO DIRETTO;830,96;0,00;
Z5237B0D87;2022-000902;Ordine;;IMCD ITALIA SPA;03525700153;lampade xeno QSUN e consumabili IMCD - Lab.Prodotti vernicianti;Attrezzature da laboratorio, ottiche e di precisione.;15/09/2022;15/09/2022;10.592,30;LAB. PRODOTTI VERNICIANTI;97425580152;23-AFFIDAMENTO DIRETTO;10.592,30;0,00;
Z2F37B6624;2022-000903;Ordine;;AGENZIA DELLE DOGANE E DEI MONOPOLI;97210890584;Analisi Idrocarburi policiclici aromatici presso Agenzia Dogane e Monopoli per n. 5 campioni come da offerta n. 38/MI;Servizi di prove tecniche, analisi, di laboratorio e relativa consulenza;12/09/2022;12/09/2022;0,00;LABORATORIO ANALISI;97425580152;23-AFFIDAMENTO DIRETTO;307,50;307,50;
Z3537BAC64;2022-000906;Ordine;;FORM@AMBIENTESTUDIOSTUDIO INGEGNERIA ASSOCIATO;01544220559;Incarico DGSA  Form@ambientestudio;Servizi di ricerca e sviluppo e relativi Servizi di consulenza;13/09/2022;13/09/2022;0,00;SERVIZIO SICUREZZA SALUTE E AMBIENTE;97425580152;23-AFFIDAMENTO DIRETTO;479,18;479,18;
Z0A37BB36E;2022-000908;Ordine;;AERRE SERVICE S.R.L.;04956310967;manutenzione frigorifero;Servizi di riparazione e manutenzione di attrezzature da laboratorio;13/09/2022;13/09/2022;403,17;LABORATORIO ANALISI;97425580152;23-AFFIDAMENTO DIRETTO;403,17;0,00;
Z9B37BB92D;2022-000909;Ordine;;GREINER IMPIANTI SRL;04198700157;Greiner Impianti;Servizi di riparazione e manutenzione di attrezzature da laboratorio;13/09/2022;13/09/2022;137,35;Facility Management;97425580152;23-AFFIDAMENTO DIRETTO;137,35;0,00;
Z2537B0E25;2022-000913;Ordine;;DSV SPA;00891230153;SDOGANAMENTO MERCI PER AREA COMBUSTIBILI - DSV;Servizi di posta e corriere;14/09/2022;14/09/2022;785,02;"LABORATORIO ANALISI; LABORATORIO EMISSIONI";97425580152;23-AFFIDAMENTO DIRETTO;785,02;0,00;
Z2E37BFED3;2022-000914;Ordine;;SHIMADZU ITALIA SRL;10191010155;Manutenzione_correttiva_HPLC_Nexera_Shimadzu;Servizi di riparazione e manutenzione di attrezzature da laboratorio;15/09/2022;15/09/2022;4.768,00;CROMATOGRAFIA;97425580152;23-AFFIDAMENTO DIRETTO;4.768,00;0,00;
Z2437C2745;2022-000917;Ordine;;AUTOSTRADE PER L'ITALIA S.P.A.;07516911000;Autostrade per l'Italia;Servizi di ricerca e sviluppo e relativi Servizi di consulenza;16/09/2022;16/09/2022;232,25;Facility Management;97425580152;23-AFFIDAMENTO DIRETTO;860,00;627,75;
Z1E37C279D;2022-000918;Ordine;;SEGRA '95 SRL (MAIL BOXES);11539210150;spedizioni ;Servizi di posta e corriere;16/09/2022;16/09/2022;311,39;Facility Management;97425580152;23-AFFIDAMENTO DIRETTO;311,39;0,00;
Z8A37B914C;2022-000919;Ordine;;MITAMBIENTE SRL;06317870969;spedizioni trasporti merci pericolose ;"Attrezzature da laboratorio, ottiche e di precisione.; Servizi di posta e corriere";15/09/2022;15/09/2022;150,00;"LABORATORIO ANALISI; NORMAZIONE";97425580152;23-AFFIDAMENTO DIRETTO;150,00;0,00;
Z9D37C3E14;2022-000920;Ordine;;A.S. CONSULTING S.R.L.S.;03641670124;consulenza ambientale;Servizi di ricerca e sviluppo e relativi Servizi di consulenza;16/09/2022;16/09/2022;0,00;SERVIZIO SICUREZZA SALUTE E AMBIENTE;97425580152;23-AFFIDAMENTO DIRETTO;1.000,00;1.000,00;
ZEC37C5E28;2022-000921;Ordine;;UNICHIM;08579360150;"Corsi Unichim FAD
";Servizi di istruzione e formazione;15/09/2022;15/09/2022;420,00;RISORSE UMANE E ORGANIZZAZIONE;97425580152;23-AFFIDAMENTO DIRETTO;420,00;0,00;
ZD337C3DED;2022-000922;Ordine;;ECO FOX S.R.L. Soc.Unipersonale;02266110697;Biodiesel - PETR-FUEL-57;Prodotti derivati dal petrolio;15/09/2022;15/09/2022;371,00;LABORATORIO ANALISI;97425580152;23-AFFIDAMENTO DIRETTO;371,00;0,00;
Z2D37C6290;2022-000923;Ordine;;MERCK LIFE SCIENCE S.R.L.;13209130155;KOH etanolica 0.5N lab Folegatti;Attrezzature da laboratorio, ottiche e di precisione.;15/09/2022;15/09/2022;459,00;LAB. SOSTANZE GRASSE, DERIVATI E TECNOLOGIE OLEARIE;97425580152;23-AFFIDAMENTO DIRETTO;436,00;-23,00;
Z8037C78EF;2022-000924;Ordine;;AIR LIQUIDE ITALIA SERVICE S.R.L.;03270040961;Bombola SO2;Prodotti derivati dal petrolio;19/09/2022;19/09/2022;0,00;LAB. PRODOTTI VERNICIANTI;97425580152;23-AFFIDAMENTO DIRETTO;914,00;914,00;
Z3537EAF0A;2022-000926;Contratto;;MALVERN PANALYTICAL SRL;03646620967;Spettrometro a fluorescenza malvern panalytical epsilon sulfur - offerta 22VMQ034 � Q-95339-1 - Lab. Analisi chimico fisiche - SSC;Attrezzature da laboratorio, ottiche e di precisione.;17/10/2022;31/12/2022;0,00;LABORATORIO ANALISI;97425580152;23-AFFIDAMENTO DIRETTO;38.000,00;38.000,00;
Z362A583CA;2022-000926;Ordine;;SARTORIUS ITALY SRL;05748910485;Manutenzione correttiva bilance;Servizi di riparazione e manutenzione di attrezzature da laboratorio;21/09/2022;21/09/2022;1.550,00;LABORATORIO CARTA;97425580152;23-AFFIDAMENTO DIRETTO;1.550,00;0,00;
ZB237C8473;2022-000927;Ordine;;"VEOLIA WATER TECHNOLOGIES ITALIA SPA		";03129770156;filtro demineralizzatore;Servizi di riparazione e manutenzione di attrezzature da laboratorio;19/09/2022;19/09/2022;378,00;LAB. PRODOTTI VERNICIANTI;97425580152;23-AFFIDAMENTO DIRETTO;378,00;0,00;
Z4A37C84DA;2022-000928;Ordine;;IMCD ITALIA SPA;03525700153;manutenz. imcd 30/8 - 2/9;Servizi di riparazione e manutenzione di attrezzature da laboratorio;19/09/2022;19/09/2022;1.865,75;LAB. PRODOTTI VERNICIANTI;97425580152;23-AFFIDAMENTO DIRETTO;1.865,75;0,00;
Z0A37C8831;2022-000929;Ordine;;BYK-GARDNER GMBH;00000000000;modulo colorimetro;Servizi di riparazione e manutenzione di attrezzature da laboratorio;19/09/2022;19/09/2022;0,00;LAB. PRODOTTI VERNICIANTI;97425580152;23-AFFIDAMENTO DIRETTO;533,00;533,00;
Z2837C8B60;2022-000930;Ordine;;ETTORE PASQUALI S.R.L.;04892610157;BAGNOMARIA ;Attrezzature da laboratorio, ottiche e di precisione.;19/09/2022;19/09/2022;1.115,00;LAB. SOSTANZE GRASSE, DERIVATI E TECNOLOGIE OLEARIE;97425580152;23-AFFIDAMENTO DIRETTO;1.115,00;0,00;
Z1D37C9041;2022-000931;Ordine;;CONVERGE SPA;04472901000;riscatto due multifunzioni uffici analisi oli e carta;Apparecchiature e atrezzature e forniture informatiche;19/09/2022;19/09/2022;0,00;Facility Management;97425580152;23-AFFIDAMENTO DIRETTO;400,00;400,00;
Z1A2F16BFF;2022-000932;Ordine;;MERCK LIFE SCIENCE S.R.L.;13209130155;Oleocanthal  2020;Attrezzature da laboratorio, ottiche e di precisione.;20/09/2022;20/09/2022;154,00;CROMATOGRAFIA;97425580152;23-AFFIDAMENTO DIRETTO;154,00;0,00;
ZFA37CA886;2022-000933;Ordine;;VWR INTERNATIONAL SRL;12864800151;Forbici ;Attrezzature da laboratorio, ottiche e di precisione.;19/09/2022;19/09/2022;86,00;LAB. COSMETICA E DETERGENZA;97425580152;23-AFFIDAMENTO DIRETTO;101,00;15,00;
Z2737CAB76;2022-000934;Ordine;;LAB INSTRUMENTS SRL;03176570723;BisfenoloS_LabInstruments;Attrezzature da laboratorio, ottiche e di precisione.;20/09/2022;20/09/2022;47,40;CROMATOGRAFIA;97425580152;23-AFFIDAMENTO DIRETTO;47,40;0,00;"LGC STANDARDS SRL 03948960962; MERCK LIFE SCIENCE S.R.L. 13209130155; CHEBIOS SRL 00391470580; LAB INSTRUMENTS SRL 03176570723"
Z5237CC0DB;2022-000935;Ordine;;THERMO FISHER SCIENTIFIC S.P.A.;07817950152;Acquisto consumabili Thermo;Attrezzature da laboratorio, ottiche e di precisione.;20/09/2022;20/09/2022;1.134,70;CROMATOGRAFIA;97425580152;23-AFFIDAMENTO DIRETTO;1.134,70;0,00;
ZAE37CC510;2022-000936;Ordine;;MICROCOLUMN SRL;02323360152;Vials_Tappi_MicroColumn;Attrezzature da laboratorio, ottiche e di precisione.;20/09/2022;20/09/2022;2.120,00;CROMATOGRAFIA;97425580152;23-AFFIDAMENTO DIRETTO;2.120,00;0,00;"CPS ANALITICA S.R.L. 01463800035; MICROCOLUMN SRL 02323360152; PHENOMENEX SRL 02691021204; AGILENT TECHNOLOGIES ITALIA SPA 12785290151"
8665765F7D;2022-000938;Ordine;;ETTORE PASQUALI S.R.L.;04892610157;vetreria ;Attrezzature da laboratorio, ottiche e di precisione.;19/09/2022;19/09/2022;2.312,40;Facility Management;97425580152;23-AFFIDAMENTO DIRETTO;2.312,40;0,00;
Z2937B667C;2022-000939;Ordine;;Francesco Cozzupoli;CZZFNC81E04H224L;5 video per laboratorio vernici;Servizi di ricerca e sviluppo e relativi Servizi di consulenza;19/09/2022;19/09/2022;0,00;LAB. PRODOTTI VERNICIANTI;97425580152;23-AFFIDAMENTO DIRETTO;3.950,00;3.950,00;"Francesco Cozzupoli CZZFNC81E04H224L; Mattia Cafieri CFRMTT95R24F205B; Tranquilo Sas 02781770967"
Z0537C3B59;2022-000943;Ordine;;ASSOCIAZIONE AMBIENTE E LAVORO;08748400150;corso sicurezza;Servizi di istruzione e formazione;20/09/2022;20/09/2022;270,00;RISORSE UMANE E ORGANIZZAZIONE;97425580152;23-AFFIDAMENTO DIRETTO;270,00;0,00;
Z7137D0DD8;2022-000944;Ordine;;L.M.P. SRL;05697910585;Analisi in subappalto a L.M.P. per 11 campioni come da offerta n. 044/22/ML;Servizi di prove tecniche, analisi, di laboratorio e relativa consulenza;20/09/2022;20/09/2022;660,00;LABORATORIO ANALISI;97425580152;23-AFFIDAMENTO DIRETTO;660,00;0,00;
ZCC37D18A5;2022-000946;Ordine;;MERCK LIFE SCIENCE S.R.L.;13209130155;Acquisto reagenti ;Attrezzature da laboratorio, ottiche e di precisione.;20/09/2022;20/09/2022;424,40;CROMATOGRAFIA;97425580152;23-AFFIDAMENTO DIRETTO;424,40;0,00;
Z6F37D22E0;2022-000952;Ordine;;MERCK LIFE SCIENCE S.R.L.;13209130155;fiale aldeidi - LpDNPH H Series Cartridges;Attrezzature da laboratorio, ottiche e di precisione.;20/09/2022;20/09/2022;848,00;LABORATORIO EMISSIONI;97425580152;23-AFFIDAMENTO DIRETTO;848,00;0,00;
Z3C37D23D6;2022-000953;Ordine;;EUROPEAN TECHNOLOGY S.R.L.;00840600191;Intervento tecnico su strumento PM309 come da consuntivo BAT 2.938/l;Servizi di riparazione e manutenzione di attrezzature da laboratorio;20/09/2022;20/09/2022;629,14;LABORATORIO ANALISI;97425580152;23-AFFIDAMENTO DIRETTO;629,14;0,00;
Z2837D2454;2022-000954;Ordine;;PACK SERVICES SRL;04076240961;acquisto fusti e taniche;Macchine e apparecchi, attrezzature e articoli di consumo elettrici, illuminazione;20/09/2022;20/09/2022;1.113,78;Facility Management;97425580152;23-AFFIDAMENTO DIRETTO;1.113,68;-0,10;
Z9937D3800;2022-000955;Ordine;;MANUTAN ITALIA SPA;09816660154;ACQUISTI VARI MANUTAN;"Apparecchiature e atrezzature e forniture informatiche; Macchine e apparecchi, attrezzature e articoli di consumo elettrici, illuminazione";21/09/2022;21/09/2022;2.082,30;Facility Management;97425580152;23-AFFIDAMENTO DIRETTO;2.090,78;8,48;
ZB237D0FAD;2022-000956;Ordine;;SPIN LIFE SRL;05074410282;corso statistica - Lab.Emissioni fonti fisse ;Servizi di istruzione e formazione;20/09/2022;20/09/2022;230,00;RISORSE UMANE E ORGANIZZAZIONE;97425580152;23-AFFIDAMENTO DIRETTO;230,00;0,00;
ZA937D403C;2022-000962;Ordine;;CESARE GALDABINI SPA;00187500129;Taratura strumentazione presso Galdabini tra cui manometro digitale Druck e registratore di pressione Salmoiraghi - come da offerta n. 35262;Servizi di riparazione e manutenzione di attrezzature da laboratorio;22/09/2022;22/09/2022;671,00;LABORATORIO ANALISI;97425580152;23-AFFIDAMENTO DIRETTO;671,00;0,00;
Z5D37D7644;2022-000966;Ordine;;ASTMINTERNATIONAL;US231352024;ASTM Acquisto norme;Servizi di prove tecniche, analisi, di laboratorio e relativa consulenza;21/09/2022;21/09/2022;0,00;NORMAZIONE;97425580152;23-AFFIDAMENTO DIRETTO;163,42;163,42;
Z0637D7659;2022-000967;Ordine;;ISO - INTERNATIONAL ORGANIZATIONFOR STANDARDIZATION;CH105816788;ISO acquisto norme;Servizi di prove tecniche, analisi, di laboratorio e relativa consulenza;21/09/2022;21/09/2022;0,00;NORMAZIONE;97425580152;23-AFFIDAMENTO DIRETTO;122,77;122,77;
ZE837D7679;2022-000968;Ordine;;SAE INTERNATIONAL;US251494402;SAE INTERNATIONAL acquisto norme;Servizi di prove tecniche, analisi, di laboratorio e relativa consulenza;22/09/2022;22/09/2022;0,00;NORMAZIONE;97425580152;23-AFFIDAMENTO DIRETTO;83,11;83,11;
Z2337DAD3A;2022-000969;Ordine;;MERCK LIFE SCIENCE S.R.L.;13209130155;reagenti;"Sostanze chimiche; Attrezzature da laboratorio, ottiche e di precisione.";23/09/2022;23/09/2022;414,00;Facility Management;97425580152;23-AFFIDAMENTO DIRETTO;414,00;0,00;
Z6837CBFEC;2022-000972;Ordine;;EUROPEAN TECHNOLOGY S.R.L.;00840600191;BAT 2999;Servizi di riparazione e manutenzione di attrezzature da laboratorio;28/09/2022;28/09/2022;453,34;LAB. LUBRIFICANTI;97425580152;23-AFFIDAMENTO DIRETTO;453,34;0,00;
Z3037DF753;2022-000973;Ordine;;EUROPEAN TECHNOLOGY S.R.L.;00840600191;BAT 3000;Servizi di riparazione e manutenzione di attrezzature da laboratorio;28/09/2022;28/09/2022;2.261,68;LAB. LUBRIFICANTI;97425580152;23-AFFIDAMENTO DIRETTO;2.261,68;0,00;
Z7F33E228E;2022-000974;Ordine;;MERCK LIFE SCIENCE S.R.L.;13209130155;ESANO per progetto MOSH/MOAH (rif ordine 996 del 2021);Attrezzature da laboratorio, ottiche e di precisione.;28/09/2022;28/09/2022;628,00;LAB. SOSTANZE GRASSE, DERIVATI E TECNOLOGIE OLEARIE;97425580152;23-AFFIDAMENTO DIRETTO;628,00;0,00;
ZEB37E037D;2022-000975;Ordine;;EUROPEAN TECHNOLOGY S.R.L.;00840600191;std noack-S6-S60;Attrezzature da laboratorio, ottiche e di precisione.;28/09/2022;28/09/2022;897,92;LAB. LUBRIFICANTI;97425580152;23-AFFIDAMENTO DIRETTO;897,92;0,00;
Z7137E07DD;2022-000976;Ordine;;TRASPORTI ZINGALI SRL;02064240183;trasporto campioni.;Servizi di posta e corriere;23/09/2022;23/09/2022;37,78;LABORATORIO ANALISI;97425580152;23-AFFIDAMENTO DIRETTO;37,78;0,00;
ZC237E091B;2022-000977;Ordine;;LECO ITALY S.R.L.;10123960154;Materiale di consumo Leco - Preventivo da richiedere in LECO;Attrezzature da laboratorio, ottiche e di precisione.;23/09/2022;23/09/2022;2.887,00;LABORATORIO ANALISI;97425580152;23-AFFIDAMENTO DIRETTO;2.887,00;0,00;
Z1037E420A;2022-000978;Ordine;;APAVE ITALIA CPM S.R.L.;01575040983;verifica biennale ascensori innovhub;Servizi di riparazione e manutenzione di impianti di edifici;27/09/2022;27/09/2022;0,00;Facility Management;97425580152;23-AFFIDAMENTO DIRETTO;960,00;960,00;
ZB937E60E2;2022-000979;Ordine;;VWR INTERNATIONAL SRL;12864800151;reagenti ;"Sostanze chimiche; Attrezzature da laboratorio, ottiche e di precisione.";27/09/2022;27/09/2022;2.754,60;Facility Management;97425580152;23-AFFIDAMENTO DIRETTO;2.754,60;0,00;
6952734998;2022-000984;Ordine;;HIT SRL - SERVIZI PER LA COMUNICAZIONE;11344960155;Traduzione_Articoli_Ingelse-sett2022_HIT;Servizi di ricerca e sviluppo e relativi Servizi di consulenza;27/09/2022;27/09/2022;405,60;RESPONSABILE AREA SSOG;97425580152;23-AFFIDAMENTO DIRETTO;405,60;0,00;
Z1D37E99DD;2022-000986;Ordine;;THERMO FISHER SCIENTIFIC S.P.A.;07817950152;Consumabili Thermo settembre 2022;Attrezzature da laboratorio, ottiche e di precisione.;29/09/2022;29/09/2022;4.058,91;CROMATOGRAFIA;97425580152;23-AFFIDAMENTO DIRETTO;4.058,91;0,00;
Z0C37EE6A9;2022-000987;Ordine;;C2 SRL;01121130197;Schede di rete;Macchine e apparecchi, attrezzature e articoli di consumo elettrici, illuminazione;28/09/2022;28/09/2022;128,50;Facility Management;97425580152;23-AFFIDAMENTO DIRETTO;100,50;-28,00;
Z2337F4324;2022-000988;Ordine;;"VEOLIA WATER TECHNOLOGIES ITALIA SPA		";03129770156;filtro dissabbiatore;Servizi di riparazione e manutenzione di attrezzature da laboratorio;05/10/2022;05/10/2022;870,00;LAB. PRODOTTI VERNICIANTI;97425580152;23-AFFIDAMENTO DIRETTO;870,00;0,00;
Z4437E20FE;2022-000990;Ordine;;THERMO FISHER SCIENTIFIC S.P.A.;07817950152;Soppressore per strumento Dionex come da consuntivo n. 71749520 del 08.09.2022;Servizi di riparazione e manutenzione di attrezzature da laboratorio;30/09/2022;30/09/2022;1.940,00;LABORATORIO ANALISI;97425580152;23-AFFIDAMENTO DIRETTO;1.940,00;0,00;
ZE037F49F6;2022-000992;Ordine;;GRUPPO C.S.A.  S.P.A.;03231410402;Analisi laboratorio esterne;Servizi di prove tecniche, analisi, di laboratorio e relativa consulenza;03/10/2022;03/10/2022;225,00;LABORATORIO CARTA;97425580152;23-AFFIDAMENTO DIRETTO;300,00;75,00;
Z2B37F4B2E;2022-000997;Ordine;;SERVICE T.L. SRL;06687770153;Acquisto consumabili Service tl;Attrezzature da laboratorio, ottiche e di precisione.;30/09/2022;30/09/2022;843,06;"LAB. SOSTANZE GRASSE, DERIVATI E TECNOLOGIE OLEARIE; CROMATOGRAFIA";97425580152;23-AFFIDAMENTO DIRETTO;843,06;0,00;"PHENOMENEX SRL 02691021204; AGILENT TECHNOLOGIES ITALIA SPA 12785290151"
ZBC37F4C06;2022-000998;Ordine;;RAJAPACK S.R.L.;04921880961;Saldatrice per sacchetti e consumabili;"Apparecchiature e atrezzature e forniture informatiche; Attrezzature da laboratorio, ottiche e di precisione.";03/10/2022;03/10/2022;345,36;LABORATORIO CARTA;97425580152;23-AFFIDAMENTO DIRETTO;369,10;23,74;
ZD337F64DA;2022-000999;Ordine;;MANUTAN ITALIA SPA;09816660154;Dymo-Manutan_lab elementi;Apparecchiature e atrezzature e forniture informatiche;30/09/2022;30/09/2022;57,90;ANALISI DEGLI ELEMENTI;97425580152;23-AFFIDAMENTO DIRETTO;57,90;0,00;
Z6737F47BE;2022-001000;Ordine;;2 EMME SRL;00395300122;Acquisto pannello elettrico frigo sala pesatura filtri;Servizi di riparazione e manutenzione di attrezzature da laboratorio;12/10/2022;12/10/2022;0,00;LABORATORIO EMISSIONI;97425580152;23-AFFIDAMENTO DIRETTO;210,00;210,00;
8665765F7D;2022-001001;Ordine;;ETTORE PASQUALI S.R.L.;04892610157;vetreria ;Attrezzature da laboratorio, ottiche e di precisione.;03/10/2022;03/10/2022;1.161,50;Facility Management;97425580152;23-AFFIDAMENTO DIRETTO;1.161,50;0,00;
ZF637F7621;2022-001003;Ordine;;VACCANI LUGI SRL;11499670963;Materiale per compostabilit�;Attrezzature da laboratorio, ottiche e di precisione.;10/10/2022;10/10/2022;277,20;LABORATORIO CARTA;97425580152;23-AFFIDAMENTO DIRETTO;277,20;0,00;
ZB737FF256;2022-001004;Ordine;;VACCANI LUGI SRL;11499670963;scarpe antinfortunistica;Indumenti e calzature ad uso professionale, speciale e accessori;04/10/2022;04/10/2022;218,85;Facility Management;97425580152;23-AFFIDAMENTO DIRETTO;218,85;0,00;
ZD837FF654;2022-001005;Ordine;;ETTORE PASQUALI S.R.L.;04892610157;Filtri WHATMANN;Attrezzature da laboratorio, ottiche e di precisione.;04/10/2022;04/10/2022;1.750,00;Facility Management;97425580152;23-AFFIDAMENTO DIRETTO;1.750,00;0,00;
Z6A37FFCF5;2022-001006;Ordine;;PACKAGING MEETING SRL CONSULENZA E FORMAZIONE;12464120158;Corso di formazione;Servizi di istruzione e formazione;10/10/2022;10/10/2022;900,00;RISORSE UMANE E ORGANIZZAZIONE;97425580152;23-AFFIDAMENTO DIRETTO;900,00;0,00;
ZA937FE4C2;2022-001007;Ordine;;UNI - ENTE NAZIONALE ITALIANO DI UNIFICAZIONE;80037830157;norme;Servizi di prove tecniche, analisi, di laboratorio e relativa consulenza;04/10/2022;04/10/2022;0,00;NORMAZIONE;97425580152;23-AFFIDAMENTO DIRETTO;267,75;267,75;
Z723802F28;2022-001008;Ordine;;AGILENT TECHNOLOGIES ITALIA SPA;12785290151;Acquisto consumabili Agilent;Attrezzature da laboratorio, ottiche e di precisione.;04/10/2022;04/10/2022;3.344,00;"LAB. SOSTANZE GRASSE, DERIVATI E TECNOLOGIE OLEARIE; CROMATOGRAFIA";97425580152;23-AFFIDAMENTO DIRETTO;3.344,00;0,00;
Z493803F8F;2022-001010;Ordine;;RS COMPONENTS S.P.A.;10578740150;Nastro in Alluminio;Cancelleria, materiale e attrezzature di consumo per ufficio;04/10/2022;04/10/2022;444,00;Facility Management;97425580152;23-AFFIDAMENTO DIRETTO;444,00;0,00;
ZC238040CC;2022-001011;Ordine;;ERREBIAN S.P.A.;08397890586;Cancelleria;Cancelleria, materiale e attrezzature di consumo per ufficio;06/10/2022;06/10/2022;159,32;Facility Management;97425580152;23-AFFIDAMENTO DIRETTO;165,92;6,60;
Z693312E90;2022-001012;Ordine;;THERMO FISHER SCIENTIFIC S.P.A.;07817950152;CRD_Dionex_IEC;Attrezzature da laboratorio, ottiche e di precisione.;07/10/2022;07/10/2022;888,00;CROMATOGRAFIA;97425580152;23-AFFIDAMENTO DIRETTO;888,00;0,00;
Z143805B6F;2022-001013;Ordine;;AGILENT TECHNOLOGIES ITALIA SPA;12785290151;Relocation_ICP-OES_Agilent;Servizi di riparazione e manutenzione di attrezzature da laboratorio;07/10/2022;07/10/2022;7.221,45;ANALISI DEGLI ELEMENTI;97425580152;23-AFFIDAMENTO DIRETTO;7.221,45;0,00;
Z73380616E;2022-001014;Ordine;;ETTORE PASQUALI S.R.L.;04892610157;Riparazione 2 bagnomaria off OR 2022 9 e off OR 2022 10;Servizi di riparazione e manutenzione di attrezzature da laboratorio;07/10/2022;07/10/2022;468,00;LAB. SOSTANZE GRASSE, DERIVATI E TECNOLOGIE OLEARIE;97425580152;23-AFFIDAMENTO DIRETTO;468,00;0,00;
Z343808274;2022-001015;Ordine;;CHEMISERVICE S.R.L.;04262080726;Analisi subappalto pesticidi;Servizi di prove tecniche, analisi, di laboratorio e relativa consulenza;14/10/2022;14/10/2022;171,00;LAB. SOSTANZE GRASSE, DERIVATI E TECNOLOGIE OLEARIE;97425580152;23-AFFIDAMENTO DIRETTO;171,00;0,00;
Z163809AB9;2022-001016;Ordine;;VWR INTERNATIONAL SRL;12864800151;Glass filter  25mm ;Attrezzature da laboratorio, ottiche e di precisione.;14/10/2022;14/10/2022;113,50;LAB. COSMETICA E DETERGENZA;97425580152;23-AFFIDAMENTO DIRETTO;81,50;-32,00;
ZF5380A6C9;2022-001017;Ordine;;SIAD S.P.A.;00209070168;bombola CH4 in CO2- 0.1% di CH4 resto CO2 in bombola da 10 l;Prodotti derivati dal petrolio;12/10/2022;12/10/2022;0,00;LABORATORIO EMISSIONI;97425580152;23-AFFIDAMENTO DIRETTO;300,00;300,00;
Z263815953;2022-001019;Ordine;;STUDIO TORTA SPA;06589950010;SPESE BREVETTO;Servizi di ricerca e sviluppo e relativi Servizi di consulenza;17/10/2022;17/10/2022;184,50;LABORATORIO SETA;97425580152;23-AFFIDAMENTO DIRETTO;184,50;0,00;
ZBF381838B;2022-001020;Ordine;;FISHER SCIENTIFIC SAS;08948430965;FISHER CHEMICAL;Sostanze chimiche;11/10/2022;11/10/2022;0,00;Facility Management;97425580152;23-AFFIDAMENTO DIRETTO;1.869,66;1.869,66;
ZBD381810B;2022-001021;Ordine;;MERCK LIFE SCIENCE S.R.L.;13209130155;Tubi da dialisi;Attrezzature da laboratorio, ottiche e di precisione.;17/10/2022;17/10/2022;216,00;LABORATORIO SETA;97425580152;23-AFFIDAMENTO DIRETTO;216,00;0,00;
ZF93818864;2022-001022;Ordine;;SRA INSTRUMENTS ITALIA S.P.A.;12844250154;Acquisto consumabili SRA;Attrezzature da laboratorio, ottiche e di precisione.;12/10/2022;12/10/2022;3.461,10;"LAB. SOSTANZE GRASSE, DERIVATI E TECNOLOGIE OLEARIE; CROMATOGRAFIA";97425580152;23-AFFIDAMENTO DIRETTO;3.461,10;0,00;
Z36381C787;2022-001026;Ordine;;ALD MOTORSERVICE SRL;08608260967;riparazione vw golf;Servizi di riparazione, manutenzione e affini di veicoli e attrezzature connesse;13/10/2022;13/10/2022;342,66;Facility Management;97425580152;23-AFFIDAMENTO DIRETTO;342,66;0,00;
Z55381E188;2022-001027;Ordine;;DALLAGIOVANNA E C.;10146280960;MAN.ASCENSORI COS.044-757;Servizi di riparazione e manutenzione di impianti di edifici;13/10/2022;13/10/2022;245,00;Facility Management;97425580152;23-AFFIDAMENTO DIRETTO;245,00;0,00;
ZF0381E31C;2022-001028;Ordine;;ETTORE PASQUALI S.R.L.;04892610157;vetreria ;Attrezzature da laboratorio, ottiche e di precisione.;13/10/2022;13/10/2022;643,30;Facility Management;97425580152;23-AFFIDAMENTO DIRETTO;773,60;130,30;
ZA138233C9;2022-001031;Ordine;;PERKIN ELMER ITALIA S.P.A.;00742090152;Riparazione_ELAN9000_PerkinElmer;Servizi di riparazione e manutenzione di attrezzature da laboratorio;13/10/2022;13/10/2022;0,00;ANALISI DEGLI ELEMENTI;97425580152;23-AFFIDAMENTO DIRETTO;3.815,65;3.815,65;
ZEC3824EDD;2022-001032;Ordine;;SHIMADZU ITALIA SRL;10191010155;Acquisto PC strumentale Shimadzu;Apparecchiature e atrezzature e forniture informatiche;13/10/2022;13/10/2022;3.500,00;CROMATOGRAFIA;97425580152;23-AFFIDAMENTO DIRETTO;3.500,00;0,00;
Z9638260DD;2022-001033;Ordine;;EUROPEAN TECHNOLOGY S.R.L.;00840600191;Pezzi di ricambio per strumentazione European Technology - consuntivo del 02.05.2022 n. BAT 2.911/l - intervento gi� effettuato da European Technology;Servizi di riparazione e manutenzione di attrezzature da laboratorio;17/10/2022;17/10/2022;174,16;LABORATORIO ANALISI;97425580152;23-AFFIDAMENTO DIRETTO;174,16;0,00;
ZB338261D1;2022-001034;Ordine;;EUROPEAN TECHNOLOGY S.R.L.;00840600191;Pezzi di ricambio European Technology per intervento gi� effettuato - secondo consuntivo BAT 2.605/l del 06.05.2022;Servizi di riparazione e manutenzione di attrezzature da laboratorio;17/10/2022;17/10/2022;1.125,36;LABORATORIO ANALISI;97425580152;23-AFFIDAMENTO DIRETTO;1.125,36;0,00;
Z33382C990;2022-001038;Ordine;;PERKIN ELMER ITALIA S.P.A.;00742090152;SostituzioneCondensatore_ICPMS-ELAN9000;Servizi di riparazione e manutenzione di attrezzature da laboratorio;20/10/2022;20/10/2022;212,50;ANALISI DEGLI ELEMENTI;97425580152;23-AFFIDAMENTO DIRETTO;212,50;0,00;
Z55382CECE;2022-001039;Ordine;;SEA MARCONI TECHNOLOGIES S.A.S. DI V.TUMIATTI;00889150017;Analisi olio;Servizi di prove tecniche, analisi, di laboratorio e relativa consulenza;17/10/2022;17/10/2022;0,00;LAB. PRODOTTI VERNICIANTI;97425580152;23-AFFIDAMENTO DIRETTO;1.998,00;1.998,00;
Z87382D17F;2022-001040;Ordine;;VWR INTERNATIONAL SRL;12864800151;Metilato sodico -Folegatti;Attrezzature da laboratorio, ottiche e di precisione.;17/10/2022;17/10/2022;97,69;LAB. SOSTANZE GRASSE, DERIVATI E TECNOLOGIE OLEARIE;97425580152;23-AFFIDAMENTO DIRETTO;97,69;0,00;
Z17382D69B;2022-001041;Ordine;;CRIOCLIMA SRL;05840640964;consuntivo 157;Servizi di riparazione e manutenzione di attrezzature da laboratorio;18/10/2022;18/10/2022;1.835,12;LAB. PRODOTTI VERNICIANTI;97425580152;23-AFFIDAMENTO DIRETTO;1.835,12;0,00;
Z0C38331C4;2022-001045;Ordine;;UNITED PARCEL SERVICE ITALIA SRL;08537690151;Oneri doganali;Servizi di posta e corriere;26/10/2022;26/10/2022;0,00;LABORATORIO CARTA;97425580152;23-AFFIDAMENTO DIRETTO;7,70;7,70;
Z473835D1F;2022-001046;Ordine;;EXACTA + OPTECH LABCENTER S.P.A.;01022690364;reagenti;Sostanze chimiche;21/10/2022;21/10/2022;0,00;Facility Management;97425580152;23-AFFIDAMENTO DIRETTO;1.975,20;1.975,20;
Z6D3836D3F;2022-001047;Ordine;;CAMAR ELETTRONICA S.R.L.;02059800363;Taratura Temp 70 Pt100;Servizi di prove tecniche, analisi, di laboratorio e relativa consulenza;27/10/2022;27/10/2022;120,00;LAB. PRODOTTI VERNICIANTI;97425580152;23-AFFIDAMENTO DIRETTO;120,00;0,00;
Z91383720C;2022-001049;Ordine;;SEGRA '95 SRL (MAIL BOXES);11539210150;spedizioni ;Servizi di posta e corriere;21/10/2022;21/10/2022;454,29;Facility Management;97425580152;23-AFFIDAMENTO DIRETTO;454,29;0,00;
Z3C38371B0;2022-001050;Ordine;;MERCK LIFE SCIENCE S.R.L.;13209130155;Etere etilico per HPLC 13.10.22;Attrezzature da laboratorio, ottiche e di precisione.;27/10/2022;27/10/2022;1.463,00;LAB. SOSTANZE GRASSE, DERIVATI E TECNOLOGIE OLEARIE;97425580152;23-AFFIDAMENTO DIRETTO;1.463,00;0,00;
ZCD3837D51;2022-001052;Ordine;;S.I.A.Q. SAS DI FRANCIOSI ALESSANDRO E C.;02752270963;Rinnovo delle SCIA antincendio sedi SSOG, SSCCP e SSC;Servizi di ricerca e sviluppo e relativi Servizi di consulenza;21/10/2022;21/10/2022;0,00;SERVIZIO SICUREZZA SALUTE E AMBIENTE;97425580152;23-AFFIDAMENTO DIRETTO;3.500,00;3.500,00;"PRESTING SRL 02725380584; S.I.A.Q. SAS DI FRANCIOSI ALESSANDRO E C. 02752270963"
Z5C383AF42;2022-001053;Ordine;;L.M.P. SRL;05697910585;Analisi In subappalto a L.M.P. per analisi PCB e PCT - offerta n. 044/22/ML;Servizi di prove tecniche, analisi, di laboratorio e relativa consulenza;20/10/2022;20/10/2022;480,00;LABORATORIO ANALISI;97425580152;23-AFFIDAMENTO DIRETTO;480,00;0,00;
Z98383B1B4;2022-001054;Ordine;;GRAFICHE GIARDINI SRL;05941500158;Timbri autoinchiostranti;Macchine e apparecchi, attrezzature e articoli di consumo elettrici, illuminazione;21/10/2022;21/10/2022;128,80;Facility Management;97425580152;23-AFFIDAMENTO DIRETTO;128,80;0,00;
Z73383B284;2022-001055;Ordine;;SIAD S.P.A.;00209070168; FT OLII E SSC;Prodotti derivati dal petrolio;21/10/2022;21/10/2022;832,55;"RESPONSABILE AREA SSC; RESPONSABILE AREA SSOG";97425580152;23-AFFIDAMENTO DIRETTO;832,55;0,00;
Z5C383F3E4;2022-001056;Ordine;;Fedex Express Italy S.r.l;1273040129;Oneri doganali;Servizi di posta e corriere;20/10/2022;20/10/2022;245,75;CROMATOGRAFIA;97425580152;23-AFFIDAMENTO DIRETTO;245,75;0,00;
Z45383F589;2022-001057;Ordine;;PHENOMENEX SRL;02691021204;SecurityCup_Phenomenex;Attrezzature da laboratorio, ottiche e di precisione.;21/10/2022;21/10/2022;3.819,70;"LAB. PRODOTTI VERNICIANTI; CROMATOGRAFIA";97425580152;23-AFFIDAMENTO DIRETTO;3.819,70;0,00;
Z7C383FC84;2022-001059;Ordine;;RESTEK SRL;03226210155;Acquisto consumabili Restek;Attrezzature da laboratorio, ottiche e di precisione.;21/10/2022;21/10/2022;1.474,04;"LAB. SOSTANZE GRASSE, DERIVATI E TECNOLOGIE OLEARIE; CROMATOGRAFIA";97425580152;23-AFFIDAMENTO DIRETTO;1.474,04;0,00;"PHENOMENEX SRL 02691021204; RESTEK SRL 03226210155"
ZA8384066A;2022-001060;Ordine;;METTLER TOLEDO S.P.A.;00718330152;Ricambi TGA DSC;"Attrezzature da laboratorio, ottiche e di precisione.; Servizi di riparazione e manutenzione di attrezzature da laboratorio";21/10/2022;21/10/2022;0,00;LAB. SICUREZZA INDUSTRIALE;97425580152;23-AFFIDAMENTO DIRETTO;15.594,62;15.594,62;
Z603841D2B;2022-001061;Ordine;;TECNO OFFICE GLOBAL S.R.L.;01641800550;"TONER LEXMARK MS610n
GLOBAL TRASPORTO
";Cancelleria, materiale e attrezzature di consumo per ufficio;21/10/2022;21/10/2022;244,98;Facility Management;97425580152;23-AFFIDAMENTO DIRETTO;244,98;0,00;
ZD03841CF6;2022-001062;Ordine;;EXTRASYNTHESE;00000000000;Acido carnosico;Attrezzature da laboratorio, ottiche e di precisione.;31/10/2022;31/10/2022;130,00;CROMATOGRAFIA;97425580152;23-AFFIDAMENTO DIRETTO;130,00;0,00;
ZC63849EA1;2022-001066;Ordine;;KAISER+KRAFT SRL;01627250135;Transpallet - https://www.kaiserkraft.it/dispositivi-di-sollevamento/transpallet/transpallet-evo/con-freno-ruote-sterzanti-in-gomma-piena/p/M7825447/?articleNumber=570055;Apparecchiature e atrezzature e forniture informatiche;24/10/2022;24/10/2022;1.080,00;LABORATORIO EMISSIONI;97425580152;23-AFFIDAMENTO DIRETTO;1.080,00;0,00;
Z06384469A;2022-001067;Ordine;;SERVIZI INNOVATIVI NORDOVEST S.R.L.;08955680965;Spedizione buoni carburante ENI per il personale;ALTRE SPESE PER IL PERSONALE;26/10/2022;26/10/2022;0,00;RISORSE UMANE E ORGANIZZAZIONE;97425580152;23-AFFIDAMENTO DIRETTO;15,00;15,00;
Z163852494;2022-001068;Ordine;;GRUPPO C.S.A.  S.P.A.;03231410402;Analisi laboratorio esterne;Servizi di prove tecniche, analisi, di laboratorio e relativa consulenza;27/10/2022;27/10/2022;0,00;LABORATORIO CARTA;97425580152;23-AFFIDAMENTO DIRETTO;900,00;900,00;
Z083852B97;2022-001070;Ordine;;POLITECNICO DI MILANO DIP.ING.CIV.E AMB.LE;80057930150;Analisi esterne;Servizi di prove tecniche, analisi, di laboratorio e relativa consulenza;27/10/2022;27/10/2022;0,00;LABORATORIO CARTA;97425580152;23-AFFIDAMENTO DIRETTO;1.500,00;1.500,00;
Z7238551F7;2022-001071;Ordine;;STUDIO DAVERIO & FLORIO;13464890154;spese legali;Servizi giuridici;26/10/2022;26/10/2022;0,00;RISORSE UMANE E ORGANIZZAZIONE;97425580152;23-AFFIDAMENTO DIRETTO;3.294,72;3.294,72;
ZCA384496D;2022-001073;Ordine;;LABVANTAGE SOLUTIONS EUROPE LTDITALIAN BRANCH;06614860960;assistenza personalizzazione LIMS per riorganizzazione aziendale;Pacchetti software e sistemi di informazione;27/10/2022;27/10/2022;0,00;UFFICIO ANALISI;97425580152;04-PROCEDURA NEGOZIATA SENZA PREVIA PUBBLICAZIONE;5.425,00;5.425,00;
Z993853E15;2022-001074;Ordine;;TRASPORTI ZINGALI SRL;02064240183;trasporto campioni.;Servizi di posta e corriere;28/10/2022;28/10/2022;37,78;LABORATORIO ANALISI;97425580152;23-AFFIDAMENTO DIRETTO;37,78;0,00;
ZCE37ECE79;2022-001075;Ordine;;ERRECI SRL;05102590154;Manutenzione ordinaria ERRECI;Servizi di riparazione e manutenzione di attrezzature da laboratorio;08/11/2022;08/11/2022;6.070,00;LAB. SOSTANZE GRASSE, DERIVATI E TECNOLOGIE OLEARIE;97425580152;23-AFFIDAMENTO DIRETTO;6.070,00;0,00;
Z8F385A44C;2022-001076;Ordine;;IMCD ITALIA SPA;03525700153;consuntiv imcd 21 10;Servizi di riparazione e manutenzione di attrezzature da laboratorio;08/11/2022;08/11/2022;0,00;LAB. PRODOTTI VERNICIANTI;97425580152;23-AFFIDAMENTO DIRETTO;301,75;301,75;
Z6E385A630;2022-001077;Ordine;;ETTORE PASQUALI S.R.L.;04892610157;consumabili OG3_19_10_22;"Indumenti e calzature ad uso professionale, speciale e accessori; Attrezzature da laboratorio, ottiche e di precisione.";08/11/2022;08/11/2022;332,30;"Facility Management; LAB. SOSTANZE GRASSE, DERIVATI E TECNOLOGIE OLEARIE";97425580152;23-AFFIDAMENTO DIRETTO;332,30;0,00;
ZC5385A811;2022-001078;Ordine;;MERCK LIFE SCIENCE S.R.L.;13209130155;sacche supelco 1 litro cod 30226-U;Attrezzature da laboratorio, ottiche e di precisione.;28/10/2022;28/10/2022;462,00;LABORATORIO EMISSIONI;97425580152;23-AFFIDAMENTO DIRETTO;462,00;0,00;
ZF6385A982;2022-001079;Ordine;;G.S.G. SRL;07367140154;"filtri abbattimento fumi 
codice F40100506010100; descrizione : 
F40100506010100 KG 5
610x610x292 F6
";Attrezzature da laboratorio, ottiche e di precisione.;28/10/2022;28/10/2022;0,00;LABORATORIO EMISSIONI;97425580152;23-AFFIDAMENTO DIRETTO;2.088,90;2.088,90;
Z0F385B2D2;2022-001080;Ordine;;UNI - ENTE NAZIONALE ITALIANO DI UNIFICAZIONE;80037830157;norme;Servizi di prove tecniche, analisi, di laboratorio e relativa consulenza;28/10/2022;28/10/2022;0,00;NORMAZIONE;97425580152;23-AFFIDAMENTO DIRETTO;493,75;493,75;
ZF23855903;2022-001081;Ordine;;ASSING SPA;06725640582;Consumabili SEM;Attrezzature da laboratorio, ottiche e di precisione.;28/10/2022;28/10/2022;532,55;LABORATORIO SETA;97425580152;23-AFFIDAMENTO DIRETTO;726,92;194,37;
ZF7385FC23;2022-001084;Ordine;;DHL EXPRESS (ITALY) SRL;04209680158;Oneri doganali;Servizi di posta e corriere;28/10/2022;28/10/2022;0,00;LABORATORIO CARTA;97425580152;23-AFFIDAMENTO DIRETTO;15,07;15,07;
Z22385FC93;2022-001085;Ordine;;PROOF-ACS GMBH;DE285413072;Materiali di riferimento per MOSH/MOAH;Attrezzature da laboratorio, ottiche e di precisione.;08/11/2022;08/11/2022;0,00;LAB. SOSTANZE GRASSE, DERIVATI E TECNOLOGIE OLEARIE;97425580152;23-AFFIDAMENTO DIRETTO;1.110,00;1.110,00;
ZCF385FD1F;2022-001086;Ordine;;DHL EXPRESS (ITALY) SRL;04209680158;Oneri doganali;Servizi di posta e corriere;28/10/2022;28/10/2022;0,00;LABORATORIO CARTA;97425580152;23-AFFIDAMENTO DIRETTO;35,22;35,22;
Z943865235;2022-001089;Ordine;;UNITED PARCEL SERVICE ITALIA SRL;08537690151;ups servizio di trasporto e accessori;Servizi di posta e corriere;02/11/2022;02/11/2022;0,00;Facility Management;97425580152;23-AFFIDAMENTO DIRETTO;7,70;7,70;
Z4D3865795;2022-001090;Ordine;;PACKAGING MEETING SRL CONSULENZA E FORMAZIONE;12464120158;Iscrizione convegno;Servizi di istruzione e formazione;02/11/2022;02/11/2022;390,00;RISORSE UMANE E ORGANIZZAZIONE;97425580152;23-AFFIDAMENTO DIRETTO;390,00;0,00;
Z6E386D236;2022-001093;Ordine;;PARCAM SRL;05822580964;Prenotazione sala consiglio in CCIAA;Servizi commerciali vari ed altri servizi;07/11/2022;07/11/2022;1.250,00;NORMAZIONE;97425580152;23-AFFIDAMENTO DIRETTO;1.250,00;0,00;
Z9F3870C85;2022-001094;Ordine;;METTLER TOLEDO S.P.A.;00718330152;Crogioli per analisi DSC -;Attrezzature da laboratorio, ottiche e di precisione.;07/11/2022;07/11/2022;4.502,00;LAB. SICUREZZA INDUSTRIALE;97425580152;23-AFFIDAMENTO DIRETTO;4.502,00;0,00;
ZF43865E5B;2022-001095;Ordine;;CUCCHI SERGIO SRL;02353410968;materiale  di consumo;Servizi di riparazione e manutenzione di attrezzature da laboratorio;04/11/2022;04/11/2022;0,00;LABORATORIO EMISSIONI;97425580152;23-AFFIDAMENTO DIRETTO;1.060,00;1.060,00;
Z323867D68;2022-001096;Ordine;;CAMINART SRL;04887750968;legna di faggio;Attrezzature da laboratorio, ottiche e di precisione.;04/11/2022;04/11/2022;320,00;LABORATORIO EMISSIONI;97425580152;23-AFFIDAMENTO DIRETTO;320,00;0,00;
8665765F7D;2022-001101;Ordine;;ETTORE PASQUALI S.R.L.;04892610157;vetreria ;Attrezzature da laboratorio, ottiche e di precisione.;08/11/2022;08/11/2022;676,16;Facility Management;97425580152;23-AFFIDAMENTO DIRETTO;700,72;24,56;
Z9038A17DF;2022-001103;Ordine;;DADO LAB SRL;08356080963;Elettrovalvola per permapure e filtri HP1 Dadolab;Servizi di riparazione e manutenzione di attrezzature da laboratorio;17/11/2022;17/11/2022;340,00;LABORATORIO EMISSIONI;97425580152;23-AFFIDAMENTO DIRETTO;340,00;0,00;
ZD3387BB55;2022-001106;Ordine;;BARBERO PIETRO S.P.A.;02073350015;Bancali per Rifiuti;Macchine e apparecchi, attrezzature e articoli di consumo elettrici, illuminazione;08/11/2022;08/11/2022;756,48;Facility Management;97425580152;23-AFFIDAMENTO DIRETTO;756,60;0,12;
Z52388102E;2022-001107;Ordine;;CONVERGE SPA;04472901000;TONER PER UFFICIO ANALISI CARTA;Cancelleria, materiale e attrezzature di consumo per ufficio;14/11/2022;14/11/2022;0,00;Facility Management;97425580152;23-AFFIDAMENTO DIRETTO;641,00;641,00;
Z923882F28;2022-001108;Ordine;;MITAMBIENTE SRL;06317870969;spedizioni trasporti merci pericolose ;Attrezzature da laboratorio, ottiche e di precisione.;11/11/2022;11/11/2022;80,00;LABORATORIO ANALISI;97425580152;23-AFFIDAMENTO DIRETTO;80,00;0,00;
Z5B3883005;2022-001109;Ordine;;DSV SPA;00891230153;DIESEL FUEL SAMPLES LAB ID IQT3 FATT.  IT812052986;Servizi di posta e corriere;11/11/2022;11/11/2022;88,11;LABORATORIO ANALISI;97425580152;23-AFFIDAMENTO DIRETTO;88,11;0,00;
Z613882DB7;2022-001110;Ordine;;GRUPPO ISPAC SOCIETA' COOPERATIVA;07915640960;certificazione rfi;Servizi di ricerca e sviluppo e relativi Servizi di consulenza;14/11/2022;14/11/2022;0,00;LAB. PRODOTTI VERNICIANTI;97425580152;23-AFFIDAMENTO DIRETTO;400,00;400,00;
ZC438837BB;2022-001113;Ordine;;Aqualab Supplies S.L;00000000000;Cellulose Thimbles_ASE;Attrezzature da laboratorio, ottiche e di precisione.;14/11/2022;14/11/2022;0,00;LAB. COSMETICA E DETERGENZA;97425580152;23-AFFIDAMENTO DIRETTO;384,00;384,00;
ZF03883AC4;2022-001115;Ordine;;NG LABTEC SRL;03256110168;Manutenzion Hunterlab;Servizi di riparazione e manutenzione di attrezzature da laboratorio;14/11/2022;14/11/2022;0,00;LAB. PRODOTTI VERNICIANTI;97425580152;23-AFFIDAMENTO DIRETTO;2.265,00;2.265,00;
ZC338856D6;2022-001116;Ordine;;TNT GLOBAL EXPRESS SPA;01273040129;spedizioni;Servizi di posta e corriere;14/11/2022;14/11/2022;7,39;UFFICIO ANALISI;97425580152;23-AFFIDAMENTO DIRETTO;7,39;0,00;
ZBD38A1B2D;2022-001118;Ordine;;SIAD S.P.A.;00209070168;messa a disposizione bombole;Prodotti derivati dal petrolio;17/11/2022;17/11/2022;668,58;RESPONSABILE AREA SSC;97425580152;23-AFFIDAMENTO DIRETTO;668,54;-0,04;
ZCF38837C1;2022-001119;Ordine;;G.S.G. SRL;07367140154;SPOSTAMENTO ARREDI E CAPPE DA SETA A CARTA;altri Servizi di comunita', sociali e personali;10/11/2022;10/11/2022;0,00;Facility Management;97425580152;23-AFFIDAMENTO DIRETTO;19.998,00;19.998,00;
Z773887D2E;2022-001120;Ordine;;GRASSI UFFICIO SAS;01279740136;cancelleria;Cancelleria, materiale e attrezzature di consumo per ufficio;10/11/2022;10/11/2022;0,00;Facility Management;97425580152;23-AFFIDAMENTO DIRETTO;344,64;344,64;"GRASSI UFFICIO SAS 01279740136; TECNO OFFICE GLOBAL S.R.L. 01641800550"
ZAE3888233;2022-001122;Ordine;;WALDNER SRL;00799220157;FORNITURA BANCO DA LABORATORIO;Mobili da ufficio, arredi, elettrodomestici;10/11/2022;10/11/2022;1.066,00;CROMATOGRAFIA;97425580152;23-AFFIDAMENTO DIRETTO;1.066,00;0,00;
Z5A3888412;2022-001123;Ordine;;G.S.G. SRL;07367140154;SPOSTAMENTO E AGGIORNAMENTO ASPIRAZIONE;altri Servizi di comunita', sociali e personali;10/11/2022;10/11/2022;0,00;Facility Management;97425580152;23-AFFIDAMENTO DIRETTO;2.173,44;2.173,44;
Z573888539;2022-001124;Ordine;;MERCK LIFE SCIENCE S.R.L.;13209130155;Sodio Metossido 164992-MILANI;Attrezzature da laboratorio, ottiche e di precisione.;14/11/2022;14/11/2022;97,40;LAB. SOSTANZE GRASSE, DERIVATI E TECNOLOGIE OLEARIE;97425580152;23-AFFIDAMENTO DIRETTO;97,40;0,00;
Z6A3888C4E;2022-001125;Ordine;;MARCELLO FIDALEO;FDLMCL75A06D708V;consulenza jmp;Servizi di ricerca e sviluppo e relativi Servizi di consulenza;14/11/2022;14/11/2022;0,00;LAB. PRODOTTI VERNICIANTI;97425580152;23-AFFIDAMENTO DIRETTO;3.000,00;3.000,00;
Z0E388B33D;2022-001126;Ordine;;O.N.A.O.O. ORGANIZZAZIONE NAZIONALE ASSAGGIATORI OLIO DI OLIVA;91003470084;CORSO panel 2023;Servizi di istruzione e formazione;14/11/2022;14/11/2022;0,00;RISORSE UMANE E ORGANIZZAZIONE;97425580152;23-AFFIDAMENTO DIRETTO;8.000,00;8.000,00;"O.N.A.O.O. ORGANIZZAZIONE NAZIONALE ASSAGGIATORI OLIO DI OLI 91003470084; IRVEA / Federquality 02738420344; ASSOCIAZIONE INTERNAZIONALE RISTORANTI DELL'OLIO ASSOCIAZION 94224980485"
8349380e54;2022-001127;Ordine;;EXACTA + OPTECH LABCENTER S.P.A.;01022690364;reagenti;Sostanze chimiche;11/11/2022;11/11/2022;0,00;Facility Management;97425580152;23-AFFIDAMENTO DIRETTO;1.209,28;1.209,28;
Z8F3893AFF;2022-001128;Ordine;;AGILENT TECHNOLOGIES ITALIA SPA;12785290151;SPOSTAMENTO CARY5000 DA AREA SETA A SSOG;altri Servizi di comunita', sociali e personali;14/11/2022;14/11/2022;0,00;Facility Management;97425580152;23-AFFIDAMENTO DIRETTO;6.304,26;6.304,26;
ZA138941CF;2022-001129;Ordine;;BYK-GARDNER GMBH;00000000000;manutenzione byk;Servizi di riparazione e manutenzione di attrezzature da laboratorio;15/11/2022;15/11/2022;0,00;LAB. PRODOTTI VERNICIANTI;97425580152;23-AFFIDAMENTO DIRETTO;913,00;913,00;
Z983893885;2022-001131;Ordine;;THERMO FISHER SCIENTIFIC S.P.A.;07817950152;SPOSTAMENTO NICOLET IN 10;altri Servizi di comunita', sociali e personali;14/11/2022;14/11/2022;0,00;Facility Management;97425580152;23-AFFIDAMENTO DIRETTO;3.137,50;3.137,50;
